Body_Code,Body_Name,Service Area,Responsible Unit,Expense Type,Expense Code,Narrative,Date,Transaction_Number,Amount,Supplier Name
http://statistics.data.gov.uk/id/local-authority/38,Oxfordshire County Council,Oxfordshire Customer Services,ICT Operations & Mai,Communications and Computing,45200,Telephony - Equipment,29.05.2015,4100010152,"1,464.94",(aq) Ltd
http://statistics.data.gov.uk/id/local-authority/38,Oxfordshire County Council,Commercial Services,FE Special Trans,Contract Hire/Leasing,33101,Home to School Trans,13.05.2015,7000010828,"1,512.00",001 Alpha Cars Ltd
http://statistics.data.gov.uk/id/local-authority/38,Oxfordshire County Council,Commercial Services,FE Special Trans,Contract Hire/Leasing,33101,Home to School Trans,13.05.2015,7000010829,"1,123.20",001 Alpha Cars Ltd
http://statistics.data.gov.uk/id/local-authority/38,Oxfordshire County Council,Children's Social Care,Transport costs,Contract Hire/Leasing,33101,Home to School Trans,13.05.2015,7000012764,844.80,001 Alpha Cars Ltd
http://statistics.data.gov.uk/id/local-authority/38,Oxfordshire County Council,Children's Social Care,Transport costs,Contract Hire/Leasing,33101,Home to School Trans,13.05.2015,7000012766,650.40,001 Alpha Cars Ltd
http://statistics.data.gov.uk/id/local-authority/38,Oxfordshire County Council,Children's Social Care,Family support N'th2,Contract Hire/Leasing,33101,Home to School Trans,13.05.2015,7000012780,"1,152.00",001 Alpha Cars Ltd
http://statistics.data.gov.uk/id/local-authority/38,Oxfordshire County Council,Children's Social Care,Transport costs,Contract Hire/Leasing,33101,Home to School Trans,13.05.2015,7000012796,907.20,001 Alpha Cars Ltd
http://statistics.data.gov.uk/id/local-authority/38,Oxfordshire County Council,Children's Social Care,Looked After City,Contract Hire/Leasing,33300,Transport (General),13.05.2015,7000012772,"1,372.80",001 Alpha Cars Ltd
http://statistics.data.gov.uk/id/local-authority/38,Oxfordshire County Council,Physical Disabilities Pooled Budget,PD Comm Supp Ab'don,Other Agency and Contracted Services,57401,Direct Payments,14.05.2015,3300011896,900.00,1 Off Advance Housing & Support
http://statistics.data.gov.uk/id/local-authority/38,Oxfordshire County Council,SCS Other Cost Centres,Home suppt trade a/c,Other Agency and Contracted Services,57300,Home Support (Ext) OS&HCD,06.05.2015,7000011572,"15,583.69",1 to 1 Care
http://statistics.data.gov.uk/id/local-authority/38,Oxfordshire County Council,SCS Other Cost Centres,Home suppt trade a/c,Other Agency and Contracted Services,57300,Home Support (Ext) OS&HCD,20.05.2015,7000015206,"17,599.80",1 to 1 Care
http://statistics.data.gov.uk/id/local-authority/38,Oxfordshire County Council,Commercial Services,Zone 2 - East,Contract Hire/Leasing,33101,Home to School Trans,18.05.2015,7000014992,910.00,1St Taxis
http://statistics.data.gov.uk/id/local-authority/38,Oxfordshire County Council,Commercial Services,Zone 1 - North,Contract Hire/Leasing,33101,Home to School Trans,26.05.2015,7000019098,650.00,1St Taxis
http://statistics.data.gov.uk/id/local-authority/38,Oxfordshire County Council,Control Accounts,Control Account Trojan Residential Care,Balance Sheet General,B2040,ABACUS Accounts Payable Control A/c,13.05.2015,7000013397,"59,872.28",2 Care
http://statistics.data.gov.uk/id/local-authority/38,Oxfordshire County Council,Public Health,NHS HealthCheck Prog,Private Contractors,56405,General Practice Services,14.05.2015,7000013961,744.00,27 Beaumont Street
http://statistics.data.gov.uk/id/local-authority/38,Oxfordshire County Council,Public Health,GP + Pharmacy Servs,Private Contractors,56405,General Practice Services,18.05.2015,7000014871,"1,105.00",27 Beaumont Street
http://statistics.data.gov.uk/id/local-authority/38,Oxfordshire County Council,Public Health,Contraception,Private Contractors,56405,General Practice Services,01.05.2015,7000010637,685.00,28 Beaumont Street
http://statistics.data.gov.uk/id/local-authority/38,Oxfordshire County Council,Public Health,NHS HealthCheck Prog,Private Contractors,56405,General Practice Services,14.05.2015,7000013977,501.00,28 Beaumont Street
http://statistics.data.gov.uk/id/local-authority/38,Oxfordshire County Council,Older Peoples Pooled Budget,Locality Tm Cherwell,Temporary Staff (NJC Green Book),16717,Tempry Staff (NJC) Agency Staff,05.05.2015,4100008734,"1,305.60",3D Recruit Ltd
http://statistics.data.gov.uk/id/local-authority/38,Oxfordshire County Council,Older Peoples Pooled Budget,Locality Tm Cherwell,Temporary Staff (NJC Green Book),16717,Tempry Staff (NJC) Agency Staff,05.05.2015,4100008766,"1,040.40",3D Recruit Ltd
http://statistics.data.gov.uk/id/local-authority/38,Oxfordshire County Council,Children's Social Care,Family support N'th2,Temporary Staff (NJC Green Book),16717,Tempry Staff (NJC) Agency Staff,22.05.2015,4100011103,"1,595.29",3D Recruit Ltd
http://statistics.data.gov.uk/id/local-authority/38,Oxfordshire County Council,Older Peoples Pooled Budget,Locality Tm Cherwell,Temporary Staff (NJC Green Book),16717,Tempry Staff (NJC) Agency Staff,14.05.2015,4100012385,"1,774.80",3D Recruit Ltd
http://statistics.data.gov.uk/id/local-authority/38,Oxfordshire County Council,Older Peoples Pooled Budget,Locality Tm Cherwell,Temporary Staff (NJC Green Book),16717,Tempry Staff (NJC) Agency Staff,15.05.2015,4100012516,"1,244.40",3D Recruit Ltd
http://statistics.data.gov.uk/id/local-authority/38,Oxfordshire County Council,Children's Social Care,Family support N'th2,Temporary Staff (NJC Green Book),16717,Tempry Staff (NJC) Agency Staff,22.05.2015,4100012684,"1,595.29",3D Recruit Ltd
http://statistics.data.gov.uk/id/local-authority/38,Oxfordshire County Council,Schools,Nursery Educ. Grant,Voluntary Associations,55300,Fees to Centres Playgroups,14.05.2015,7000014139,643.50,A B C Nursery
http://statistics.data.gov.uk/id/local-authority/38,Oxfordshire County Council,Law & Culture,Legal Services,Expenses,46500,Legal Fees & Exp,06.05.2015,4100004346,810.00,A Collinson
http://statistics.data.gov.uk/id/local-authority/38,Oxfordshire County Council,Law & Culture,Legal Services,Expenses,46500,Legal Fees & Exp,05.05.2015,4100005530,810.00,A Leong
http://statistics.data.gov.uk/id/local-authority/38,Oxfordshire County Council,Commercial Services,Zone 1 - North,Contract Hire/Leasing,33101,Home to School Trans,26.05.2015,7000019099,578.40,A2B Castle Cars Ltd
http://statistics.data.gov.uk/id/local-authority/38,Oxfordshire County Council,Commercial Services,Zone 1 - North,Contract Hire/Leasing,33101,Home to School Trans,26.05.2015,7000019101,798.00,A2B Castle Cars Ltd
http://statistics.data.gov.uk/id/local-authority/38,Oxfordshire County Council,Oxfordshire Customer Services,Resourcing Team,Services,44500,Other Hired & Contract Services,22.05.2015,4100010178,"6,600.00",Abacus e-Media Ltd
http://statistics.data.gov.uk/id/local-authority/38,Oxfordshire County Council,Control Accounts,Control Account Trojan Residential Care,Balance Sheet General,B2040,ABACUS Accounts Payable Control A/c,13.05.2015,7000008073,"16,873.11",Abbey Crest Nursing Home
http://statistics.data.gov.uk/id/local-authority/38,Oxfordshire County Council,Control Accounts,Control Account Trojan Residential Care,Balance Sheet General,B2040,ABACUS Accounts Payable Control A/c,13.05.2015,7000010826,"40,799.38",Abbey Crest Nursing Home
http://statistics.data.gov.uk/id/local-authority/38,Oxfordshire County Council,Control Accounts,Control Account Trojan Residential Care,Balance Sheet General,B2040,ABACUS Accounts Payable Control A/c,13.05.2015,7000013398,"126,258.86",Abbey Crest Nursing Home
http://statistics.data.gov.uk/id/local-authority/38,Oxfordshire County Council,Education & Early Intervention,SEN Delegation,Other Committees of the Council,51350,Devolved Funding to Schools,14.05.2015,3300011803,"5,164.68",Abbey Woods Academy
http://statistics.data.gov.uk/id/local-authority/38,Oxfordshire County Council,Older Peoples Pooled Budget,CSB - Banbury,Other Agency and Contracted Services,57300,Home Support (Ext) OS&HCD,05.05.2015,4100008616,"41,244.00",Abicare Services Ltd (Homecare)
http://statistics.data.gov.uk/id/local-authority/38,Oxfordshire County Council,Older Peoples Pooled Budget,CSB - County,Other Agency and Contracted Services,57300,Home Support (Ext) OS&HCD,18.05.2015,4100012864,"28,950.90",Abicare Services Ltd (Homecare)
http://statistics.data.gov.uk/id/local-authority/38,Oxfordshire County Council,SCS Other Cost Centres,Home suppt trade a/c,Other Agency and Contracted Services,57300,Home Support (Ext) OS&HCD,06.05.2015,7000011574,"4,489.46",Abicare Services Ltd (Homecare)
http://statistics.data.gov.uk/id/local-authority/38,Oxfordshire County Council,SCS Other Cost Centres,Home suppt trade a/c,Other Agency and Contracted Services,57300,Home Support (Ext) OS&HCD,20.05.2015,7000015208,"2,188.97",Abicare Services Ltd (Homecare)
http://statistics.data.gov.uk/id/local-authority/38,Oxfordshire County Council,Children's Social Care,Ox Community Proj,Services,44500,Other Hired & Contract Services,06.05.2015,4100009774,"14,984.27",Abicare Services Ltd (Homecare)
http://statistics.data.gov.uk/id/local-authority/38,Oxfordshire County Council,Older Peoples Pooled Budget,Crisis Response,Voluntary Associations,55400,Service Agreements-A,28.05.2015,4100015748,"28,507.48",Abicare Services Ltd (Homecare)
http://statistics.data.gov.uk/id/local-authority/38,Oxfordshire County Council,Joint Commissioning,Service Redevelopmt,Services,44500,Other Hired & Contract Services,12.05.2015,4100011003,"12,314.88",Ability Housing Association
http://statistics.data.gov.uk/id/local-authority/38,Oxfordshire County Council,Joint Commissioning,Service Redevelopmt,Services,44500,Other Hired & Contract Services,14.05.2015,4100011008,"12,314.16",Ability Housing Association
http://statistics.data.gov.uk/id/local-authority/38,Oxfordshire County Council,Joint Commissioning,Service Redevelopmt,Services,44500,Other Hired & Contract Services,14.05.2015,4100011011,"4,104.72",Ability Housing Association
http://statistics.data.gov.uk/id/local-authority/38,Oxfordshire County Council,Education & Early Intervention,FY Workforce Devlpmn,"Equipment, Furniture and Materials",41515,Educational Visits,01.05.2015,4100008441,572.00,Abingdon and Witney College
http://statistics.data.gov.uk/id/local-authority/38,Oxfordshire County Council,Education & Early Intervention,Quality funded 2yr o,Grants and Subscriptions,47150,Grants to Individuals,14.05.2015,3300005533,500.00,Abingdon Little Angels
http://statistics.data.gov.uk/id/local-authority/38,Oxfordshire County Council,Public Health,Contraception,Private Contractors,56405,General Practice Services,01.05.2015,7000010627,"1,487.50",Abingdon Surgery
http://statistics.data.gov.uk/id/local-authority/38,Oxfordshire County Council,Public Health,NHS HealthCheck Prog,Private Contractors,56405,General Practice Services,14.05.2015,7000013964,"2,181.00",Abingdon Surgery
http://statistics.data.gov.uk/id/local-authority/38,Oxfordshire County Council,Public Health,NHS HealthCheck Prog,Private Contractors,56405,General Practice Services,14.05.2015,7000014022,"1,650.00",Abingdon Surgery
http://statistics.data.gov.uk/id/local-authority/38,Oxfordshire County Council,Commercial Services,Abingdon SEN Trans,Contract Hire/Leasing,33101,Home to School Trans,08.05.2015,7000012360,"1,853.51",Abingdon Taxis FKN Autotaxis
http://statistics.data.gov.uk/id/local-authority/38,Oxfordshire County Council,Commercial Services,Abingdon SEN Trans,Contract Hire/Leasing,33101,Home to School Trans,08.05.2015,7000012363,767.41,Abingdon Taxis FKN Autotaxis
http://statistics.data.gov.uk/id/local-authority/38,Oxfordshire County Council,Commercial Services,Abingdon SEN Trans,Contract Hire/Leasing,33101,Home to School Trans,08.05.2015,7000012364,679.39,Abingdon Taxis FKN Autotaxis
http://statistics.data.gov.uk/id/local-authority/38,Oxfordshire County Council,Commercial Services,Oxford Sth SEN Trans,Contract Hire/Leasing,33101,Home to School Trans,08.05.2015,7000012365,"2,940.84",Abingdon Taxis FKN Autotaxis
http://statistics.data.gov.uk/id/local-authority/38,Oxfordshire County Council,Commercial Services,Oxford Sth SEN Trans,Contract Hire/Leasing,33101,Home to School Trans,08.05.2015,7000012367,"1,735.03",Abingdon Taxis FKN Autotaxis
http://statistics.data.gov.uk/id/local-authority/38,Oxfordshire County Council,Commercial Services,Wantage SEN Trans,Contract Hire/Leasing,33101,Home to School Trans,08.05.2015,7000012370,"2,394.00",Abingdon Taxis FKN Autotaxis
http://statistics.data.gov.uk/id/local-authority/38,Oxfordshire County Council,Children's Social Care,Transport costs,Contract Hire/Leasing,33101,Home to School Trans,20.05.2015,7000016026,924.00,Abingdon Taxis FKN Autotaxis
http://statistics.data.gov.uk/id/local-authority/38,Oxfordshire County Council,Children's Social Care,Transport costs,Contract Hire/Leasing,33101,Home to School Trans,20.05.2015,7000016032,540.00,Abingdon Taxis FKN Autotaxis
http://statistics.data.gov.uk/id/local-authority/38,Oxfordshire County Council,Commercial Services,Oxford Sth SEN Trans,Contract Hire/Leasing,33300,Transport (General),08.05.2015,7000012366,699.05,Abingdon Taxis FKN Autotaxis
http://statistics.data.gov.uk/id/local-authority/38,Oxfordshire County Council,Commercial Services,Wantage SEN Trans,Contract Hire/Leasing,33300,Transport (General),08.05.2015,7000012371,798.00,Abingdon Taxis FKN Autotaxis
http://statistics.data.gov.uk/id/local-authority/38,Oxfordshire County Council,Learning Disabilities Pooled Budget,PB LDSouth,Contract Hire/Leasing,33300,Transport (General),20.05.2015,7000016016,998.78,Abingdon Taxis FKN Autotaxis
http://statistics.data.gov.uk/id/local-authority/38,Oxfordshire County Council,Learning Disabilities Pooled Budget,PB LDSouth,Contract Hire/Leasing,33300,Transport (General),20.05.2015,7000016018,816.00,Abingdon Taxis FKN Autotaxis
http://statistics.data.gov.uk/id/local-authority/38,Oxfordshire County Council,Learning Disabilities Pooled Budget,PB LDSouth,Contract Hire/Leasing,33300,Transport (General),20.05.2015,7000016020,"1,173.60",Abingdon Taxis FKN Autotaxis
http://statistics.data.gov.uk/id/local-authority/38,Oxfordshire County Council,Learning Disabilities Pooled Budget,PB LDSouth,Contract Hire/Leasing,33300,Transport (General),20.05.2015,7000016022,"1,624.80",Abingdon Taxis FKN Autotaxis
http://statistics.data.gov.uk/id/local-authority/38,Oxfordshire County Council,Learning Disabilities Pooled Budget,PB LDSouth,Contract Hire/Leasing,33300,Transport (General),20.05.2015,7000016024,721.75,Abingdon Taxis FKN Autotaxis
http://statistics.data.gov.uk/id/local-authority/38,Oxfordshire County Council,Children's Social Care,Transport costs,Contract Hire/Leasing,33300,Transport (General),20.05.2015,7000016027,504.00,Abingdon Taxis FKN Autotaxis
http://statistics.data.gov.uk/id/local-authority/38,Oxfordshire County Council,Learning Disabilities Pooled Budget,PB LDSouth,Contract Hire/Leasing,33300,Transport (General),20.05.2015,7000016030,"1,048.80",Abingdon Taxis FKN Autotaxis
http://statistics.data.gov.uk/id/local-authority/38,Oxfordshire County Council,Commercial Services,On St Park Abingdon,Private Contractors,56400,Major Contracts,19.05.2015,4100013056,"13,059.61",Abingdon Town Council
http://statistics.data.gov.uk/id/local-authority/38,Oxfordshire County Council,Control Accounts,Control Account Trojan Residential Care,Balance Sheet General,B2040,ABACUS Accounts Payable Control A/c,13.05.2015,7000013400,"63,579.86",Acacia Lodge Care Home
http://statistics.data.gov.uk/id/local-authority/38,Oxfordshire County Council,Oxfordshire Customer Services,Soc&Health Care Team,Temporary Staff (NJC Green Book),16717,Tempry Staff (NJC) Agency Staff,29.05.2015,4100016090,"3,351.60",Access Independent Limited
http://statistics.data.gov.uk/id/local-authority/38,Oxfordshire County Council,Commercial Services,Zone 2 - East,Contract Hire/Leasing,33101,Home to School Trans,14.05.2015,7000012742,504.00,Ace Taxis (West Oxfordshire) Ltd
http://statistics.data.gov.uk/id/local-authority/38,Oxfordshire County Council,Commercial Services,Zone 3 - West,Contract Hire/Leasing,33101,Home to School Trans,14.05.2015,7000012743,924.00,Ace Taxis (West Oxfordshire) Ltd
http://statistics.data.gov.uk/id/local-authority/38,Oxfordshire County Council,Commercial Services,Zone 3 - West,Contract Hire/Leasing,33101,Home to School Trans,14.05.2015,7000012744,620.10,Ace Taxis (West Oxfordshire) Ltd
http://statistics.data.gov.uk/id/local-authority/38,Oxfordshire County Council,Commercial Services,Zone 3 - West,Contract Hire/Leasing,33101,Home to School Trans,14.05.2015,7000012745,886.20,Ace Taxis (West Oxfordshire) Ltd
http://statistics.data.gov.uk/id/local-authority/38,Oxfordshire County Council,Commercial Services,Zone 3 - West,Contract Hire/Leasing,33101,Home to School Trans,14.05.2015,7000012746,"1,166.10",Ace Taxis (West Oxfordshire) Ltd
http://statistics.data.gov.uk/id/local-authority/38,Oxfordshire County Council,Commercial Services,Meadowbrook Transprt,Contract Hire/Leasing,33300,Transport (General),14.05.2015,7000011885,690.00,Ace Taxis (West Oxfordshire) Ltd
http://statistics.data.gov.uk/id/local-authority/38,Oxfordshire County Council,Strategy & Infrastructure Planning,TVERC,Services,44500,Other Hired & Contract Services,22.05.2015,4100010372,"1,036.80",Acorn Ecology Ltd
http://statistics.data.gov.uk/id/local-authority/38,Oxfordshire County Council,Older Peoples Pooled Budget,Discharge to Assess,Other Agency and Contracted Services,57300,Home Support (Ext) OS&HCD,08.05.2015,4100010211,675.00,Acquire Care Ltd
http://statistics.data.gov.uk/id/local-authority/38,Oxfordshire County Council,SCS Other Cost Centres,Home suppt trade a/c,Other Agency and Contracted Services,57300,Home Support (Ext) OS&HCD,06.05.2015,7000011575,"46,261.70",Acquire Care Ltd
http://statistics.data.gov.uk/id/local-authority/38,Oxfordshire County Council,SCS Other Cost Centres,Home suppt trade a/c,Other Agency and Contracted Services,57300,Home Support (Ext) OS&HCD,20.05.2015,7000015209,"17,294.56",Acquire Care Ltd
http://statistics.data.gov.uk/id/local-authority/38,Oxfordshire County Council,Older Peoples Pooled Budget,OPPB Fast Track,Other Agency and Contracted Services,57304,Home Support (Ext) Palliative Care,18.05.2015,3350000732,"3,640.00",Acquire Care Ltd
http://statistics.data.gov.uk/id/local-authority/38,Oxfordshire County Council,Older Peoples Pooled Budget,SA - Carers,Voluntary Associations,55400,Service Agreements-A,07.05.2015,4100009831,"222,720.00",Action for Carers
http://statistics.data.gov.uk/id/local-authority/38,Oxfordshire County Council,Education & Early Intervention,Erly Intervntn & Dev,Voluntary Associations,55000,Voluntary Associatio,26.05.2015,4100014871,"184,203.75",Action for Children
http://statistics.data.gov.uk/id/local-authority/38,Oxfordshire County Council,Public Health,Residential Treatmen,Miscellaneous Expenses,48700,Recharge Internal Supplies & Services Costs,27.05.2015,4100015573,864.00,Action on Addiction
http://statistics.data.gov.uk/id/local-authority/38,Oxfordshire County Council,Control Accounts,Control Account Trojan Residential Care,Balance Sheet General,B2040,ABACUS Accounts Payable Control A/c,13.05.2015,7000013401,"17,939.74",Action on Hearing Loss
http://statistics.data.gov.uk/id/local-authority/38,Oxfordshire County Council,Strategy & Infrastructure Planning,City Deal Skills,Services,44500,Other Hired & Contract Services,07.05.2015,4100009944,"8,000.00",Activate Learning
http://statistics.data.gov.uk/id/local-authority/38,Oxfordshire County Council,Children's Social Care,Mainstream Res,Other Agency and Contracted Services,57710,Children's Homes,11.05.2015,4100010481,"11,071.34",Active 8 Care Ltd
http://statistics.data.gov.uk/id/local-authority/38,Oxfordshire County Council,Children's Social Care,Mainstream Res,Social Services Client Expenditure,44603,Personal Needs,19.05.2015,4100013057,600.00,Active 8 Care Ltd
http://statistics.data.gov.uk/id/local-authority/38,Oxfordshire County Council,Physical Disabilities Pooled Budget,PDPB ContCare H Supp,Other Agency and Contracted Services,57302,Home Support (Ext) Continuing Care,01.05.2015,3350000513,"1,540.57",Active Assistance
http://statistics.data.gov.uk/id/local-authority/38,Oxfordshire County Council,Physical Disabilities Pooled Budget,PDPB ContCare H Supp,Other Agency and Contracted Services,57302,Home Support (Ext) Continuing Care,11.05.2015,3350000583,"1,553.08",Active Assistance
http://statistics.data.gov.uk/id/local-authority/38,Oxfordshire County Council,Physical Disabilities Pooled Budget,PDPB ContCare H Supp,Other Agency and Contracted Services,57302,Home Support (Ext) Continuing Care,15.05.2015,3350000716,"1,247.16",Active Assistance
http://statistics.data.gov.uk/id/local-authority/38,Oxfordshire County Council,Physical Disabilities Pooled Budget,PDPB ContCare H Supp,Other Agency and Contracted Services,57302,Home Support (Ext) Continuing Care,28.05.2015,3350000774,"1,553.08",Active Assistance
http://statistics.data.gov.uk/id/local-authority/38,Oxfordshire County Council,Physical Disabilities Pooled Budget,PDPB ContCare H Supp,Other Agency and Contracted Services,57302,Home Support (Ext) Continuing Care,27.05.2015,3350000899,"1,553.08",Active Assistance
http://statistics.data.gov.uk/id/local-authority/38,Oxfordshire County Council,Oxfordshire Customer Services,FBS - City,Services,44500,Other Hired & Contract Services,14.05.2015,4100010778,529.15,Active Education and Training Ltd
http://statistics.data.gov.uk/id/local-authority/38,Oxfordshire County Council,Oxfordshire Customer Services,EFA (Expenditure),Services,44500,Other Hired & Contract Services,21.05.2015,4100014191,"12,095.08",Active Education and Training Ltd
http://statistics.data.gov.uk/id/local-authority/38,Oxfordshire County Council,Public Health,Residential Treatmen,Miscellaneous Expenses,48700,Recharge Internal Supplies & Services Costs,19.05.2015,4100013049,900.00,Addiction Recovery Centre
http://statistics.data.gov.uk/id/local-authority/38,Oxfordshire County Council,Public Health,Residential Treatmen,Miscellaneous Expenses,48700,Recharge Internal Supplies & Services Costs,19.05.2015,4100013051,"1,822.86",Addiction Recovery Centre
http://statistics.data.gov.uk/id/local-authority/38,Oxfordshire County Council,Education & Early Intervention,Out of County,Other Agency and Contracted Services,57800,Other Agency Payment,13.05.2015,4100008402,"1,584.02",Addington School
http://statistics.data.gov.uk/id/local-authority/38,Oxfordshire County Council,Education & Early Intervention,Out of County,Other Agency and Contracted Services,57800,Other Agency Payment,13.05.2015,4100008402,"1,584.03",Addington School
http://statistics.data.gov.uk/id/local-authority/38,Oxfordshire County Council,Control Accounts,Control Account Trojan Residential Care,Balance Sheet General,B2040,ABACUS Accounts Payable Control A/c,13.05.2015,7000013402,"41,193.10",Advance Housing & Support Ltd
http://statistics.data.gov.uk/id/local-authority/38,Oxfordshire County Council,Control Accounts,Control Account Trojan Residential Care,Balance Sheet General,B2040,ABACUS Accounts Payable Control A/c,13.05.2015,7000013403,"12,180.54",Advance Housing & Support Ltd
http://statistics.data.gov.uk/id/local-authority/38,Oxfordshire County Council,Community Safety,Gypsy & Traveller Sv,Services,44500,Other Hired & Contract Services,28.05.2015,4100015788,705.60,Advanced Pest Control Ltd
http://statistics.data.gov.uk/id/local-authority/38,Oxfordshire County Council,Strategy & Infrastructure Planning,R & A Staff & Ops,Services,44200,Consultants Fees,12.05.2015,4100007487,"7,489.43",AECOM Infrastructure & Environment
http://statistics.data.gov.uk/id/local-authority/38,Oxfordshire County Council,Strategy & Infrastructure Planning,R & A Staff & Ops,Services,44200,Consultants Fees,12.05.2015,4100007487,"7,489.43",AECOM Infrastructure & Environment
http://statistics.data.gov.uk/id/local-authority/38,Oxfordshire County Council,Strategy & Infrastructure Planning,R & A Staff & Ops,Services,44200,Consultants Fees,12.05.2015,4100007487,"14,978.86",AECOM Infrastructure & Environment
http://statistics.data.gov.uk/id/local-authority/38,Oxfordshire County Council,Control Accounts,Control Account Trojan Residential Care,Balance Sheet General,B2040,ABACUS Accounts Payable Control A/c,13.05.2015,7000013404,"7,295.58",Affinity Trust
http://statistics.data.gov.uk/id/local-authority/38,Oxfordshire County Council,Community Safety,Bucks Gypsy &Trav Sv,WATER,25500,Water Charges,12.05.2015,4100010996,785.32,Affinity Water
http://statistics.data.gov.uk/id/local-authority/38,Oxfordshire County Council,Community Safety,Comm Fire Safety,Expenses,46510,Professional Fees,14.05.2015,4100012140,"1,000.00",Age UK Oxfordshire
http://statistics.data.gov.uk/id/local-authority/38,Oxfordshire County Council,Older Peoples Pooled Budget,Brokerage,Services,44500,Other Hired & Contract Services,05.05.2015,4100008601,"21,266.40",Age UK Oxfordshire
http://statistics.data.gov.uk/id/local-authority/38,Oxfordshire County Council,Community Safety,Trading Standards,Services,44500,Other Hired & Contract Services,28.05.2015,4100015914,"1,000.00",Age UK Oxfordshire
http://statistics.data.gov.uk/id/local-authority/38,Oxfordshire County Council,Older Peoples Pooled Budget,Ageing Successfully,Voluntary Associations,55400,Service Agreements-A,05.05.2015,4100008575,"11,169.00",Age UK Oxfordshire
http://statistics.data.gov.uk/id/local-authority/38,Oxfordshire County Council,Older Peoples Pooled Budget,Ageing Successfully,Voluntary Associations,55400,Service Agreements-A,05.05.2015,4100008576,"4,392.00",Age UK Oxfordshire
http://statistics.data.gov.uk/id/local-authority/38,Oxfordshire County Council,Older Peoples Pooled Budget,External Day Care,Voluntary Associations,55400,Service Agreements-A,05.05.2015,4100008577,"5,116.00",Age UK Oxfordshire
http://statistics.data.gov.uk/id/local-authority/38,Oxfordshire County Council,Older Peoples Pooled Budget,Ageing Successfully,Voluntary Associations,55400,Service Agreements-A,05.05.2015,4100008578,"12,384.00",Age UK Oxfordshire
http://statistics.data.gov.uk/id/local-authority/38,Oxfordshire County Council,Older Peoples Pooled Budget,External Day Care,Voluntary Associations,55400,Service Agreements-A,20.05.2015,4100013269,"99,781.00",Age UK Oxfordshire
http://statistics.data.gov.uk/id/local-authority/38,Oxfordshire County Council,Older Peoples Pooled Budget,External Day Care,Voluntary Associations,55400,Service Agreements-A,22.05.2015,4100014532,"14,977.00",Age UK Oxfordshire
http://statistics.data.gov.uk/id/local-authority/38,Oxfordshire County Council,Older Peoples Pooled Budget,External Day Care,Voluntary Associations,55400,Service Agreements-A,22.05.2015,4100014533,"18,000.00",Age UK Oxfordshire
http://statistics.data.gov.uk/id/local-authority/38,Oxfordshire County Council,Older Peoples Pooled Budget,External Day Care,Voluntary Associations,55400,Service Agreements-A,26.05.2015,4100014867,"69,636.00",Age UK Oxfordshire
http://statistics.data.gov.uk/id/local-authority/38,Oxfordshire County Council,Older Peoples Pooled Budget,External Day Care,Voluntary Associations,55400,Service Agreements-A,26.05.2015,4100014868,"127,812.00",Age UK Oxfordshire
http://statistics.data.gov.uk/id/local-authority/38,Oxfordshire County Council,Older Peoples Pooled Budget,External Day Care,Voluntary Associations,55400,Service Agreements-A,26.05.2015,4100014869,"144,858.00",Age UK Oxfordshire
http://statistics.data.gov.uk/id/local-authority/38,Oxfordshire County Council,Older Peoples Pooled Budget,External Day Care,Voluntary Associations,55400,Service Agreements-A,26.05.2015,4100014870,"9,500.00",Age UK Oxfordshire
http://statistics.data.gov.uk/id/local-authority/38,Oxfordshire County Council,Commercial Services,Composting,Private Contractors,56604,WCA Green Waste Comp,19.05.2015,4100013078,"23,533.01",Agrivert (Ardley) Limited
http://statistics.data.gov.uk/id/local-authority/38,Oxfordshire County Council,Commercial Services,Composting,Private Contractors,56604,WCA Green Waste Comp,19.05.2015,4100013081,"16,059.18",Agrivert (Ardley) Limited
http://statistics.data.gov.uk/id/local-authority/38,Oxfordshire County Council,Commercial Services,Composting,Private Contractors,56605,F&GW Treatment,12.05.2015,4100010673,"14,460.52",Agrivert (Biogas) Limited
http://statistics.data.gov.uk/id/local-authority/38,Oxfordshire County Council,Commercial Services,Composting,Private Contractors,56605,F&GW Treatment,19.05.2015,4100013083,"17,420.90",Agrivert (Biogas) Limited
http://statistics.data.gov.uk/id/local-authority/38,Oxfordshire County Council,Public Health,GP + Pharmacy Servs,Private Contractors,56406,Pharmaceutical Services,07.05.2015,7000012058,"1,008.00",Ahmeys Pharmacy
http://statistics.data.gov.uk/id/local-authority/38,Oxfordshire County Council,Commercial Services,Banbury SEN Trans,Contract Hire/Leasing,33101,Home to School Trans,14.05.2015,7000012347,"1,864.80",Airport Transfers Banbury Ltd
http://statistics.data.gov.uk/id/local-authority/38,Oxfordshire County Council,Commercial Services,Zone 2 - East,Contract Hire/Leasing,33101,Home to School Trans,14.05.2015,7000012348,764.40,Airport Transfers Banbury Ltd
http://statistics.data.gov.uk/id/local-authority/38,Oxfordshire County Council,Commercial Services,Zone 2 - East,Contract Hire/Leasing,33101,Home to School Trans,14.05.2015,7000012349,963.98,Airport Transfers Banbury Ltd
http://statistics.data.gov.uk/id/local-authority/38,Oxfordshire County Council,Commercial Services,Zone 1 - North,Contract Hire/Leasing,33101,Home to School Trans,14.05.2015,7000012350,"1,159.20",Airport Transfers Banbury Ltd
http://statistics.data.gov.uk/id/local-authority/38,Oxfordshire County Council,Commercial Services,Zone 2 - East,Contract Hire/Leasing,33101,Home to School Trans,14.05.2015,7000012351,"1,248.74",Airport Transfers Banbury Ltd
http://statistics.data.gov.uk/id/local-authority/38,Oxfordshire County Council,Commercial Services,Zone 1 - North,Contract Hire/Leasing,33101,Home to School Trans,14.05.2015,7000012352,"1,014.00",Airport Transfers Banbury Ltd
http://statistics.data.gov.uk/id/local-authority/38,Oxfordshire County Council,Commercial Services,Bicester SEN Trans,Contract Hire/Leasing,33101,Home to School Trans,14.05.2015,7000012353,"2,688.00",Airport Transfers Banbury Ltd
http://statistics.data.gov.uk/id/local-authority/38,Oxfordshire County Council,Commercial Services,Banbury SEN Trans,Contract Hire/Leasing,33101,Home to School Trans,14.05.2015,7000012355,504.00,Airport Transfers Banbury Ltd
http://statistics.data.gov.uk/id/local-authority/38,Oxfordshire County Council,Commercial Services,Oxford Nth SEN Trans,Contract Hire/Leasing,33101,Home to School Trans,06.05.2015,7000010801,"2,174.26",AKR Ltd
http://statistics.data.gov.uk/id/local-authority/38,Oxfordshire County Council,Commercial Services,Wantage SEN Trans,Contract Hire/Leasing,33101,Home to School Trans,06.05.2015,7000010803,"2,335.20",AKR Ltd
http://statistics.data.gov.uk/id/local-authority/38,Oxfordshire County Council,Commercial Services,Oxford Nth SEN Trans,Contract Hire/Leasing,33101,Home to School Trans,06.05.2015,7000010804,"2,352.00",AKR Ltd
http://statistics.data.gov.uk/id/local-authority/38,Oxfordshire County Council,Commercial Services,Oxford Nth SEN Trans,Contract Hire/Leasing,33101,Home to School Trans,06.05.2015,7000010806,"1,848.00",AKR Ltd
http://statistics.data.gov.uk/id/local-authority/38,Oxfordshire County Council,Commercial Services,Zone 2 - East,Contract Hire/Leasing,33101,Home to School Trans,06.05.2015,7000010808,"2,654.23",AKR Ltd
http://statistics.data.gov.uk/id/local-authority/38,Oxfordshire County Council,Commercial Services,Zone 2 - East,Contract Hire/Leasing,33101,Home to School Trans,06.05.2015,7000010809,"2,453.47",AKR Ltd
http://statistics.data.gov.uk/id/local-authority/38,Oxfordshire County Council,Commercial Services,Zone 2 - East,Contract Hire/Leasing,33101,Home to School Trans,06.05.2015,7000010810,"1,293.60",AKR Ltd
http://statistics.data.gov.uk/id/local-authority/38,Oxfordshire County Council,Commercial Services,Zone 4 - Vale,Contract Hire/Leasing,33101,Home to School Trans,06.05.2015,7000010811,"2,100.00",AKR Ltd
http://statistics.data.gov.uk/id/local-authority/38,Oxfordshire County Council,Commercial Services,Oxford Nth SEN Trans,Contract Hire/Leasing,33101,Home to School Trans,06.05.2015,7000010812,"2,065.22",AKR Ltd
http://statistics.data.gov.uk/id/local-authority/38,Oxfordshire County Council,Commercial Services,Oxford Nth SEN Trans,Contract Hire/Leasing,33101,Home to School Trans,06.05.2015,7000010813,"2,946.67",AKR Ltd
http://statistics.data.gov.uk/id/local-authority/38,Oxfordshire County Council,Commercial Services,Oxford Nth SEN Trans,Contract Hire/Leasing,33101,Home to School Trans,06.05.2015,7000010815,"1,676.98",AKR Ltd
http://statistics.data.gov.uk/id/local-authority/38,Oxfordshire County Council,Commercial Services,Respite Care,Contract Hire/Leasing,33101,Home to School Trans,06.05.2015,7000010866,744.00,AKR Ltd
http://statistics.data.gov.uk/id/local-authority/38,Oxfordshire County Council,Commercial Services,Oxford Sth SEN Trans,Contract Hire/Leasing,33101,Home to School Trans,08.05.2015,7000012339,"1,774.58",AKR Ltd
http://statistics.data.gov.uk/id/local-authority/38,Oxfordshire County Council,Commercial Services,Zone 3 - West,Contract Hire/Leasing,33101,Home to School Trans,08.05.2015,7000012343,"1,344.00",AKR Ltd
http://statistics.data.gov.uk/id/local-authority/38,Oxfordshire County Council,Commercial Services,Oxford Nth SEN Trans,Contract Hire/Leasing,33101,Home to School Trans,28.05.2015,7000021263,"1,795.86",AKR Ltd
http://statistics.data.gov.uk/id/local-authority/38,Oxfordshire County Council,Commercial Services,Oxford Nth SEN Trans,Contract Hire/Leasing,33101,Home to School Trans,28.05.2015,7000021265,"2,329.56",AKR Ltd
http://statistics.data.gov.uk/id/local-authority/38,Oxfordshire County Council,Commercial Services,Oxford Nth SEN Trans,Contract Hire/Leasing,33101,Home to School Trans,28.05.2015,7000021267,"3,174.12",AKR Ltd
http://statistics.data.gov.uk/id/local-authority/38,Oxfordshire County Council,Commercial Services,Oxford Nth SEN Trans,Contract Hire/Leasing,33101,Home to School Trans,28.05.2015,7000021269,"2,212.74",AKR Ltd
http://statistics.data.gov.uk/id/local-authority/38,Oxfordshire County Council,Commercial Services,Zone 2 - East,Contract Hire/Leasing,33101,Home to School Trans,28.05.2015,7000021271,"1,386.00",AKR Ltd
http://statistics.data.gov.uk/id/local-authority/38,Oxfordshire County Council,Commercial Services,Zone 4 - Vale,Contract Hire/Leasing,33101,Home to School Trans,28.05.2015,7000021272,"2,250.00",AKR Ltd
http://statistics.data.gov.uk/id/local-authority/38,Oxfordshire County Council,Commercial Services,Zone 3 - West,Contract Hire/Leasing,33101,Home to School Trans,28.05.2015,7000021273,"1,440.00",AKR Ltd
http://statistics.data.gov.uk/id/local-authority/38,Oxfordshire County Council,Commercial Services,Zone 2 - East,Contract Hire/Leasing,33101,Home to School Trans,28.05.2015,7000021274,"2,843.82",AKR Ltd
http://statistics.data.gov.uk/id/local-authority/38,Oxfordshire County Council,Commercial Services,Zone 2 - East,Contract Hire/Leasing,33101,Home to School Trans,28.05.2015,7000021275,"2,628.72",AKR Ltd
http://statistics.data.gov.uk/id/local-authority/38,Oxfordshire County Council,Commercial Services,Oxford Nth SEN Trans,Contract Hire/Leasing,33101,Home to School Trans,28.05.2015,7000021276,"1,980.00",AKR Ltd
http://statistics.data.gov.uk/id/local-authority/38,Oxfordshire County Council,Commercial Services,Oxford Nth SEN Trans,Contract Hire/Leasing,33101,Home to School Trans,28.05.2015,7000021278,"2,520.00",AKR Ltd
http://statistics.data.gov.uk/id/local-authority/38,Oxfordshire County Council,Commercial Services,Wantage SEN Trans,Contract Hire/Leasing,33101,Home to School Trans,28.05.2015,7000021280,"2,502.00",AKR Ltd
http://statistics.data.gov.uk/id/local-authority/38,Oxfordshire County Council,Commercial Services,Oxford Sth SEN Trans,Contract Hire/Leasing,33101,Home to School Trans,28.05.2015,7000021319,"1,901.34",AKR Ltd
http://statistics.data.gov.uk/id/local-authority/38,Oxfordshire County Council,Commercial Services,Oxford Nth SEN Trans,Contract Hire/Leasing,33300,Transport (General),06.05.2015,7000010802,504.00,AKR Ltd
http://statistics.data.gov.uk/id/local-authority/38,Oxfordshire County Council,Commercial Services,Oxford Nth SEN Trans,Contract Hire/Leasing,33300,Transport (General),06.05.2015,7000010805,672.00,AKR Ltd
http://statistics.data.gov.uk/id/local-authority/38,Oxfordshire County Council,Commercial Services,Oxford Nth SEN Trans,Contract Hire/Leasing,33300,Transport (General),06.05.2015,7000010807,504.00,AKR Ltd
http://statistics.data.gov.uk/id/local-authority/38,Oxfordshire County Council,Commercial Services,Oxford Nth SEN Trans,Contract Hire/Leasing,33300,Transport (General),06.05.2015,7000010814,613.82,AKR Ltd
http://statistics.data.gov.uk/id/local-authority/38,Oxfordshire County Council,Commercial Services,Oxford Sth SEN Trans,Contract Hire/Leasing,33300,Transport (General),08.05.2015,7000012340,539.11,AKR Ltd
http://statistics.data.gov.uk/id/local-authority/38,Oxfordshire County Council,Commercial Services,Oxford Nth SEN Trans,Contract Hire/Leasing,33300,Transport (General),28.05.2015,7000021266,540.00,AKR Ltd
http://statistics.data.gov.uk/id/local-authority/38,Oxfordshire County Council,Commercial Services,Oxford Nth SEN Trans,Contract Hire/Leasing,33300,Transport (General),28.05.2015,7000021268,666.24,AKR Ltd
http://statistics.data.gov.uk/id/local-authority/38,Oxfordshire County Council,Commercial Services,Oxford Sth SEN Trans,Contract Hire/Leasing,33300,Transport (General),28.05.2015,7000021270,577.62,AKR Ltd
http://statistics.data.gov.uk/id/local-authority/38,Oxfordshire County Council,Commercial Services,Oxford Nth SEN Trans,Contract Hire/Leasing,33300,Transport (General),28.05.2015,7000021277,540.00,AKR Ltd
http://statistics.data.gov.uk/id/local-authority/38,Oxfordshire County Council,Commercial Services,Oxford Nth SEN Trans,Contract Hire/Leasing,33300,Transport (General),28.05.2015,7000021279,720.00,AKR Ltd
http://statistics.data.gov.uk/id/local-authority/38,Oxfordshire County Council,Strategy & Infrastructure Planning,OISP,Services,44500,Other Hired & Contract Services,26.05.2015,4100012255,"7,417.93",Alcium Software Ltd
http://statistics.data.gov.uk/id/local-authority/38,Oxfordshire County Council,Law & Culture,Legal Services,Expenses,46500,Legal Fees & Exp,22.05.2015,4100014668,"2,520.00",Alex Line
http://statistics.data.gov.uk/id/local-authority/38,Oxfordshire County Council,Law & Culture,Legal Services,Expenses,46500,Legal Fees & Exp,22.05.2015,4100014774,"2,220.00",Alex Perry
http://statistics.data.gov.uk/id/local-authority/38,Oxfordshire County Council,Education & Early Intervention,Sc. Imp. Fund,Other Committees of the Council,51204,Non Currlm Oth Prof Serv,12.05.2015,4100010831,960.00,Alkemygold Ltd
http://statistics.data.gov.uk/id/local-authority/38,Oxfordshire County Council,STD Pension Fund,Pension Fund Investm,Pension Fund Revenue,PR359,Investment - Advisors fees & expenses,15.05.2015,4100000775,"5,151.50",AllenbridgeEpic Investment Advisers
http://statistics.data.gov.uk/id/local-authority/38,Oxfordshire County Council,Older Peoples Pooled Budget,CSB - Thame,Other Agency and Contracted Services,57300,Home Support (Ext) OS&HCD,05.05.2015,4100008930,"1,588.56",Allied Healthcare Group Ltd
http://statistics.data.gov.uk/id/local-authority/38,Oxfordshire County Council,Older Peoples Pooled Budget,CSB - Thame,Other Agency and Contracted Services,57300,Home Support (Ext) OS&HCD,21.05.2015,4100014261,529.52,Allied Healthcare Group Ltd
http://statistics.data.gov.uk/id/local-authority/38,Oxfordshire County Council,Older Peoples Pooled Budget,CSB - Thame,Other Agency and Contracted Services,57300,Home Support (Ext) OS&HCD,22.05.2015,4100014643,"1,323.80",Allied Healthcare Group Ltd
http://statistics.data.gov.uk/id/local-authority/38,Oxfordshire County Council,Older Peoples Pooled Budget,CSB - Thame,Other Agency and Contracted Services,57300,Home Support (Ext) OS&HCD,22.05.2015,4100014667,529.52,Allied Healthcare Group Ltd
http://statistics.data.gov.uk/id/local-authority/38,Oxfordshire County Council,Older Peoples Pooled Budget,CSB - Abingdon,Other Agency and Contracted Services,57300,Home Support (Ext) OS&HCD,26.05.2015,4100015048,689.71,Allied Healthcare Group Ltd
http://statistics.data.gov.uk/id/local-authority/38,Oxfordshire County Council,SCS Other Cost Centres,PB OP VALE,Other Agency and Contracted Services,57300,Home Support (Ext) OS&HCD,26.05.2015,4100015048,"1,227.44",Allied Healthcare Group Ltd
http://statistics.data.gov.uk/id/local-authority/38,Oxfordshire County Council,SCS Other Cost Centres,Home suppt trade a/c,Other Agency and Contracted Services,57300,Home Support (Ext) OS&HCD,06.05.2015,7000011573,"10,018.53",Allied Healthcare Group Ltd
http://statistics.data.gov.uk/id/local-authority/38,Oxfordshire County Council,SCS Other Cost Centres,Home suppt trade a/c,Other Agency and Contracted Services,57300,Home Support (Ext) OS&HCD,20.05.2015,7000015207,756.68,Allied Healthcare Group Ltd
http://statistics.data.gov.uk/id/local-authority/38,Oxfordshire County Council,Community Safety,Procurement,Direct Transport Costs,31301,Vehicle Fuel,06.05.2015,4100008547,"1,632.86",Allstar Business Solutions Ltd
http://statistics.data.gov.uk/id/local-authority/38,Oxfordshire County Council,Community Safety,Procurement,Direct Transport Costs,31301,Vehicle Fuel,14.05.2015,4100012088,875.34,Allstar Business Solutions Ltd
http://statistics.data.gov.uk/id/local-authority/38,Oxfordshire County Council,Community Safety,Procurement,Direct Transport Costs,31301,Vehicle Fuel,15.05.2015,4100012089,875.34,Allstar Business Solutions Ltd
http://statistics.data.gov.uk/id/local-authority/38,Oxfordshire County Council,Community Safety,Procurement,Direct Transport Costs,31301,Vehicle Fuel,22.05.2015,4100014728,809.90,Allstar Business Solutions Ltd
http://statistics.data.gov.uk/id/local-authority/38,Oxfordshire County Council,Community Safety,Procurement,Direct Transport Costs,31301,Vehicle Fuel,28.05.2015,4100015815,627.35,Allstar Business Solutions Ltd
http://statistics.data.gov.uk/id/local-authority/38,Oxfordshire County Council,Adult Social Care,County Print Finshrs,Communications and Computing,45800,IT Hardware,01.05.2015,4100008511,660.00,Alternative Communication Systems
http://statistics.data.gov.uk/id/local-authority/38,Oxfordshire County Council,Oxfordshire Customer Services,Strategy Investment,Communications and Computing,45800,IT Hardware,07.05.2015,4100008933,"1,035.60",Alternative Communication Systems
http://statistics.data.gov.uk/id/local-authority/38,Oxfordshire County Council,Older Peoples Pooled Budget,External Day Care,Other Agency and Contracted Services,57400,Day Care External Pr,21.05.2015,4100014383,660.00,Alzheimer's Society
http://statistics.data.gov.uk/id/local-authority/38,Oxfordshire County Council,Older Peoples Pooled Budget,CMPB Witney,Other Agency and Contracted Services,57300,Home Support (Ext) OS&HCD,13.05.2015,4100011111,"3,757.56",Amber Healthcare Personnel Ltd
http://statistics.data.gov.uk/id/local-authority/38,Oxfordshire County Council,SCS Other Cost Centres,Home suppt trade a/c,Other Agency and Contracted Services,57300,Home Support (Ext) OS&HCD,06.05.2015,7000011576,"31,198.93",Amber Healthcare Personnel Ltd
http://statistics.data.gov.uk/id/local-authority/38,Oxfordshire County Council,SCS Other Cost Centres,Home suppt trade a/c,Other Agency and Contracted Services,57300,Home Support (Ext) OS&HCD,20.05.2015,7000015210,"4,649.60",Amber Healthcare Personnel Ltd
http://statistics.data.gov.uk/id/local-authority/38,Oxfordshire County Council,Older Peoples Pooled Budget,CSB - Abingdon,Other Agency and Contracted Services,57300,Home Support (Ext) OS&HCD,20.05.2015,7000015902,"1,064.36",Amber Healthcare Personnel Ltd
http://statistics.data.gov.uk/id/local-authority/38,Oxfordshire County Council,Quality & Compliance,Capital Charges - Premises,Capital Expenditure,CCBA1,Other hired & contracted services - General,22.05.2015,4100014678,"4,266.00",AMEC Foster Wheeler Environment &
http://statistics.data.gov.uk/id/local-authority/38,Oxfordshire County Council,Quality & Compliance,Capital Charges - Premises,Capital Expenditure,CCBA1,Other hired & contracted services - General,26.05.2015,4100014974,"7,289.40",AMEC Foster Wheeler Environment &
http://statistics.data.gov.uk/id/local-authority/38,Oxfordshire County Council,Commercial Services,Procurement,Services,44200,Consultants Fees,28.05.2015,4100015786,648.25,AMEC Foster Wheeler Environment &
http://statistics.data.gov.uk/id/local-authority/38,Oxfordshire County Council,Oxfordshire Customer Services,SD Student,Grants and Subscriptions,47150,Grants to Individuals,06.05.2015,4100009109,"1,200.00",REDACTED PERSONAL DATA
http://statistics.data.gov.uk/id/local-authority/38,Oxfordshire County Council,Commercial Services,Oxford Nth SEN Trans,Contract Hire/Leasing,33101,Home to School Trans,05.05.2015,7000010795,"3,030.02",Ancil Services
http://statistics.data.gov.uk/id/local-authority/38,Oxfordshire County Council,Commercial Services,Abingdon SEN Trans,Contract Hire/Leasing,33101,Home to School Trans,05.05.2015,7000010797,"1,884.68",Ancil Services
http://statistics.data.gov.uk/id/local-authority/38,Oxfordshire County Council,Commercial Services,Oxford Nth SEN Trans,Contract Hire/Leasing,33300,Transport (General),05.05.2015,7000010796,656.18,Ancil Services
http://statistics.data.gov.uk/id/local-authority/38,Oxfordshire County Council,Law & Culture,Legal Services,Expenses,46500,Legal Fees & Exp,12.05.2015,4100006913,"2,700.00",Andrew Perfect
http://statistics.data.gov.uk/id/local-authority/38,Oxfordshire County Council,Law & Culture,Legal Services,Expenses,46500,Legal Fees & Exp,22.05.2015,4100014664,"1,260.00",Andrew Sheriff
http://statistics.data.gov.uk/id/local-authority/38,Oxfordshire County Council,Law & Culture,Legal Services,Expenses,46500,Legal Fees & Exp,29.05.2015,4100016107,600.00,Andrew Sheriff
http://statistics.data.gov.uk/id/local-authority/38,Oxfordshire County Council,Oxfordshire Customer Services,SD Student,Grants and Subscriptions,47150,Grants to Individuals,06.05.2015,4100009103,900.00,REDACTED PERSONAL DATA
http://statistics.data.gov.uk/id/local-authority/38,Oxfordshire County Council,Commercial Services,Zone 3 - West,Contract Hire/Leasing,33101,Home to School Trans,06.05.2015,7000010835,"2,080.12",Angela's Travel
http://statistics.data.gov.uk/id/local-authority/38,Oxfordshire County Council,Commercial Services,Zone 3 - West,Contract Hire/Leasing,33101,Home to School Trans,06.05.2015,7000010836,"2,080.12",Angela's Travel
http://statistics.data.gov.uk/id/local-authority/38,Oxfordshire County Council,Commercial Services,Zone 3 - West,Contract Hire/Leasing,33101,Home to School Trans,06.05.2015,7000010837,"1,392.58",Angela's Travel
http://statistics.data.gov.uk/id/local-authority/38,Oxfordshire County Council,Commercial Services,Zone 3 - West,Contract Hire/Leasing,33101,Home to School Trans,06.05.2015,7000010838,"1,745.10",Angela's Travel
http://statistics.data.gov.uk/id/local-authority/38,Oxfordshire County Council,Commercial Services,Oxford Nth SEN Trans,Contract Hire/Leasing,33101,Home to School Trans,06.05.2015,7000010839,624.00,Angela's Travel
http://statistics.data.gov.uk/id/local-authority/38,Oxfordshire County Council,Commercial Services,Oxford Nth SEN Trans,Contract Hire/Leasing,33101,Home to School Trans,12.05.2015,7000012586,"1,932.00",Angela's Travel
http://statistics.data.gov.uk/id/local-authority/38,Oxfordshire County Council,Commercial Services,Oxford Nth SEN Trans,Contract Hire/Leasing,33101,Home to School Trans,12.05.2015,7000012588,"1,280.50",Angela's Travel
http://statistics.data.gov.uk/id/local-authority/38,Oxfordshire County Council,Commercial Services,Oxford Nth SEN Trans,Contract Hire/Leasing,33101,Home to School Trans,12.05.2015,7000012590,"1,910.16",Angela's Travel
http://statistics.data.gov.uk/id/local-authority/38,Oxfordshire County Council,Commercial Services,Oxford Nth SEN Trans,Contract Hire/Leasing,33101,Home to School Trans,12.05.2015,7000012592,"1,075.20",Angela's Travel
http://statistics.data.gov.uk/id/local-authority/38,Oxfordshire County Council,Commercial Services,Witney SEN Trans,Contract Hire/Leasing,33101,Home to School Trans,12.05.2015,7000012595,"1,008.00",Angela's Travel
http://statistics.data.gov.uk/id/local-authority/38,Oxfordshire County Council,Commercial Services,Witney SEN Trans,Contract Hire/Leasing,33101,Home to School Trans,12.05.2015,7000012597,683.29,Angela's Travel
http://statistics.data.gov.uk/id/local-authority/38,Oxfordshire County Council,Commercial Services,Zone 3 - West,Contract Hire/Leasing,33101,Home to School Trans,12.05.2015,7000012599,664.94,Angela's Travel
http://statistics.data.gov.uk/id/local-authority/38,Oxfordshire County Council,Commercial Services,Oxford Nth SEN Trans,Contract Hire/Leasing,33101,Home to School Trans,12.05.2015,7000012600,"1,068.29",Angela's Travel
http://statistics.data.gov.uk/id/local-authority/38,Oxfordshire County Council,Community Safety,Operations,"Equipment, Furniture and Materials",40600,Operational Equipmen,12.05.2015,4100008557,"3,121.68",Angus Fire Ltd
http://statistics.data.gov.uk/id/local-authority/38,Oxfordshire County Council,Community Safety,Operations,"Equipment, Furniture and Materials",40600,Operational Equipmen,12.05.2015,4100008557,"3,199.68",Angus Fire Ltd
http://statistics.data.gov.uk/id/local-authority/38,Oxfordshire County Council,Schools,Nursery Educ. Grant,Voluntary Associations,55300,Fees to Centres Playgroups,14.05.2015,7000014138,643.50,Annabelles Nursery
http://statistics.data.gov.uk/id/local-authority/38,Oxfordshire County Council,Adult Social Care,MH Community Sup't,Other Agency and Contracted Services,57300,Home Support (Ext) OS&HCD,26.05.2015,3300014811,"1,009.96",REDACTED PERSONAL DATA
http://statistics.data.gov.uk/id/local-authority/38,Oxfordshire County Council,Education & Early Intervention,Hill End,Fixtures and Fittings,26200,Fixtures & Fittings,18.05.2015,4100007869,"36,015.36",Arch Leisure LLP
http://statistics.data.gov.uk/id/local-authority/38,Oxfordshire County Council,Commercial Services,CPG OAM,Services,44500,Other Hired & Contract Services,06.05.2015,4100002070,"4,111.15",Ardington Archives LLP
http://statistics.data.gov.uk/id/local-authority/38,Oxfordshire County Council,Commercial Services,CPG OAM,Services,44500,Other Hired & Contract Services,06.05.2015,4100002447,"3,945.06",Ardington Archives LLP
http://statistics.data.gov.uk/id/local-authority/38,Oxfordshire County Council,Commercial Services,CPG OAM,Services,44500,Other Hired & Contract Services,06.05.2015,4100009528,"3,945.06",Ardington Archives LLP
http://statistics.data.gov.uk/id/local-authority/38,Oxfordshire County Council,Commercial Services,CPG OAM,Services,44500,Other Hired & Contract Services,13.05.2015,4100011556,"3,945.06",Ardington Archives LLP
http://statistics.data.gov.uk/id/local-authority/38,Oxfordshire County Council,Oxfordshire Customer Services,Snr Leadership Team,Services,44500,Other Hired & Contract Services,15.05.2015,4100012542,538.50,Armstrong Education Ltd
http://statistics.data.gov.uk/id/local-authority/38,Oxfordshire County Council,Commercial Services,LDD After School Acc,Contract Hire/Leasing,33101,Home to School Trans,15.05.2015,7000014288,"1,061.00",Ash Cars (UK) Ltd
http://statistics.data.gov.uk/id/local-authority/38,Oxfordshire County Council,Commercial Services,Oxford Nth SEN Trans,Contract Hire/Leasing,33101,Home to School Trans,15.05.2015,7000014290,"2,655.24",Ash Cars (UK) Ltd
http://statistics.data.gov.uk/id/local-authority/38,Oxfordshire County Council,Commercial Services,Oxford Sth SEN Trans,Contract Hire/Leasing,33101,Home to School Trans,15.05.2015,7000014292,"3,688.94",Ash Cars (UK) Ltd
http://statistics.data.gov.uk/id/local-authority/38,Oxfordshire County Council,Commercial Services,Banbury SEN Trans,Contract Hire/Leasing,33101,Home to School Trans,15.05.2015,7000014294,"2,016.00",Ash Cars (UK) Ltd
http://statistics.data.gov.uk/id/local-authority/38,Oxfordshire County Council,Commercial Services,Oxford Sth SEN Trans,Contract Hire/Leasing,33101,Home to School Trans,15.05.2015,7000014296,"2,520.00",Ash Cars (UK) Ltd
http://statistics.data.gov.uk/id/local-authority/38,Oxfordshire County Council,Commercial Services,Oxford Nth SEN Trans,Contract Hire/Leasing,33101,Home to School Trans,15.05.2015,7000014298,"1,991.30",Ash Cars (UK) Ltd
http://statistics.data.gov.uk/id/local-authority/38,Oxfordshire County Council,Commercial Services,Oxford Sth SEN Trans,Contract Hire/Leasing,33101,Home to School Trans,15.05.2015,7000014301,"2,121.60",Ash Cars (UK) Ltd
http://statistics.data.gov.uk/id/local-authority/38,Oxfordshire County Council,Commercial Services,Oxford Sth SEN Trans,Contract Hire/Leasing,33101,Home to School Trans,15.05.2015,7000014304,"2,058.00",Ash Cars (UK) Ltd
http://statistics.data.gov.uk/id/local-authority/38,Oxfordshire County Council,Commercial Services,Oxford Nth SEN Trans,Contract Hire/Leasing,33101,Home to School Trans,15.05.2015,7000014305,"1,188.00",Ash Cars (UK) Ltd
http://statistics.data.gov.uk/id/local-authority/38,Oxfordshire County Council,Commercial Services,LDD After School Acc,Contract Hire/Leasing,33101,Home to School Trans,15.05.2015,7000014310,"2,546.40",Ash Cars (UK) Ltd
http://statistics.data.gov.uk/id/local-authority/38,Oxfordshire County Council,Commercial Services,Meadowbrook Transprt,Contract Hire/Leasing,33101,Home to School Trans,15.05.2015,7000014311,"2,058.00",Ash Cars (UK) Ltd
http://statistics.data.gov.uk/id/local-authority/38,Oxfordshire County Council,Commercial Services,FE Special Trans,Contract Hire/Leasing,33101,Home to School Trans,15.05.2015,7000014313,"2,091.60",Ash Cars (UK) Ltd
http://statistics.data.gov.uk/id/local-authority/38,Oxfordshire County Council,Commercial Services,Oxford Nth SEN Trans,Contract Hire/Leasing,33300,Transport (General),15.05.2015,7000014291,611.52,Ash Cars (UK) Ltd
http://statistics.data.gov.uk/id/local-authority/38,Oxfordshire County Council,Commercial Services,Oxford Sth SEN Trans,Contract Hire/Leasing,33300,Transport (General),15.05.2015,7000014293,509.54,Ash Cars (UK) Ltd
http://statistics.data.gov.uk/id/local-authority/38,Oxfordshire County Council,Commercial Services,Banbury SEN Trans,Contract Hire/Leasing,33300,Transport (General),15.05.2015,7000014295,504.00,Ash Cars (UK) Ltd
http://statistics.data.gov.uk/id/local-authority/38,Oxfordshire County Council,Commercial Services,Oxford Sth SEN Trans,Contract Hire/Leasing,33300,Transport (General),15.05.2015,7000014297,504.00,Ash Cars (UK) Ltd
http://statistics.data.gov.uk/id/local-authority/38,Oxfordshire County Council,Commercial Services,Oxford Nth SEN Trans,Contract Hire/Leasing,33300,Transport (General),15.05.2015,7000014299,544.99,Ash Cars (UK) Ltd
http://statistics.data.gov.uk/id/local-authority/38,Oxfordshire County Council,Commercial Services,Oxford Sth SEN Trans,Contract Hire/Leasing,33300,Transport (General),15.05.2015,7000014302,655.20,Ash Cars (UK) Ltd
http://statistics.data.gov.uk/id/local-authority/38,Oxfordshire County Council,Commercial Services,FE Special Trans,Contract Hire/Leasing,33300,Transport (General),15.05.2015,7000014314,604.80,Ash Cars (UK) Ltd
http://statistics.data.gov.uk/id/local-authority/38,Oxfordshire County Council,Children's Social Care,Ox Community Proj,Contract Hire/Leasing,33300,Transport (General),15.05.2015,7000014338,"1,061.00",Ash Cars (UK) Ltd
http://statistics.data.gov.uk/id/local-authority/38,Oxfordshire County Council,Control Accounts,Control Account Trojan Residential Care,Balance Sheet General,B2040,ABACUS Accounts Payable Control A/c,13.05.2015,7000013405,"4,226.41",Ashamber Homes Limited
http://statistics.data.gov.uk/id/local-authority/38,Oxfordshire County Council,Control Accounts,Control Account Trojan Residential Care,Balance Sheet General,B2040,ABACUS Accounts Payable Control A/c,13.05.2015,7000013554,"3,992.80",Ashamber Homes Limited
http://statistics.data.gov.uk/id/local-authority/38,Oxfordshire County Council,Adult Social Care,MH Community Sup't,Other Agency and Contracted Services,57300,Home Support (Ext) OS&HCD,29.05.2015,3300015287,"1,922.00",Ashamber Homes Limited
http://statistics.data.gov.uk/id/local-authority/38,Oxfordshire County Council,Control Accounts,Control Account Trojan Residential Care,Balance Sheet General,B2040,ABACUS Accounts Payable Control A/c,13.05.2015,7000013407,"2,383.00",Ashcombe House c/o Barchester
http://statistics.data.gov.uk/id/local-authority/38,Oxfordshire County Council,Public Health,STI Testing+Treatmen,Miscellaneous Expenses,48600,Contingency,27.05.2015,7000020586,559.00,Ashford and St Peter's Hospital
http://statistics.data.gov.uk/id/local-authority/38,Oxfordshire County Council,Control Accounts,Control Account Trojan Residential Care,Balance Sheet General,B2040,ABACUS Accounts Payable Control A/c,13.05.2015,7000013408,"6,379.14",Ashgrange House
http://statistics.data.gov.uk/id/local-authority/38,Oxfordshire County Council,Strategy & Infrastructure Planning,OISP,Services,44500,Other Hired & Contract Services,14.05.2015,4100012125,"7,680.00",Ashover Group Ltd
http://statistics.data.gov.uk/id/local-authority/38,Oxfordshire County Council,Law & Culture,Library Collections,"Equipment, Furniture and Materials",41601,Library & Curriculum Books,06.05.2015,7000005364,"1,230.83",Askews & Holts Library Services Ltd
http://statistics.data.gov.uk/id/local-authority/38,Oxfordshire County Council,Law & Culture,Library Collections,"Equipment, Furniture and Materials",41601,Library & Curriculum Books,08.05.2015,7000005378,"1,060.78",Askews & Holts Library Services Ltd
http://statistics.data.gov.uk/id/local-authority/38,Oxfordshire County Council,Law & Culture,Library Collections,"Equipment, Furniture and Materials",41601,Library & Curriculum Books,08.05.2015,7000005380,"1,517.35",Askews & Holts Library Services Ltd
http://statistics.data.gov.uk/id/local-authority/38,Oxfordshire County Council,Law & Culture,Library Collections,"Equipment, Furniture and Materials",41601,Library & Curriculum Books,12.05.2015,7000010316,565.52,Askews & Holts Library Services Ltd
http://statistics.data.gov.uk/id/local-authority/38,Oxfordshire County Council,Law & Culture,Library Collections,"Equipment, Furniture and Materials",41601,Library & Curriculum Books,13.05.2015,7000010318,750.62,Askews & Holts Library Services Ltd
http://statistics.data.gov.uk/id/local-authority/38,Oxfordshire County Council,Law & Culture,Library Collections,"Equipment, Furniture and Materials",41601,Library & Curriculum Books,11.05.2015,7000010322,540.58,Askews & Holts Library Services Ltd
http://statistics.data.gov.uk/id/local-authority/38,Oxfordshire County Council,Law & Culture,Library Collections,"Equipment, Furniture and Materials",41601,Library & Curriculum Books,14.05.2015,7000010329,560.93,Askews & Holts Library Services Ltd
http://statistics.data.gov.uk/id/local-authority/38,Oxfordshire County Council,Law & Culture,Library Collections,"Equipment, Furniture and Materials",41601,Library & Curriculum Books,12.05.2015,7000010331,"1,650.98",Askews & Holts Library Services Ltd
http://statistics.data.gov.uk/id/local-authority/38,Oxfordshire County Council,Law & Culture,Library Collections,"Equipment, Furniture and Materials",41601,Library & Curriculum Books,11.05.2015,7000010334,764.64,Askews & Holts Library Services Ltd
http://statistics.data.gov.uk/id/local-authority/38,Oxfordshire County Council,Law & Culture,Library Collections,"Equipment, Furniture and Materials",41601,Library & Curriculum Books,13.05.2015,7000010339,655.61,Askews & Holts Library Services Ltd
http://statistics.data.gov.uk/id/local-authority/38,Oxfordshire County Council,Law & Culture,Library Collections,"Equipment, Furniture and Materials",41601,Library & Curriculum Books,13.05.2015,7000010340,552.77,Askews & Holts Library Services Ltd
http://statistics.data.gov.uk/id/local-authority/38,Oxfordshire County Council,Law & Culture,Library Collections,"Equipment, Furniture and Materials",41601,Library & Curriculum Books,13.05.2015,7000010345,716.61,Askews & Holts Library Services Ltd
http://statistics.data.gov.uk/id/local-authority/38,Oxfordshire County Council,Law & Culture,Library Collections,"Equipment, Furniture and Materials",41601,Library & Curriculum Books,14.05.2015,7000010350,898.01,Askews & Holts Library Services Ltd
http://statistics.data.gov.uk/id/local-authority/38,Oxfordshire County Council,Law & Culture,Library Collections,"Equipment, Furniture and Materials",41601,Library & Curriculum Books,15.05.2015,7000010355,"1,240.94",Askews & Holts Library Services Ltd
http://statistics.data.gov.uk/id/local-authority/38,Oxfordshire County Council,Law & Culture,Library Collections,"Equipment, Furniture and Materials",41601,Library & Curriculum Books,15.05.2015,7000010356,"2,646.00",Askews & Holts Library Services Ltd
http://statistics.data.gov.uk/id/local-authority/38,Oxfordshire County Council,Law & Culture,Library Collections,"Equipment, Furniture and Materials",41601,Library & Curriculum Books,14.05.2015,7000011895,"1,310.13",Askews & Holts Library Services Ltd
http://statistics.data.gov.uk/id/local-authority/38,Oxfordshire County Council,Law & Culture,Library Collections,"Equipment, Furniture and Materials",41601,Library & Curriculum Books,22.05.2015,7000011897,"1,676.55",Askews & Holts Library Services Ltd
http://statistics.data.gov.uk/id/local-authority/38,Oxfordshire County Council,Law & Culture,Library Collections,"Equipment, Furniture and Materials",41601,Library & Curriculum Books,19.05.2015,7000011898,"1,456.41",Askews & Holts Library Services Ltd
http://statistics.data.gov.uk/id/local-authority/38,Oxfordshire County Council,Law & Culture,Library Collections,"Equipment, Furniture and Materials",41601,Library & Curriculum Books,22.05.2015,7000011899,"1,542.94",Askews & Holts Library Services Ltd
http://statistics.data.gov.uk/id/local-authority/38,Oxfordshire County Council,Law & Culture,Library Collections,"Equipment, Furniture and Materials",41601,Library & Curriculum Books,22.05.2015,7000011900,551.29,Askews & Holts Library Services Ltd
http://statistics.data.gov.uk/id/local-authority/38,Oxfordshire County Council,Law & Culture,Library Collections,"Equipment, Furniture and Materials",41601,Library & Curriculum Books,22.05.2015,7000011901,"1,294.57",Askews & Holts Library Services Ltd
http://statistics.data.gov.uk/id/local-authority/38,Oxfordshire County Council,Law & Culture,Library Collections,"Equipment, Furniture and Materials",41601,Library & Curriculum Books,15.05.2015,7000011905,"1,754.73",Askews & Holts Library Services Ltd
http://statistics.data.gov.uk/id/local-authority/38,Oxfordshire County Council,Law & Culture,Library Collections,"Equipment, Furniture and Materials",41601,Library & Curriculum Books,18.05.2015,7000011920,"1,256.56",Askews & Holts Library Services Ltd
http://statistics.data.gov.uk/id/local-authority/38,Oxfordshire County Council,Law & Culture,Library Collections,"Equipment, Furniture and Materials",41601,Library & Curriculum Books,18.05.2015,7000011935,"1,626.79",Askews & Holts Library Services Ltd
http://statistics.data.gov.uk/id/local-authority/38,Oxfordshire County Council,Law & Culture,Library Collections,"Equipment, Furniture and Materials",41601,Library & Curriculum Books,14.05.2015,7000011937,"2,016.82",Askews & Holts Library Services Ltd
http://statistics.data.gov.uk/id/local-authority/38,Oxfordshire County Council,Law & Culture,Library Collections,"Equipment, Furniture and Materials",41601,Library & Curriculum Books,20.05.2015,7000011939,"1,049.65",Askews & Holts Library Services Ltd
http://statistics.data.gov.uk/id/local-authority/38,Oxfordshire County Council,Law & Culture,Library Collections,"Equipment, Furniture and Materials",41601,Library & Curriculum Books,21.05.2015,7000011941,613.82,Askews & Holts Library Services Ltd
http://statistics.data.gov.uk/id/local-authority/38,Oxfordshire County Council,Law & Culture,Library Collections,"Equipment, Furniture and Materials",41601,Library & Curriculum Books,18.05.2015,7000014878,"1,838.84",Askews & Holts Library Services Ltd
http://statistics.data.gov.uk/id/local-authority/38,Oxfordshire County Council,Law & Culture,Library Collections,"Equipment, Furniture and Materials",41601,Library & Curriculum Books,18.05.2015,7000014881,"1,375.25",Askews & Holts Library Services Ltd
http://statistics.data.gov.uk/id/local-authority/38,Oxfordshire County Council,Law & Culture,Library Collections,"Equipment, Furniture and Materials",41601,Library & Curriculum Books,18.05.2015,7000014883,"1,459.32",Askews & Holts Library Services Ltd
http://statistics.data.gov.uk/id/local-authority/38,Oxfordshire County Council,Law & Culture,Library Collections,"Equipment, Furniture and Materials",41601,Library & Curriculum Books,22.05.2015,7000014884,805.79,Askews & Holts Library Services Ltd
http://statistics.data.gov.uk/id/local-authority/38,Oxfordshire County Council,Law & Culture,Library Collections,"Equipment, Furniture and Materials",41601,Library & Curriculum Books,22.05.2015,7000014885,503.38,Askews & Holts Library Services Ltd
http://statistics.data.gov.uk/id/local-authority/38,Oxfordshire County Council,Law & Culture,Library Collections,"Equipment, Furniture and Materials",41601,Library & Curriculum Books,22.05.2015,7000014886,"1,056.07",Askews & Holts Library Services Ltd
http://statistics.data.gov.uk/id/local-authority/38,Oxfordshire County Council,Law & Culture,Library Collections,"Equipment, Furniture and Materials",41601,Library & Curriculum Books,22.05.2015,7000014888,503.63,Askews & Holts Library Services Ltd
http://statistics.data.gov.uk/id/local-authority/38,Oxfordshire County Council,Law & Culture,Library Collections,"Equipment, Furniture and Materials",41601,Library & Curriculum Books,22.05.2015,7000014891,542.80,Askews & Holts Library Services Ltd
http://statistics.data.gov.uk/id/local-authority/38,Oxfordshire County Council,Law & Culture,Library Collections,"Equipment, Furniture and Materials",41601,Library & Curriculum Books,18.05.2015,7000014892,"1,514.51",Askews & Holts Library Services Ltd
http://statistics.data.gov.uk/id/local-authority/38,Oxfordshire County Council,Law & Culture,Library Collections,"Equipment, Furniture and Materials",41601,Library & Curriculum Books,19.05.2015,7000014893,523.13,Askews & Holts Library Services Ltd
http://statistics.data.gov.uk/id/local-authority/38,Oxfordshire County Council,Law & Culture,Library Collections,"Equipment, Furniture and Materials",41601,Library & Curriculum Books,22.05.2015,7000014894,661.76,Askews & Holts Library Services Ltd
http://statistics.data.gov.uk/id/local-authority/38,Oxfordshire County Council,Law & Culture,Library Collections,"Equipment, Furniture and Materials",41601,Library & Curriculum Books,18.05.2015,7000014900,"1,317.90",Askews & Holts Library Services Ltd
http://statistics.data.gov.uk/id/local-authority/38,Oxfordshire County Council,Law & Culture,Library Collections,"Equipment, Furniture and Materials",41601,Library & Curriculum Books,19.05.2015,7000014901,"1,111.46",Askews & Holts Library Services Ltd
http://statistics.data.gov.uk/id/local-authority/38,Oxfordshire County Council,Law & Culture,Library Collections,"Equipment, Furniture and Materials",41601,Library & Curriculum Books,22.05.2015,7000014908,"1,227.97",Askews & Holts Library Services Ltd
http://statistics.data.gov.uk/id/local-authority/38,Oxfordshire County Council,Law & Culture,Library Collections,"Equipment, Furniture and Materials",41601,Library & Curriculum Books,22.05.2015,7000014915,739.50,Askews & Holts Library Services Ltd
http://statistics.data.gov.uk/id/local-authority/38,Oxfordshire County Council,Law & Culture,Library Collections,"Equipment, Furniture and Materials",41601,Library & Curriculum Books,26.05.2015,7000014918,589.73,Askews & Holts Library Services Ltd
http://statistics.data.gov.uk/id/local-authority/38,Oxfordshire County Council,Law & Culture,Library Collections,"Equipment, Furniture and Materials",41601,Library & Curriculum Books,28.05.2015,7000014922,"1,332.84",Askews & Holts Library Services Ltd
http://statistics.data.gov.uk/id/local-authority/38,Oxfordshire County Council,Law & Culture,Library Collections,"Equipment, Furniture and Materials",41601,Library & Curriculum Books,18.05.2015,7000014927,"1,660.93",Askews & Holts Library Services Ltd
http://statistics.data.gov.uk/id/local-authority/38,Oxfordshire County Council,Law & Culture,Library Collections,"Equipment, Furniture and Materials",41601,Library & Curriculum Books,27.05.2015,7000019752,"1,275.20",Askews & Holts Library Services Ltd
http://statistics.data.gov.uk/id/local-authority/38,Oxfordshire County Council,Law & Culture,Library Collections,"Equipment, Furniture and Materials",41601,Library & Curriculum Books,27.05.2015,7000019753,"1,474.40",Askews & Holts Library Services Ltd
http://statistics.data.gov.uk/id/local-authority/38,Oxfordshire County Council,Law & Culture,Library Collections,"Equipment, Furniture and Materials",41601,Library & Curriculum Books,27.05.2015,7000019754,"1,540.86",Askews & Holts Library Services Ltd
http://statistics.data.gov.uk/id/local-authority/38,Oxfordshire County Council,Law & Culture,Library Collections,"Equipment, Furniture and Materials",41601,Library & Curriculum Books,27.05.2015,7000019755,"1,391.67",Askews & Holts Library Services Ltd
http://statistics.data.gov.uk/id/local-authority/38,Oxfordshire County Council,Law & Culture,Library Collections,"Equipment, Furniture and Materials",41601,Library & Curriculum Books,27.05.2015,7000019756,"1,474.08",Askews & Holts Library Services Ltd
http://statistics.data.gov.uk/id/local-authority/38,Oxfordshire County Council,Law & Culture,Library Collections,"Equipment, Furniture and Materials",41601,Library & Curriculum Books,27.05.2015,7000019757,"1,564.40",Askews & Holts Library Services Ltd
http://statistics.data.gov.uk/id/local-authority/38,Oxfordshire County Council,Law & Culture,Library Collections,"Equipment, Furniture and Materials",41601,Library & Curriculum Books,27.05.2015,7000019758,"1,821.64",Askews & Holts Library Services Ltd
http://statistics.data.gov.uk/id/local-authority/38,Oxfordshire County Council,Law & Culture,Library Collections,"Equipment, Furniture and Materials",41601,Library & Curriculum Books,27.05.2015,7000019759,"1,914.89",Askews & Holts Library Services Ltd
http://statistics.data.gov.uk/id/local-authority/38,Oxfordshire County Council,Law & Culture,Library Collections,"Equipment, Furniture and Materials",41601,Library & Curriculum Books,27.05.2015,7000019762,831.83,Askews & Holts Library Services Ltd
http://statistics.data.gov.uk/id/local-authority/38,Oxfordshire County Council,Law & Culture,Library Collections,"Equipment, Furniture and Materials",41601,Library & Curriculum Books,27.05.2015,7000019766,"1,862.46",Askews & Holts Library Services Ltd
http://statistics.data.gov.uk/id/local-authority/38,Oxfordshire County Council,Law & Culture,Library Collections,"Equipment, Furniture and Materials",41601,Library & Curriculum Books,28.05.2015,7000019768,"1,487.22",Askews & Holts Library Services Ltd
http://statistics.data.gov.uk/id/local-authority/38,Oxfordshire County Council,Law & Culture,Library Collections,"Equipment, Furniture and Materials",41601,Library & Curriculum Books,27.05.2015,7000019770,"1,087.27",Askews & Holts Library Services Ltd
http://statistics.data.gov.uk/id/local-authority/38,Oxfordshire County Council,Law & Culture,Library Collections,"Equipment, Furniture and Materials",41601,Library & Curriculum Books,29.05.2015,7000019775,711.07,Askews & Holts Library Services Ltd
http://statistics.data.gov.uk/id/local-authority/38,Oxfordshire County Council,Law & Culture,Library Collections,"Equipment, Furniture and Materials",41601,Library & Curriculum Books,29.05.2015,7000019782,"1,612.61",Askews & Holts Library Services Ltd
http://statistics.data.gov.uk/id/local-authority/38,Oxfordshire County Council,Law & Culture,Library Collections,"Equipment, Furniture and Materials",41601,Library & Curriculum Books,29.05.2015,7000019784,703.45,Askews & Holts Library Services Ltd
http://statistics.data.gov.uk/id/local-authority/38,Oxfordshire County Council,Law & Culture,Library Collections,"Equipment, Furniture and Materials",41601,Library & Curriculum Books,29.05.2015,7000019785,924.13,Askews & Holts Library Services Ltd
http://statistics.data.gov.uk/id/local-authority/38,Oxfordshire County Council,Law & Culture,Library Collections,"Equipment, Furniture and Materials",41601,Library & Curriculum Books,29.05.2015,7000019786,623.91,Askews & Holts Library Services Ltd
http://statistics.data.gov.uk/id/local-authority/38,Oxfordshire County Council,Control Accounts,Control Account Trojan Residential Care,Balance Sheet General,B2040,ABACUS Accounts Payable Control A/c,13.05.2015,7000013410,"5,656.84",Aspirations
http://statistics.data.gov.uk/id/local-authority/38,Oxfordshire County Council,Control Accounts,Control Account Trojan Residential Care,Balance Sheet General,B2040,ABACUS Accounts Payable Control A/c,13.05.2015,7000013411,"4,597.92",Aspirations (North West Adults)
http://statistics.data.gov.uk/id/local-authority/38,Oxfordshire County Council,Education & Early Intervention,Hill End,Cleaning,27200,Contracted Cleaning,27.05.2015,4100015628,"1,200.00",Aspire Oxfordshire
http://statistics.data.gov.uk/id/local-authority/38,Oxfordshire County Council,Oxfordshire Customer Services,Comm Trans Grant,Contract Hire/Leasing,33300,Transport (General),12.05.2015,3300010815,"77,440.00",Aspire Oxfordshire
http://statistics.data.gov.uk/id/local-authority/38,Oxfordshire County Council,Oxfordshire Customer Services,3 Agric Hort Animals,Services,44500,Other Hired & Contract Services,27.05.2015,4100015575,"3,720.00",Aspire Oxfordshire
http://statistics.data.gov.uk/id/local-authority/38,Oxfordshire County Council,Strategy & Infrastructure Planning,Development Control,Private Contractors,56400,Major Contracts,22.05.2015,4100009860,"7,800.00",Atkins Limited
http://statistics.data.gov.uk/id/local-authority/38,Oxfordshire County Council,Commercial Services,Winter Maintenance,Private Contractors,56400,Major Contracts,21.05.2015,4100014217,"16,801.58",ATKINS LIMITED
http://statistics.data.gov.uk/id/local-authority/38,Oxfordshire County Council,Strategy & Infrastructure Planning,Cherwell & West,Services,44500,Other Hired & Contract Services,21.05.2015,4100008763,"8,482.80",Atkins Ltd
http://statistics.data.gov.uk/id/local-authority/38,Oxfordshire County Council,Strategy & Infrastructure Planning,Development Control,Temporary Staff (NJC Green Book),16717,Tempry Staff (NJC) Agency Staff,22.05.2015,4100009812,"4,200.00",Atkins Ltd
http://statistics.data.gov.uk/id/local-authority/38,Oxfordshire County Council,Commercial Services,Macclesfield House,Planned R&M,21000,Repair & Maintenance (Non-Delegated),28.05.2015,4100012094,"4,774.03",Audience Systems Ltd
http://statistics.data.gov.uk/id/local-authority/38,Oxfordshire County Council,Older Peoples Pooled Budget,DTOC Funding,Temporary Staff (NJC Green Book),16717,Tempry Staff (NJC) Agency Staff,21.05.2015,4100008407,"1,487.40",Aurora Resourcing
http://statistics.data.gov.uk/id/local-authority/38,Oxfordshire County Council,Older Peoples Pooled Budget,DTOC Funding,Temporary Staff (NJC Green Book),16717,Tempry Staff (NJC) Agency Staff,21.05.2015,4100008451,"1,427.10",Aurora Resourcing
http://statistics.data.gov.uk/id/local-authority/38,Oxfordshire County Council,Older Peoples Pooled Budget,DTOC Funding,Temporary Staff (NJC Green Book),16717,Tempry Staff (NJC) Agency Staff,21.05.2015,4100008452,"1,206.00",Aurora Resourcing
http://statistics.data.gov.uk/id/local-authority/38,Oxfordshire County Council,Older Peoples Pooled Budget,DTOC Funding,Temporary Staff (NJC Green Book),16717,Tempry Staff (NJC) Agency Staff,21.05.2015,4100008453,"1,185.90",Aurora Resourcing
http://statistics.data.gov.uk/id/local-authority/38,Oxfordshire County Council,Older Peoples Pooled Budget,DTOC Funding,Temporary Staff (NJC Green Book),16717,Tempry Staff (NJC) Agency Staff,01.05.2015,4100008461,"1,451.22",Aurora Resourcing
http://statistics.data.gov.uk/id/local-authority/38,Oxfordshire County Council,Older Peoples Pooled Budget,DTOC Funding,Temporary Staff (NJC Green Book),16717,Tempry Staff (NJC) Agency Staff,28.05.2015,4100008633,"1,487.40",Aurora Resourcing
http://statistics.data.gov.uk/id/local-authority/38,Oxfordshire County Council,Older Peoples Pooled Budget,Locality Team - Vale,Temporary Staff (NJC Green Book),16717,Tempry Staff (NJC) Agency Staff,22.05.2015,4100013020,"1,266.30",Aurora Resourcing
http://statistics.data.gov.uk/id/local-authority/38,Oxfordshire County Council,Older Peoples Pooled Budget,Locality Team - Vale,Temporary Staff (NJC Green Book),16717,Tempry Staff (NJC) Agency Staff,22.05.2015,4100014604,"1,266.30",Aurora Resourcing
http://statistics.data.gov.uk/id/local-authority/38,Oxfordshire County Council,Older Peoples Pooled Budget,DTOC Funding,Temporary Staff (NJC Green Book),16717,Tempry Staff (NJC) Agency Staff,28.05.2015,4100016047,"1,487.40",Aurora Resourcing
http://statistics.data.gov.uk/id/local-authority/38,Oxfordshire County Council,Control Accounts,Control Account Trojan Residential Care,Balance Sheet General,B2040,ABACUS Accounts Payable Control A/c,13.05.2015,7000013412,"4,836.00",Autism Care (UK)
http://statistics.data.gov.uk/id/local-authority/38,Oxfordshire County Council,Control Accounts,Control Account Trojan Residential Care,Balance Sheet General,B2040,ABACUS Accounts Payable Control A/c,13.05.2015,7000013698,"41,865.50",Autism Care (UK)
http://statistics.data.gov.uk/id/local-authority/38,Oxfordshire County Council,Education & Early Intervention,Out of County,Voluntary Associations,55100,Fees to Non Maintain,14.05.2015,4100012389,"35,084.20",Autism Wessex
http://statistics.data.gov.uk/id/local-authority/38,Oxfordshire County Council,Control Accounts,Control Account Trojan Residential Care,Balance Sheet General,B2040,ABACUS Accounts Payable Control A/c,13.05.2015,7000013413,"6,018.43",Avondale Care Home
http://statistics.data.gov.uk/id/local-authority/38,Oxfordshire County Council,SCS Other Cost Centres,Home suppt trade a/c,Other Agency and Contracted Services,57300,Home Support (Ext) OS&HCD,06.05.2015,7000011612,"8,073.05",AVR (Oxon) Ltd
http://statistics.data.gov.uk/id/local-authority/38,Oxfordshire County Council,SCS Other Cost Centres,Home suppt trade a/c,Other Agency and Contracted Services,57300,Home Support (Ext) OS&HCD,20.05.2015,7000015246,"5,181.71",AVR (Oxon) Ltd
http://statistics.data.gov.uk/id/local-authority/38,Oxfordshire County Council,Commercial Services,Fleet Operations,Direct Transport Costs,31402,Other vehicle runnin,21.05.2015,4100014429,"1,265.22",AWP Body Repairs
http://statistics.data.gov.uk/id/local-authority/38,Oxfordshire County Council,Oxfordshire Customer Services,SD Student,Expenses,46403,Course / Tuition Fee,20.05.2015,7000015960,875.00,Aylesbury Grammar School
http://statistics.data.gov.uk/id/local-authority/38,Oxfordshire County Council,Oxfordshire Customer Services,SD Student,Expenses,46403,Course / Tuition Fee,20.05.2015,7000015961,875.00,Aylesbury Grammar School
http://statistics.data.gov.uk/id/local-authority/38,Oxfordshire County Council,Oxfordshire Customer Services,SD Student,Expenses,46403,Course / Tuition Fee,20.05.2015,7000015962,875.00,Aylesbury Grammar School
http://statistics.data.gov.uk/id/local-authority/38,Oxfordshire County Council,Oxfordshire Customer Services,SD Student,Expenses,46403,Course / Tuition Fee,20.05.2015,7000015963,875.00,Aylesbury Grammar School
http://statistics.data.gov.uk/id/local-authority/38,Oxfordshire County Council,Oxfordshire Customer Services,SD Student,Expenses,46403,Course / Tuition Fee,20.05.2015,7000015964,875.00,Aylesbury Grammar School
http://statistics.data.gov.uk/id/local-authority/38,Oxfordshire County Council,Older Peoples Pooled Budget,OPPB ContCare H Supp,Other Agency and Contracted Services,57302,Home Support (Ext) Continuing Care,01.05.2015,3350000519,613.98,B Carers Ltd
http://statistics.data.gov.uk/id/local-authority/38,Oxfordshire County Council,Older Peoples Pooled Budget,OPPB ContCare H Supp,Other Agency and Contracted Services,57302,Home Support (Ext) Continuing Care,19.05.2015,3350000703,659.46,B Carers Ltd
http://statistics.data.gov.uk/id/local-authority/38,Oxfordshire County Council,Older Peoples Pooled Budget,OPPB ContCare H Supp,Other Agency and Contracted Services,57302,Home Support (Ext) Continuing Care,15.05.2015,3350000718,659.46,B Carers Ltd
http://statistics.data.gov.uk/id/local-authority/38,Oxfordshire County Council,Control Accounts,Control Account Trojan Residential Care,Balance Sheet General,B2040,ABACUS Accounts Payable Control A/c,13.05.2015,7000013414,"80,612.87",Badby Park Ltd
http://statistics.data.gov.uk/id/local-authority/38,Oxfordshire County Council,Adult Social Care,LEAN Project,Services,44200,Consultants Fees,05.05.2015,4100002157,"107,901.83",Baker Tilly
http://statistics.data.gov.uk/id/local-authority/38,Oxfordshire County Council,Adult Social Care,LEAN Project,Services,44200,Consultants Fees,05.05.2015,4100002411,"3,667.07",Baker Tilly
http://statistics.data.gov.uk/id/local-authority/38,Oxfordshire County Council,Commercial Services,Zone 1 - North,Contract Hire/Leasing,33101,Home to School Trans,11.05.2015,7000012506,"2,275.00",Bakers Commercial Services Ltd
http://statistics.data.gov.uk/id/local-authority/38,Oxfordshire County Council,Commercial Services,Zone 1 - North,Contract Hire/Leasing,33101,Home to School Trans,11.05.2015,7000012507,"2,535.00",Bakers Commercial Services Ltd
http://statistics.data.gov.uk/id/local-authority/38,Oxfordshire County Council,Commercial Services,Zone 1 - North,Contract Hire/Leasing,33101,Home to School Trans,11.05.2015,7000012508,"2,535.00",Bakers Commercial Services Ltd
http://statistics.data.gov.uk/id/local-authority/38,Oxfordshire County Council,Commercial Services,Zone 1 - North,Contract Hire/Leasing,33101,Home to School Trans,11.05.2015,7000012509,"2,730.00",Bakers Commercial Services Ltd
http://statistics.data.gov.uk/id/local-authority/38,Oxfordshire County Council,Community Safety,Procurement,"Clothing,Uniforms and Laundry",43100,"Clothing, Uniforms",29.05.2015,4100014731,"27,568.61",Ballyclare LHD Ltd
http://statistics.data.gov.uk/id/local-authority/38,Oxfordshire County Council,Public Health,NHS HealthCheck Prog,Private Contractors,56405,General Practice Services,14.05.2015,7000013938,"1,731.00",Bampton Surgery
http://statistics.data.gov.uk/id/local-authority/38,Oxfordshire County Council,Public Health,NHS HealthCheck Prog,Private Contractors,56405,General Practice Services,14.05.2015,7000013994,870.00,Bampton Surgery
http://statistics.data.gov.uk/id/local-authority/38,Oxfordshire County Council,Public Health,NHS HealthCheck Prog,Private Contractors,56405,General Practice Services,14.05.2015,7000014105,676.00,Bampton Surgery
http://statistics.data.gov.uk/id/local-authority/38,Oxfordshire County Council,Education & Early Intervention,Therapy M/strm Sch,Services,44500,Other Hired & Contract Services,15.05.2015,4100012436,984.95,Banbury & District Comm Bus Project
http://statistics.data.gov.uk/id/local-authority/38,Oxfordshire County Council,Education & Early Intervention,Rural Childrn Centre,Voluntary Associations,55000,Voluntary Associatio,01.05.2015,4100008048,"27,414.50",Banbury & District Comm Bus Project
http://statistics.data.gov.uk/id/local-authority/38,Oxfordshire County Council,Control Accounts,Control Account Trojan Residential Care,Balance Sheet General,B2040,ABACUS Accounts Payable Control A/c,13.05.2015,7000013415,"116,904.32",Banbury Heights Nursing Home
http://statistics.data.gov.uk/id/local-authority/38,Oxfordshire County Council,Adult Social Care,Reprographics Unit,"Printing,Stationery and Gen Office Exp",43500,Printing & Duplicating,01.05.2015,4100005953,"3,850.00",Banbury Litho Ltd
http://statistics.data.gov.uk/id/local-authority/38,Oxfordshire County Council,Adult Social Care,Reprographics Unit,"Printing,Stationery and Gen Office Exp",43500,Printing & Duplicating,11.05.2015,4100007895,504.00,Banbury Litho Ltd
http://statistics.data.gov.uk/id/local-authority/38,Oxfordshire County Council,Public Health,NHS HealthCheck Prog,Private Contractors,56405,General Practice Services,14.05.2015,7000013946,885.00,Banbury Road Medical Centre
http://statistics.data.gov.uk/id/local-authority/38,Oxfordshire County Council,Education & Early Intervention,HN in Sec Schools,Other Committees of the Council,51350,Devolved Funding to Schools,21.05.2015,4100014156,"5,082.00",Banbury Schools AAT
http://statistics.data.gov.uk/id/local-authority/38,Oxfordshire County Council,Control Accounts,Control Account Trojan Residential Care,Balance Sheet General,B2040,ABACUS Accounts Payable Control A/c,13.05.2015,7000013416,"5,411.36",Banya Family Placement Agency
http://statistics.data.gov.uk/id/local-authority/38,Oxfordshire County Council,Education & Early Intervention,BLK  Asian Youth Wor,Training Expenses,19990,Other Training Expenses,12.05.2015,4100010977,725.30,REDACTED PERSONAL DATA
http://statistics.data.gov.uk/id/local-authority/38,Oxfordshire County Council,Control Accounts,Control Account Trojan Residential Care,Balance Sheet General,B2040,ABACUS Accounts Payable Control A/c,13.05.2015,7000013760,"129,658.73",Barchester Healthcare Homes Ltd
http://statistics.data.gov.uk/id/local-authority/38,Oxfordshire County Council,Children's Social Care,Resource Centres,Other Agency and Contracted Services,57710,Children's Homes,28.05.2015,4100014697,"8,143.23",Barnardo's Midlands & South West
http://statistics.data.gov.uk/id/local-authority/38,Oxfordshire County Council,Commercial Services,Zone 3 - West,Contract Hire/Leasing,33101,Home to School Trans,07.05.2015,7000010817,"2,898.84",Barnes Coaches Ltd
http://statistics.data.gov.uk/id/local-authority/38,Oxfordshire County Council,Commercial Services,Zone 3 - West,Contract Hire/Leasing,33101,Home to School Trans,07.05.2015,7000010818,"2,212.00",Barnes Coaches Ltd
http://statistics.data.gov.uk/id/local-authority/38,Oxfordshire County Council,Commercial Services,Zone 4 - Vale,Contract Hire/Leasing,33101,Home to School Trans,07.05.2015,7000010819,"2,489.34",Barnes Coaches Ltd
http://statistics.data.gov.uk/id/local-authority/38,Oxfordshire County Council,Commercial Services,Zone 3 - West,Contract Hire/Leasing,33101,Home to School Trans,07.05.2015,7000010820,"3,070.20",Barnes Coaches Ltd
http://statistics.data.gov.uk/id/local-authority/38,Oxfordshire County Council,Commercial Services,Zone 3 - West,Contract Hire/Leasing,33101,Home to School Trans,07.05.2015,7000010821,"1,679.33",Barnes Coaches Ltd
http://statistics.data.gov.uk/id/local-authority/38,Oxfordshire County Council,Commercial Services,Zone 4 - Vale,Contract Hire/Leasing,33101,Home to School Trans,07.05.2015,7000010822,"3,430.00",Barnes Coaches Ltd
http://statistics.data.gov.uk/id/local-authority/38,Oxfordshire County Council,Commercial Services,Zone 4 - Vale,Contract Hire/Leasing,33101,Home to School Trans,29.05.2015,7000021358,"3,675.00",Barnes Coaches Ltd
http://statistics.data.gov.uk/id/local-authority/38,Oxfordshire County Council,Commercial Services,Zone 4 - Vale,Contract Hire/Leasing,33101,Home to School Trans,29.05.2015,7000021359,"2,667.15",Barnes Coaches Ltd
http://statistics.data.gov.uk/id/local-authority/38,Oxfordshire County Council,Commercial Services,Zone 3 - West,Contract Hire/Leasing,33101,Home to School Trans,29.05.2015,7000021360,"2,370.00",Barnes Coaches Ltd
http://statistics.data.gov.uk/id/local-authority/38,Oxfordshire County Council,Commercial Services,Zone 3 - West,Contract Hire/Leasing,33101,Home to School Trans,29.05.2015,7000021361,"3,105.90",Barnes Coaches Ltd
http://statistics.data.gov.uk/id/local-authority/38,Oxfordshire County Council,STD Pension Fund,Pension Fund Miscell,Pension Fund Revenue,PR315,Admin - Actuarial Fees,06.05.2015,4100000766,"16,503.00",Barnett Waddingham LLP
http://statistics.data.gov.uk/id/local-authority/38,Oxfordshire County Council,Public Health,Contraception,Private Contractors,56405,General Practice Services,01.05.2015,7000010614,700.00,Bartlemas Surgery
http://statistics.data.gov.uk/id/local-authority/38,Oxfordshire County Council,Public Health,NHS HealthCheck Prog,Private Contractors,56405,General Practice Services,14.05.2015,7000013952,"1,245.00",Bartlemas Surgery
http://statistics.data.gov.uk/id/local-authority/38,Oxfordshire County Council,Public Health,NHS HealthCheck Prog,Private Contractors,56405,General Practice Services,14.05.2015,7000014009,990.00,Bartlemas Surgery
http://statistics.data.gov.uk/id/local-authority/38,Oxfordshire County Council,Education & Early Intervention,Prof Development SEN,Rent & Rates,24200,Hire of Facilities,20.05.2015,4100013249,500.00,Barton Community Association
http://statistics.data.gov.uk/id/local-authority/38,Oxfordshire County Council,Public Health,GP + Pharmacy Servs,Private Contractors,56406,Pharmaceutical Services,07.05.2015,7000012060,504.00,Barton Pharmacy
http://statistics.data.gov.uk/id/local-authority/38,Oxfordshire County Council,Commercial Services,Cens & Surv Non Grnt,Expenses,46510,Professional Fees,29.05.2015,4100009666,840.00,Basepoint Data Ltd
http://statistics.data.gov.uk/id/local-authority/38,Oxfordshire County Council,Oxfordshire Customer Services,Accounts Payable,Expenses,46901,Licenses,21.05.2015,4100007893,"19,056.60",Basware UK Ltd
http://statistics.data.gov.uk/id/local-authority/38,Oxfordshire County Council,Oxfordshire Customer Services,SD Student,Expenses,46403,Course / Tuition Fee,20.05.2015,7000015965,875.00,BCC Aylesbury High School
http://statistics.data.gov.uk/id/local-authority/38,Oxfordshire County Council,Education & Early Intervention,Statementing Misc,"Equipment, Furniture and Materials",40500,Specialist Supplies,26.05.2015,4100010208,"1,815.00",Beachborough School
http://statistics.data.gov.uk/id/local-authority/38,Oxfordshire County Council,Control Accounts,Control Account Trojan Residential Care,Balance Sheet General,B2040,ABACUS Accounts Payable Control A/c,13.05.2015,7000013417,"32,606.46",Beacher Hall Nursing Centre
http://statistics.data.gov.uk/id/local-authority/38,Oxfordshire County Council,Control Accounts,Control Account Trojan Residential Care,Balance Sheet General,B2040,ABACUS Accounts Payable Control A/c,13.05.2015,7000013418,"21,757.21",Beech Court Nursing Home
http://statistics.data.gov.uk/id/local-authority/38,Oxfordshire County Council,Control Accounts,Control Account Trojan Residential Care,Balance Sheet General,B2040,ABACUS Accounts Payable Control A/c,13.05.2015,7000013419,"32,883.13",Beech Haven Care Home
http://statistics.data.gov.uk/id/local-authority/38,Oxfordshire County Council,Education & Early Intervention,Playgroup Fees,Voluntary Associations,55300,Fees to Centres Playgroups,01.05.2015,7000010473,"1,270.50",Begbroke Playgroup
http://statistics.data.gov.uk/id/local-authority/38,Oxfordshire County Council,Public Health,NHS HealthCheck Prog,Private Contractors,56405,General Practice Services,14.05.2015,7000013947,924.00,Berinsfield Health Centre
http://statistics.data.gov.uk/id/local-authority/38,Oxfordshire County Council,Public Health,NHS HealthCheck Prog,Private Contractors,56405,General Practice Services,14.05.2015,7000014004,690.00,Berinsfield Health Centre
http://statistics.data.gov.uk/id/local-authority/38,Oxfordshire County Council,Public Health,NHS HealthCheck Prog,Private Contractors,56405,General Practice Services,14.05.2015,7000014109,832.00,Berinsfield Health Centre
http://statistics.data.gov.uk/id/local-authority/38,Oxfordshire County Council,Public Health,GP + Pharmacy Servs,Private Contractors,56405,General Practice Services,18.05.2015,7000014866,845.00,Berinsfield Health Centre
http://statistics.data.gov.uk/id/local-authority/38,Oxfordshire County Council,Older Peoples Pooled Budget,OP Service Agreement,Voluntary Associations,55400,Service Agreements-A,05.05.2015,4100008580,"4,321.00",Berinsfield Information and
http://statistics.data.gov.uk/id/local-authority/38,Oxfordshire County Council,Law & Culture,Library Collections,"Equipment, Furniture and Materials",41601,Library & Curriculum Books,12.05.2015,4100008968,"1,675.45",Bertram Library Services
http://statistics.data.gov.uk/id/local-authority/38,Oxfordshire County Council,Community Safety,Service Delivery,"Clothing,Uniforms and Laundry",43100,"Clothing, Uniforms",15.05.2015,4100007801,"5,355.84",Bibby Factors Sussex Ltd
http://statistics.data.gov.uk/id/local-authority/38,Oxfordshire County Council,Law & Culture,Library Collections,"Equipment, Furniture and Materials",41601,Library & Curriculum Books,18.05.2015,4100008400,780.00,Bibliotheca Ltd
http://statistics.data.gov.uk/id/local-authority/38,Oxfordshire County Council,Law & Culture,Library Collections,"Equipment, Furniture and Materials",41601,Library & Curriculum Books,06.05.2015,4100009074,780.00,Bibliotheca Ltd
http://statistics.data.gov.uk/id/local-authority/38,Oxfordshire County Council,Education & Early Intervention,SEN Delegation,Other Committees of the Council,51350,Devolved Funding to Schools,14.05.2015,3300011804,"12,485.77",Bicester Learning Academy
http://statistics.data.gov.uk/id/local-authority/38,Oxfordshire County Council,Education & Early Intervention,HN in Sec Schools,Other Committees of the Council,51350,Devolved Funding to Schools,20.05.2015,7000015979,"4,409.00",Bicester Learning Academy
http://statistics.data.gov.uk/id/local-authority/38,Oxfordshire County Council,Quality & Compliance,Capital Charges - Premises,Capital Expenditure,CFBA1,Highways Consultant fees (Babtie),28.05.2015,4100011021,814.68,Bidwells
http://statistics.data.gov.uk/id/local-authority/38,Oxfordshire County Council,Commercial Services,Closed Landfill,Services,44500,Other Hired & Contract Services,22.05.2015,4100007461,"3,962.40",Biomarsh Environmental Ltd
http://statistics.data.gov.uk/id/local-authority/38,Oxfordshire County Council,Commercial Services,Closed Landfill,Services,44500,Other Hired & Contract Services,08.05.2015,4100010150,583.20,Biomarsh Environmental Ltd
http://statistics.data.gov.uk/id/local-authority/38,Oxfordshire County Council,Commercial Services,Closed Landfill,Services,44500,Other Hired & Contract Services,22.05.2015,4100010547,"2,819.28",Biomarsh Environmental Ltd
http://statistics.data.gov.uk/id/local-authority/38,Oxfordshire County Council,Commercial Services,Closed Landfill,Services,44500,Other Hired & Contract Services,22.05.2015,4100010609,"1,008.00",Biomarsh Environmental Ltd
http://statistics.data.gov.uk/id/local-authority/38,Oxfordshire County Council,Children's Social Care,Transport costs,Contract Hire/Leasing,33101,Home to School Trans,07.05.2015,7000011852,840.00,Black and White Cars T/A Banbury Ta
http://statistics.data.gov.uk/id/local-authority/38,Oxfordshire County Council,Commercial Services,Meadowbrook Transprt,Contract Hire/Leasing,33101,Home to School Trans,07.05.2015,7000011969,"2,124.00",Black and White Cars T/A Banbury Ta
http://statistics.data.gov.uk/id/local-authority/38,Oxfordshire County Council,Commercial Services,Oxford Nth SEN Trans,Contract Hire/Leasing,33101,Home to School Trans,07.05.2015,7000011970,"1,680.00",Black and White Cars T/A Banbury Ta
http://statistics.data.gov.uk/id/local-authority/38,Oxfordshire County Council,Commercial Services,Oxford Nth SEN Trans,Contract Hire/Leasing,33101,Home to School Trans,07.05.2015,7000011972,"2,520.00",Black and White Cars T/A Banbury Ta
http://statistics.data.gov.uk/id/local-authority/38,Oxfordshire County Council,Commercial Services,Witney SEN Trans,Contract Hire/Leasing,33101,Home to School Trans,07.05.2015,7000011974,"1,848.00",Black and White Cars T/A Banbury Ta
http://statistics.data.gov.uk/id/local-authority/38,Oxfordshire County Council,Commercial Services,Oxford Nth SEN Trans,Contract Hire/Leasing,33101,Home to School Trans,15.05.2015,7000014315,"2,116.80",Black and White Cars T/A Banbury Ta
http://statistics.data.gov.uk/id/local-authority/38,Oxfordshire County Council,Commercial Services,Oxford Nth SEN Trans,Contract Hire/Leasing,33101,Home to School Trans,15.05.2015,7000014317,"2,040.00",Black and White Cars T/A Banbury Ta
http://statistics.data.gov.uk/id/local-authority/38,Oxfordshire County Council,Commercial Services,FE Special Trans,Contract Hire/Leasing,33101,Home to School Trans,15.05.2015,7000014319,"1,929.60",Black and White Cars T/A Banbury Ta
http://statistics.data.gov.uk/id/local-authority/38,Oxfordshire County Council,Commercial Services,Meadowbrook Transprt,Contract Hire/Leasing,33101,Home to School Trans,15.05.2015,7000014320,672.00,Black and White Cars T/A Banbury Ta
http://statistics.data.gov.uk/id/local-authority/38,Oxfordshire County Council,Commercial Services,Meadowbrook Transprt,Contract Hire/Leasing,33101,Home to School Trans,15.05.2015,7000014322,"1,080.00",Black and White Cars T/A Banbury Ta
http://statistics.data.gov.uk/id/local-authority/38,Oxfordshire County Council,Children's Social Care,Looked After North,Contract Hire/Leasing,33101,Home to School Trans,20.05.2015,7000016002,936.00,Black and White Cars T/A Banbury Ta
http://statistics.data.gov.uk/id/local-authority/38,Oxfordshire County Council,Commercial Services,Meadowbrook Transprt,Contract Hire/Leasing,33101,Home to School Trans,28.05.2015,7000021281,"2,364.00",Black and White Cars T/A Banbury Ta
http://statistics.data.gov.uk/id/local-authority/38,Oxfordshire County Council,Learning Disabilities Pooled Budget,PB LDNorth,Contract Hire/Leasing,33300,Transport (General),07.05.2015,7000011886,"1,579.20",Black and White Cars T/A Banbury Ta
http://statistics.data.gov.uk/id/local-authority/38,Oxfordshire County Council,Commercial Services,Oxford Nth SEN Trans,Contract Hire/Leasing,33300,Transport (General),07.05.2015,7000011971,"1,008.00",Black and White Cars T/A Banbury Ta
http://statistics.data.gov.uk/id/local-authority/38,Oxfordshire County Council,Commercial Services,Oxford Nth SEN Trans,Contract Hire/Leasing,33300,Transport (General),07.05.2015,7000011973,772.80,Black and White Cars T/A Banbury Ta
http://statistics.data.gov.uk/id/local-authority/38,Oxfordshire County Council,Commercial Services,Witney SEN Trans,Contract Hire/Leasing,33300,Transport (General),07.05.2015,7000011975,672.00,Black and White Cars T/A Banbury Ta
http://statistics.data.gov.uk/id/local-authority/38,Oxfordshire County Council,Commercial Services,Oxford Nth SEN Trans,Contract Hire/Leasing,33300,Transport (General),15.05.2015,7000014316,739.20,Black and White Cars T/A Banbury Ta
http://statistics.data.gov.uk/id/local-authority/38,Oxfordshire County Council,Education & Early Intervention,SEN Delegation,Other Committees of the Council,51350,Devolved Funding to Schools,14.05.2015,3300011802,"11,484.50",Blackbird Academy Trust
http://statistics.data.gov.uk/id/local-authority/38,Oxfordshire County Council,Education & Early Intervention,SEN Delegation,Other Committees of the Council,51350,Devolved Funding to Schools,21.05.2015,3300014007,"17,090.22",Blackbird Academy Trust
http://statistics.data.gov.uk/id/local-authority/38,Oxfordshire County Council,Education & Early Intervention,SEN Delegation,Other Committees of the Council,51350,Devolved Funding to Schools,27.05.2015,3300015163,"17,215.60",Blackbird Academy Trust
http://statistics.data.gov.uk/id/local-authority/38,Oxfordshire County Council,Commercial Services,CPG OAM,Rent & Rates,24300,Landlord Service Cha,27.05.2015,4100015583,"1,200.00",Blackbird Leys Community Associatio
http://statistics.data.gov.uk/id/local-authority/38,Oxfordshire County Council,Commercial Services,CPG OAM,Rent & Rates,24300,Landlord Service Cha,28.05.2015,4100015756,"1,200.00",Blackbird Leys Community Associatio
http://statistics.data.gov.uk/id/local-authority/38,Oxfordshire County Council,Older Peoples Pooled Budget,OP Service Agreement,Voluntary Associations,55400,Service Agreements-A,05.05.2015,4100008581,"7,342.00",Blackbird Leys Neighbourhood Suppor
http://statistics.data.gov.uk/id/local-authority/38,Oxfordshire County Council,Commercial Services,Grass Cutting Dist.,Private Contractors,56400,Major Contracts,05.05.2015,3300005036,"1,066.71",Blackthorn Parish Council
http://statistics.data.gov.uk/id/local-authority/38,Oxfordshire County Council,Strategy & Infrastructure Planning,LEP,Social Services Client Expenditure,44614,Legal Fees,26.05.2015,4100012308,"1,513.20",Blake Morgan
http://statistics.data.gov.uk/id/local-authority/38,Oxfordshire County Council,Education & Early Intervention,SEN Delegation,Other Committees of the Council,51350,Devolved Funding to Schools,21.05.2015,3300014008,"21,519.50",Blessed George Napier School
http://statistics.data.gov.uk/id/local-authority/38,Oxfordshire County Council,Education & Early Intervention,HN in Sec Schools,Other Committees of the Council,51350,Devolved Funding to Schools,20.05.2015,7000015981,"2,718.00",Blessed George Napier School
http://statistics.data.gov.uk/id/local-authority/38,Oxfordshire County Council,Human Resources,Communications,Temporary Staff (NJC Green Book),16717,Tempry Staff (NJC) Agency Staff,06.05.2015,4100007796,920.64,Blue Skies Services Ltd
http://statistics.data.gov.uk/id/local-authority/38,Oxfordshire County Council,Human Resources,Communications,Temporary Staff (NJC Green Book),16717,Tempry Staff (NJC) Agency Staff,20.05.2015,4100007848,821.28,Blue Skies Services Ltd
http://statistics.data.gov.uk/id/local-authority/38,Oxfordshire County Council,Human Resources,Communications,Temporary Staff (NJC Green Book),16717,Tempry Staff (NJC) Agency Staff,14.05.2015,4100008503,821.28,Blue Skies Services Ltd
http://statistics.data.gov.uk/id/local-authority/38,Oxfordshire County Council,Human Resources,Communications,Temporary Staff (NJC Green Book),16717,Tempry Staff (NJC) Agency Staff,28.05.2015,4100010972,920.64,Blue Skies Services Ltd
http://statistics.data.gov.uk/id/local-authority/38,Oxfordshire County Council,Human Resources,Communications,Temporary Staff (NJC Green Book),16717,Tempry Staff (NJC) Agency Staff,18.05.2015,4100012821,918.72,Blue Skies Services Ltd
http://statistics.data.gov.uk/id/local-authority/38,Oxfordshire County Council,Human Resources,Communications,Temporary Staff (NJC Green Book),16717,Tempry Staff (NJC) Agency Staff,19.05.2015,4100012982,578.69,Blue Skies Services Ltd
http://statistics.data.gov.uk/id/local-authority/38,Oxfordshire County Council,Children's Social Care,Independent Foster,Other Agency and Contracted Services,57801,Independent Fostering Agencies,19.05.2015,4100013167,630.00,Blue Sky Fostering Ltd
http://statistics.data.gov.uk/id/local-authority/38,Oxfordshire County Council,Older Peoples Pooled Budget,OPPB ContCare Del He,Other Agency and Contracted Services,57300,Home Support (Ext) OS&HCD,27.05.2015,3350000877,529.50,Bluebird Care
http://statistics.data.gov.uk/id/local-authority/38,Oxfordshire County Council,Older Peoples Pooled Budget,OPPB ContCare H Supp,Other Agency and Contracted Services,57302,Home Support (Ext) Continuing Care,20.05.2015,3350000778,"2,499.00",Bluebird Care
http://statistics.data.gov.uk/id/local-authority/38,Oxfordshire County Council,Older Peoples Pooled Budget,CSB - Didcot,Other Agency and Contracted Services,57300,Home Support (Ext) OS&HCD,11.05.2015,4100009049,651.60,Bluebird Care (South Oxfordshire)
http://statistics.data.gov.uk/id/local-authority/38,Oxfordshire County Council,Older Peoples Pooled Budget,CSB - Didcot,Other Agency and Contracted Services,57300,Home Support (Ext) OS&HCD,22.05.2015,4100012872,677.60,Bluebird Care (South Oxfordshire)
http://statistics.data.gov.uk/id/local-authority/38,Oxfordshire County Council,Older Peoples Pooled Budget,OPPB ContCare H Supp,Other Agency and Contracted Services,57302,Home Support (Ext) Continuing Care,15.05.2015,3350000717,"1,823.80",Bluebird Care (South Oxfordshire)
http://statistics.data.gov.uk/id/local-authority/38,Oxfordshire County Council,Older Peoples Pooled Budget,OPPB ContCare H Supp,Other Agency and Contracted Services,57302,Home Support (Ext) Continuing Care,20.05.2015,3350000768,"1,675.85",Bluebird Care (South Oxfordshire)
http://statistics.data.gov.uk/id/local-authority/38,Oxfordshire County Council,Older Peoples Pooled Budget,OPPB Fast Track,Other Agency and Contracted Services,57304,Home Support (Ext) Palliative Care,15.05.2015,3350000704,650.00,Bluebird Care (South Oxfordshire)
http://statistics.data.gov.uk/id/local-authority/38,Oxfordshire County Council,Older Peoples Pooled Budget,OPPB Fast Track,Other Agency and Contracted Services,57304,Home Support (Ext) Palliative Care,15.05.2015,3350000705,"1,340.90",Bluebird Care (South Oxfordshire)
http://statistics.data.gov.uk/id/local-authority/38,Oxfordshire County Council,Physical Disabilities Pooled Budget,PDPB ContCare H Supp,Other Agency and Contracted Services,57302,Home Support (Ext) Continuing Care,06.05.2015,3350000589,"2,405.76",Bluebird Care Oxford (Bayford New
http://statistics.data.gov.uk/id/local-authority/38,Oxfordshire County Council,Commercial Services,Zone 1 - North,Contract Hire/Leasing,33101,Home to School Trans,08.05.2015,7000012357,"2,519.72",Blunsdon's Coach Travel
http://statistics.data.gov.uk/id/local-authority/38,Oxfordshire County Council,Commercial Services,Zone 1 - North,Contract Hire/Leasing,33101,Home to School Trans,08.05.2015,7000012358,"2,408.98",Blunsdon's Coach Travel
http://statistics.data.gov.uk/id/local-authority/38,Oxfordshire County Council,Children's Social Care,Management & Admin,"Equipment, Furniture and Materials",41613,Equipment Maintenanc,12.05.2015,4100003975,"1,906.37",BNP Paribas Lease Group (Rentals) L
http://statistics.data.gov.uk/id/local-authority/38,Oxfordshire County Council,Children's Social Care,Management & Admin,"Equipment, Furniture and Materials",41613,Equipment Maintenanc,12.05.2015,4100010880,"4,054.66",BNP Paribas Lease Group (Rentals) L
http://statistics.data.gov.uk/id/local-authority/38,Oxfordshire County Council,STD Pension Fund,Pension Fund Investm,Pension Fund Revenue,PR362,Investment - Global Custodian Fees,05.05.2015,3300006931,"2,153.33",BNP Paribas Securities Services
http://statistics.data.gov.uk/id/local-authority/38,Oxfordshire County Council,STD Pension Fund,Pension Fund Investm,Pension Fund Revenue,PR362,Investment - Global Custodian Fees,11.05.2015,3300007015,578.36,BNP Paribas Securities Services
http://statistics.data.gov.uk/id/local-authority/38,Oxfordshire County Council,STD Pension Fund,Pension Fund Investm,Pension Fund Revenue,PR362,Investment - Global Custodian Fees,11.05.2015,3300007015,729.51,BNP Paribas Securities Services
http://statistics.data.gov.uk/id/local-authority/38,Oxfordshire County Council,STD Pension Fund,Pension Fund Investm,Pension Fund Revenue,PR362,Investment - Global Custodian Fees,11.05.2015,3300007015,960.09,BNP Paribas Securities Services
http://statistics.data.gov.uk/id/local-authority/38,Oxfordshire County Council,STD Pension Fund,Pension Fund Investm,Pension Fund Revenue,PR362,Investment - Global Custodian Fees,22.05.2015,3300007066,"2,473.33",BNP Paribas Securities Services
http://statistics.data.gov.uk/id/local-authority/38,Oxfordshire County Council,Oxfordshire Customer Services,SD Student,Expenses,46403,Course / Tuition Fee,20.05.2015,7000015966,875.00,Booker Park School
http://statistics.data.gov.uk/id/local-authority/38,Oxfordshire County Council,Oxfordshire Customer Services,SD Student,Expenses,46403,Course / Tuition Fee,20.05.2015,7000015967,875.00,Booker Park School
http://statistics.data.gov.uk/id/local-authority/38,Oxfordshire County Council,Public Health,GP + Pharmacy Servs,Private Contractors,56406,Pharmaceutical Services,07.05.2015,7000012071,560.00,Boots the Chemist
http://statistics.data.gov.uk/id/local-authority/38,Oxfordshire County Council,Public Health,Contraception,Private Contractors,56406,Pharmaceutical Services,12.05.2015,7000012693,"1,042.60",Boots the Chemist
http://statistics.data.gov.uk/id/local-authority/38,Oxfordshire County Council,Public Health,GP + Pharmacy Servs,Private Contractors,56406,Pharmaceutical Services,07.05.2015,7000012076,"1,400.00",Boswells of Oxford Pharmacy
http://statistics.data.gov.uk/id/local-authority/38,Oxfordshire County Council,Public Health,NHS HealthCheck Prog,Private Contractors,56405,General Practice Services,14.05.2015,7000013948,"1,458.00",Botley Medical Centre
http://statistics.data.gov.uk/id/local-authority/38,Oxfordshire County Council,Public Health,NHS HealthCheck Prog,Private Contractors,56405,General Practice Services,14.05.2015,7000014005,570.00,Botley Medical Centre
http://statistics.data.gov.uk/id/local-authority/38,Oxfordshire County Council,Public Health,NHS HealthCheck Prog,Private Contractors,56405,General Practice Services,14.05.2015,7000014110,566.00,Botley Medical Centre
http://statistics.data.gov.uk/id/local-authority/38,Oxfordshire County Council,Children's Social Care,Placements-Swark S20,Other Agency and Contracted Services,57200,Supported Accommodat,01.05.2015,4100008434,"1,312.26",Bournemouth Churches Housing Associ
http://statistics.data.gov.uk/id/local-authority/38,Oxfordshire County Council,Children's Social Care,YP Pathway,Voluntary Associations,55400,Service Agreements-A,01.05.2015,4100008423,"7,221.00",Bournemouth Churches Housing Associ
http://statistics.data.gov.uk/id/local-authority/38,Oxfordshire County Council,Children's Social Care,YP Pathway,Voluntary Associations,55400,Service Agreements-A,08.05.2015,4100008435,"21,000.00",Bournemouth Churches Housing Associ
http://statistics.data.gov.uk/id/local-authority/38,Oxfordshire County Council,Control Accounts,Control Account Trojan Residential Care,Balance Sheet General,B2040,ABACUS Accounts Payable Control A/c,13.05.2015,7000013423,"2,956.20",Bradbury House Organisation
http://statistics.data.gov.uk/id/local-authority/38,Oxfordshire County Council,Education & Early Intervention,Kilvrough Manor,Catering,42101,Food & Catering,12.05.2015,4100011029,514.68,Brake Bros Foodservice Ltd
http://statistics.data.gov.uk/id/local-authority/38,Oxfordshire County Council,Children's Social Care,Mainstream Res,Other Agency and Contracted Services,57710,Children's Homes,20.05.2015,4100013747,"18,214.29",Branas Isaf
http://statistics.data.gov.uk/id/local-authority/38,Oxfordshire County Council,Education & Early Intervention,Statementing Misc,"Equipment, Furniture and Materials",40500,Specialist Supplies,07.05.2015,4100008053,"19,268.00",Bredon School
http://statistics.data.gov.uk/id/local-authority/38,Oxfordshire County Council,Commercial Services,FE Special Trans,Contract Hire/Leasing,33101,Home to School Trans,28.05.2015,7000015110,"1,296.00",Brians Hire Ltd
http://statistics.data.gov.uk/id/local-authority/38,Oxfordshire County Council,Commercial Services,Out of County,Contract Hire/Leasing,33101,Home to School Trans,28.05.2015,7000015111,672.00,Brians Hire Ltd
http://statistics.data.gov.uk/id/local-authority/38,Oxfordshire County Council,Commercial Services,Out of County,Contract Hire/Leasing,33101,Home to School Trans,28.05.2015,7000015112,"2,028.00",Brians Hire Ltd
http://statistics.data.gov.uk/id/local-authority/38,Oxfordshire County Council,Commercial Services,Nat Trails General,"Equipment, Furniture and Materials",40600,Operational Equipmen,11.05.2015,4100010450,571.50,Briants of Risborough Ltd
http://statistics.data.gov.uk/id/local-authority/38,Oxfordshire County Council,Commercial Services,Nat Trails General,"Equipment, Furniture and Materials",40600,Operational Equipmen,11.05.2015,4100010450,607.50,Briants of Risborough Ltd
http://statistics.data.gov.uk/id/local-authority/38,Oxfordshire County Council,Control Accounts,Control Account Trojan Residential Care,Balance Sheet General,B2040,ABACUS Accounts Payable Control A/c,13.05.2015,7000013424,"63,115.06",Bridge House
http://statistics.data.gov.uk/id/local-authority/38,Oxfordshire County Council,Older Peoples Pooled Budget,CSB - Henley,Other Agency and Contracted Services,57300,Home Support (Ext) OS&HCD,05.05.2015,4100008617,"39,732.78",Bridges Home Care Ltd
http://statistics.data.gov.uk/id/local-authority/38,Oxfordshire County Council,Older Peoples Pooled Budget,CSB - Henley,Other Agency and Contracted Services,57300,Home Support (Ext) OS&HCD,28.05.2015,4100015892,"5,146.12",Bridges Home Care Ltd
http://statistics.data.gov.uk/id/local-authority/38,Oxfordshire County Council,SCS Other Cost Centres,Home suppt trade a/c,Other Agency and Contracted Services,57300,Home Support (Ext) OS&HCD,06.05.2015,7000011578,"17,226.81",Bridges Home Care Ltd
http://statistics.data.gov.uk/id/local-authority/38,Oxfordshire County Council,SCS Other Cost Centres,Home suppt trade a/c,Other Agency and Contracted Services,57300,Home Support (Ext) OS&HCD,20.05.2015,7000015212,"6,927.25",Bridges Home Care Ltd
http://statistics.data.gov.uk/id/local-authority/38,Oxfordshire County Council,SCS Other Cost Centres,Pers Buds LD North,Other Agency and Contracted Services,57300,Home Support (Ext) OS&HCD,07.05.2015,4100010038,"1,128.84",Bright Yellow Group Plc
http://statistics.data.gov.uk/id/local-authority/38,Oxfordshire County Council,SCS Other Cost Centres,Home suppt trade a/c,Other Agency and Contracted Services,57300,Home Support (Ext) OS&HCD,06.05.2015,7000011579,"40,627.58",Bright Yellow Group Plc
http://statistics.data.gov.uk/id/local-authority/38,Oxfordshire County Council,SCS Other Cost Centres,Home suppt trade a/c,Other Agency and Contracted Services,57300,Home Support (Ext) OS&HCD,20.05.2015,7000015213,"8,217.61",Bright Yellow Group Plc
http://statistics.data.gov.uk/id/local-authority/38,Oxfordshire County Council,Commercial Services,Grass Cutting Dist.,Private Contractors,56400,Major Contracts,26.05.2015,3300014828,"1,295.36",Brightwell cum Sotwell Parish Counc
http://statistics.data.gov.uk/id/local-authority/38,Oxfordshire County Council,Commercial Services,Highways Mgt General,Communications and Computing,45200,Telephony - Equipment,13.05.2015,4100007909,"1,488.95",Britannic Technologies Limited
http://statistics.data.gov.uk/id/local-authority/38,Oxfordshire County Council,Older Peoples Pooled Budget,Transport,Contract Hire/Leasing,33103,Transport to Centres,27.05.2015,7000011854,"10,428.62",British Red Cross Society
http://statistics.data.gov.uk/id/local-authority/38,Oxfordshire County Council,Older Peoples Pooled Budget,Other Contract Svs,Voluntary Associations,55400,Service Agreements-A,05.05.2015,4100008564,"19,389.00",British Red Cross Society
http://statistics.data.gov.uk/id/local-authority/38,Oxfordshire County Council,Children's Social Care,Mainstream Res,Other Agency and Contracted Services,57710,Children's Homes,11.05.2015,4100010455,"13,920.00",Broadlands Hall Ltd
http://statistics.data.gov.uk/id/local-authority/38,Oxfordshire County Council,Public Health,Contraception,Private Contractors,56405,General Practice Services,01.05.2015,7000010633,"4,575.00",Broadshires Health Centre
http://statistics.data.gov.uk/id/local-authority/38,Oxfordshire County Council,Public Health,STI Testing+Treatmen,Private Contractors,56405,General Practice Services,01.05.2015,7000010691,718.00,Broadshires Health Centre
http://statistics.data.gov.uk/id/local-authority/38,Oxfordshire County Council,Public Health,NHS HealthCheck Prog,Private Contractors,56405,General Practice Services,14.05.2015,7000013972,"1,191.00",Broadshires Health Centre
http://statistics.data.gov.uk/id/local-authority/38,Oxfordshire County Council,Public Health,NHS HealthCheck Prog,Private Contractors,56405,General Practice Services,14.05.2015,7000014030,"1,515.00",Broadshires Health Centre
http://statistics.data.gov.uk/id/local-authority/38,Oxfordshire County Council,Public Health,NHS HealthCheck Prog,Private Contractors,56405,General Practice Services,14.05.2015,7000014124,"2,400.00",Broadshires Health Centre
http://statistics.data.gov.uk/id/local-authority/38,Oxfordshire County Council,Public Health,Residential Treatmen,Other Agency and Contracted Services,57101,Residential Home Bed,28.05.2015,4100015974,"1,009.40",Broadway Lodge
http://statistics.data.gov.uk/id/local-authority/38,Oxfordshire County Council,Control Accounts,Control Account Trojan Residential Care,Balance Sheet General,B2040,ABACUS Accounts Payable Control A/c,13.05.2015,7000013425,"1,942.28",Bromford Support
http://statistics.data.gov.uk/id/local-authority/38,Oxfordshire County Council,Control Accounts,Control Account Trojan Residential Care,Balance Sheet General,B2040,ABACUS Accounts Payable Control A/c,13.05.2015,7000013426,"19,810.29",Brook House Residential
http://statistics.data.gov.uk/id/local-authority/38,Oxfordshire County Council,SCS Other Cost Centres,Personal Budgets MH,Other Agency and Contracted Services,57300,Home Support (Ext) OS&HCD,27.05.2015,3300015299,"1,875.00",Brook House Residential
http://statistics.data.gov.uk/id/local-authority/38,Oxfordshire County Council,Control Accounts,Control Account Trojan Residential Care,Balance Sheet General,B2040,ABACUS Accounts Payable Control A/c,13.05.2015,7000013427,"8,635.71",Brookdale Care
http://statistics.data.gov.uk/id/local-authority/38,Oxfordshire County Council,Control Accounts,Control Account Trojan Residential Care,Balance Sheet General,B2040,ABACUS Accounts Payable Control A/c,13.05.2015,7000013546,"9,801.00",Brookdale Care
http://statistics.data.gov.uk/id/local-authority/38,Oxfordshire County Council,Control Accounts,Control Account Trojan Residential Care,Balance Sheet General,B2040,ABACUS Accounts Payable Control A/c,13.05.2015,7000013429,"2,122.70",Broome End Ltd
http://statistics.data.gov.uk/id/local-authority/38,Oxfordshire County Council,Commercial Services,FE Special Trans,Contract Hire/Leasing,33101,Home to School Trans,15.05.2015,7000012753,"1,020.00",Browns Taxis Ltd
http://statistics.data.gov.uk/id/local-authority/38,Oxfordshire County Council,Commercial Services,Oxford Sth SEN Trans,Contract Hire/Leasing,33101,Home to School Trans,15.05.2015,7000012755,"2,665.00",Browns Taxis Ltd
http://statistics.data.gov.uk/id/local-authority/38,Oxfordshire County Council,Commercial Services,Meadowbrook Transprt,Contract Hire/Leasing,33101,Home to School Trans,15.05.2015,7000012756,"1,864.00",Browns Taxis Ltd
http://statistics.data.gov.uk/id/local-authority/38,Oxfordshire County Council,Control Accounts,Control Account Trojan Residential Care,Balance Sheet General,B2040,ABACUS Accounts Payable Control A/c,13.05.2015,7000013430,"5,383.68",Bryn-y-Wawr
http://statistics.data.gov.uk/id/local-authority/38,Oxfordshire County Council,Oxfordshire Customer Services,ICT Operations & Mai,Communications and Computing,45202,Telephony - ISDN,15.05.2015,4100012695,"32,364.61",BT Plc (One Bill)
http://statistics.data.gov.uk/id/local-authority/38,Oxfordshire County Council,Oxfordshire Customer Services,ICT Operations & Mai,Communications and Computing,45203,Telephony - Exchange Line,15.05.2015,4100012695,"54,247.99",BT Plc (One Bill)
http://statistics.data.gov.uk/id/local-authority/38,Oxfordshire County Council,Oxfordshire Customer Services,ICT Operations & Mai,Communications and Computing,45205,Telephony - Business Broadband,15.05.2015,4100012695,"37,428.77",BT Plc (One Bill)
http://statistics.data.gov.uk/id/local-authority/38,Oxfordshire County Council,Oxfordshire Customer Services,ICT Operations & Mai,Communications and Computing,45207,Telephony - Private Circuits,15.05.2015,4100012695,"26,941.27",BT Plc (One Bill)
http://statistics.data.gov.uk/id/local-authority/38,Oxfordshire County Council,Commercial Services,Comp Licences/Syst,Communications and Computing,45801,IT Maintenance,28.05.2015,4100015801,"4,096.80",Buchanan Computing
http://statistics.data.gov.uk/id/local-authority/38,Oxfordshire County Council,Commercial Services,Comp Licences/Syst,Communications and Computing,45801,IT Maintenance,28.05.2015,4100015912,"2,730.00",Buchanan Computing
http://statistics.data.gov.uk/id/local-authority/38,Oxfordshire County Council,Strategy & Infrastructure Planning,S38 Inspect & Other,Communications and Computing,45801,IT Maintenance,28.05.2015,4100015913,"2,835.60",Buchanan Computing
http://statistics.data.gov.uk/id/local-authority/38,Oxfordshire County Council,Education & Early Intervention,LAC Pupil Premium,Other Committees of the Council,51350,Devolved Funding to Schools,08.05.2015,7000012414,"1,445.52",Buckingham Primary School
http://statistics.data.gov.uk/id/local-authority/38,Oxfordshire County Council,Community Safety,Uniformed Salaries,Expenses,46510,Professional Fees,08.05.2015,4100007808,"1,779.00",Buckinghamshire & Milton Keynes
http://statistics.data.gov.uk/id/local-authority/38,Oxfordshire County Council,Control Accounts,Control Account Trojan Residential Care,Balance Sheet General,B2040,ABACUS Accounts Payable Control A/c,13.05.2015,7000013529,"1,107.14",Buckinghamshire County Council
http://statistics.data.gov.uk/id/local-authority/38,Oxfordshire County Council,Control Accounts,Control Account Trojan Residential Care,Balance Sheet General,B2040,ABACUS Accounts Payable Control A/c,13.05.2015,7000013763,"2,023.64",Buckinghamshire County Council
http://statistics.data.gov.uk/id/local-authority/38,Oxfordshire County Council,Oxfordshire Customer Services,SD Student,Expenses,46403,Course / Tuition Fee,20.05.2015,7000015977,875.00,Buckinghamshire County Council
http://statistics.data.gov.uk/id/local-authority/38,Oxfordshire County Council,SCS Other Cost Centres,Pers Buds LD South,Other Agency and Contracted Services,57508,Short Breaks (Respite),18.05.2015,4100010982,"1,171.70",Buckinghamshire County Council
http://statistics.data.gov.uk/id/local-authority/38,Oxfordshire County Council,Children's Social Care,Cross Regional Commi,Other Agency and Contracted Services,57710,Children's Homes,19.05.2015,4100013179,"225,562.40",Buckinghamshire County Council
http://statistics.data.gov.uk/id/local-authority/38,Oxfordshire County Council,Older Peoples Pooled Budget,OPPB Other DD Fines,Miscellaneous Expenses,48800,Delayed Discharge Fines,21.05.2015,4100013177,600.00,Buckinghamshire Healthcare NHST
http://statistics.data.gov.uk/id/local-authority/38,Oxfordshire County Council,Older Peoples Pooled Budget,Aids & Adpt Team,Services,44500,Other Hired & Contract Services,22.05.2015,4100010368,"1,008.00",Buddi Ltd
http://statistics.data.gov.uk/id/local-authority/38,Oxfordshire County Council,Older Peoples Pooled Budget,Aids & Adpt Team,Services,44500,Other Hired & Contract Services,22.05.2015,4100010449,864.00,Buddi Ltd
http://statistics.data.gov.uk/id/local-authority/38,Oxfordshire County Council,Older Peoples Pooled Budget,Aids & Adpt Team,Services,44500,Other Hired & Contract Services,22.05.2015,4100010449,"2,880.00",Buddi Ltd
http://statistics.data.gov.uk/id/local-authority/38,Oxfordshire County Council,Control Accounts,Control Account Trojan Residential Care,Balance Sheet General,B2040,ABACUS Accounts Payable Control A/c,13.05.2015,7000013860,"1,984.49",Bupa Care Services
http://statistics.data.gov.uk/id/local-authority/38,Oxfordshire County Council,Education & Early Intervention,HN in Sec Schools,Other Committees of the Council,51350,Devolved Funding to Schools,21.05.2015,4100014155,"3,686.00",Burford Academy
http://statistics.data.gov.uk/id/local-authority/38,Oxfordshire County Council,Education & Early Intervention,LAC Pupil Premium,Other Committees of the Council,51350,Devolved Funding to Schools,12.05.2015,7000012725,885.00,Burford Academy
http://statistics.data.gov.uk/id/local-authority/38,Oxfordshire County Council,Public Health,NHS HealthCheck Prog,Private Contractors,56405,General Practice Services,14.05.2015,7000014115,600.00,Burford Surgery
http://statistics.data.gov.uk/id/local-authority/38,Oxfordshire County Council,Control Accounts,Control Account Trojan Residential Care,Balance Sheet General,B2040,ABACUS Accounts Payable Control A/c,13.05.2015,7000013431,"6,525.09",Burnham House Care Home
http://statistics.data.gov.uk/id/local-authority/38,Oxfordshire County Council,Commercial Services,Vehicle Maintenance,Contract Hire/Leasing,33600,Hire of vehicles,28.05.2015,4100011114,"30,565.20",Burnt Tree Group
http://statistics.data.gov.uk/id/local-authority/38,Oxfordshire County Council,Public Health,Residential Treatmen,Miscellaneous Expenses,48700,Recharge Internal Supplies & Services Costs,12.05.2015,4100010782,"2,600.00",Burton Addiction Centre
http://statistics.data.gov.uk/id/local-authority/38,Oxfordshire County Council,Public Health,Residential Treatmen,Miscellaneous Expenses,48700,Recharge Internal Supplies & Services Costs,14.05.2015,4100010999,"2,600.00",Burton Addiction Centre
http://statistics.data.gov.uk/id/local-authority/38,Oxfordshire County Council,Public Health,Residential Treatmen,Miscellaneous Expenses,48700,Recharge Internal Supplies & Services Costs,12.05.2015,4100011034,"2,600.00",Burton Addiction Centre
http://statistics.data.gov.uk/id/local-authority/38,Oxfordshire County Council,Public Health,Residential Treatmen,Miscellaneous Expenses,48700,Recharge Internal Supplies & Services Costs,19.05.2015,4100012992,"3,085.71",Burton Addiction Centre
http://statistics.data.gov.uk/id/local-authority/38,Oxfordshire County Council,Public Health,Contraception,Private Contractors,56405,General Practice Services,01.05.2015,7000010600,"1,497.50",Bury Knowle Health Centre
http://statistics.data.gov.uk/id/local-authority/38,Oxfordshire County Council,Public Health,STI Testing+Treatmen,Private Contractors,56405,General Practice Services,01.05.2015,7000010653,698.00,Bury Knowle Health Centre
http://statistics.data.gov.uk/id/local-authority/38,Oxfordshire County Council,Public Health,NHS HealthCheck Prog,Private Contractors,56405,General Practice Services,14.05.2015,7000013937,"1,710.00",Bury Knowle Health Centre
http://statistics.data.gov.uk/id/local-authority/38,Oxfordshire County Council,Public Health,NHS HealthCheck Prog,Private Contractors,56405,General Practice Services,14.05.2015,7000013993,930.00,Bury Knowle Health Centre
http://statistics.data.gov.uk/id/local-authority/38,Oxfordshire County Council,Public Health,NHS HealthCheck Prog,Private Contractors,56405,General Practice Services,14.05.2015,7000014104,"1,420.00",Bury Knowle Health Centre
http://statistics.data.gov.uk/id/local-authority/38,Oxfordshire County Council,Public Health,GP + Pharmacy Servs,Private Contractors,56405,General Practice Services,18.05.2015,7000014860,"2,665.00",Bury Knowle Health Centre
http://statistics.data.gov.uk/id/local-authority/38,Oxfordshire County Council,Education & Early Intervention,Playgroup Fees,Voluntary Associations,55300,Fees to Centres Playgroups,01.05.2015,7000010550,675.00,Busy Bees Playgroup
http://statistics.data.gov.uk/id/local-authority/38,Oxfordshire County Council,Education & Early Intervention,LAC Pupil Premium,Other Committees of the Council,51350,Devolved Funding to Schools,08.05.2015,7000012415,885.00,Buxton Junior School
http://statistics.data.gov.uk/id/local-authority/38,Oxfordshire County Council,Children's Social Care,Independent Foster,Other Agency and Contracted Services,57801,Independent Fostering Agencies,29.05.2015,4100015852,"3,866.14",By the Bridge Ltd
http://statistics.data.gov.uk/id/local-authority/38,Oxfordshire County Council,Children's Social Care,Independent Foster,Other Agency and Contracted Services,57801,Independent Fostering Agencies,29.05.2015,4100015875,"2,821.80",By the Bridge Ltd
http://statistics.data.gov.uk/id/local-authority/38,Oxfordshire County Council,Children's Social Care,Independent Foster,Other Agency and Contracted Services,57801,Independent Fostering Agencies,29.05.2015,4100015880,"4,078.16",By the Bridge Ltd
http://statistics.data.gov.uk/id/local-authority/38,Oxfordshire County Council,Children's Social Care,Independent Foster,Other Agency and Contracted Services,57801,Independent Fostering Agencies,29.05.2015,4100015894,"4,427.14",By the Bridge Ltd
http://statistics.data.gov.uk/id/local-authority/38,Oxfordshire County Council,Children's Social Care,Independent Foster,Other Agency and Contracted Services,57801,Independent Fostering Agencies,29.05.2015,4100015981,"3,985.71",By the Bridge Ltd
http://statistics.data.gov.uk/id/local-authority/38,Oxfordshire County Council,Children's Social Care,Agency Resid - Disab,Other Agency and Contracted Services,57801,Independent Fostering Agencies,29.05.2015,4100015988,"3,050.46",By the Bridge Ltd
http://statistics.data.gov.uk/id/local-authority/38,Oxfordshire County Council,Children's Social Care,Independent Foster,Other Agency and Contracted Services,57801,Independent Fostering Agencies,29.05.2015,4100015995,"4,294.33",By the Bridge Ltd
http://statistics.data.gov.uk/id/local-authority/38,Oxfordshire County Council,Children's Social Care,Independent Foster,Other Agency and Contracted Services,57801,Independent Fostering Agencies,29.05.2015,4100016007,"4,427.14",By the Bridge Ltd
http://statistics.data.gov.uk/id/local-authority/38,Oxfordshire County Council,Children's Social Care,Independent Foster,Other Agency and Contracted Services,57801,Independent Fostering Agencies,29.05.2015,4100016021,"4,294.33",By the Bridge Ltd
http://statistics.data.gov.uk/id/local-authority/38,Oxfordshire County Council,Children's Social Care,Independent Foster,Other Agency and Contracted Services,57801,Independent Fostering Agencies,29.05.2015,4100016032,"3,985.71",By the Bridge Ltd
http://statistics.data.gov.uk/id/local-authority/38,Oxfordshire County Council,Children's Social Care,Independent Foster,Social Services Client Expenditure,44603,Personal Needs,28.05.2015,4100015993,627.72,By the Bridge Ltd
http://statistics.data.gov.uk/id/local-authority/38,Oxfordshire County Council,Oxfordshire Customer Services,ICT Operations & Mai,Communications and Computing,45801,IT Maintenance,08.05.2015,4100006831,"1,900.80",Bytes Software Services Ltd
http://statistics.data.gov.uk/id/local-authority/38,Oxfordshire County Council,Oxfordshire Customer Services,ICT Operations & Mai,Communications and Computing,45801,IT Maintenance,08.05.2015,4100006831,"7,921.37",Bytes Software Services Ltd
http://statistics.data.gov.uk/id/local-authority/38,Oxfordshire County Council,Commercial Services,Oxford Sth SEN Trans,Contract Hire/Leasing,33101,Home to School Trans,08.05.2015,7000012027,"1,479.04",C A Pittaway Transport
http://statistics.data.gov.uk/id/local-authority/38,Oxfordshire County Council,Commercial Services,Oxford Nth SEN Trans,Contract Hire/Leasing,33101,Home to School Trans,08.05.2015,7000012028,"1,769.71",C A Pittaway Transport
http://statistics.data.gov.uk/id/local-authority/38,Oxfordshire County Council,Quality & Compliance,Capital Charges - Premises,Capital Expenditure,CCBA1,Other hired & contracted services - General,28.05.2015,4100012218,"3,236.40",C A Traffic Ltd
http://statistics.data.gov.uk/id/local-authority/38,Oxfordshire County Council,Commercial Services,WCR Improvement,"Equipment, Furniture and Materials",40101,Furniture & Equipment,12.05.2015,4100010679,"1,008.00",C A Traffic Ltd
http://statistics.data.gov.uk/id/local-authority/38,Oxfordshire County Council,Commercial Services,Cens & Surv Non Grnt,Expenses,46510,Professional Fees,12.05.2015,4100002530,786.00,C A Traffic Ltd
http://statistics.data.gov.uk/id/local-authority/38,Oxfordshire County Council,Commercial Services,Bridges General,"Equipment, Furniture and Materials",40600,Operational Equipmen,13.05.2015,4100009664,709.92,C J Clarke (Timber Merchants) Ltd
http://statistics.data.gov.uk/id/local-authority/38,Oxfordshire County Council,Commercial Services,Bridges General,"Equipment, Furniture and Materials",40600,Operational Equipmen,18.05.2015,4100012027,"1,053.00",C J Clarke (Timber Merchants) Ltd
http://statistics.data.gov.uk/id/local-authority/38,Oxfordshire County Council,Commercial Services,Bridges General,"Equipment, Furniture and Materials",40600,Operational Equipmen,28.05.2015,4100015024,"2,433.02",C J Clarke (Timber Merchants) Ltd
http://statistics.data.gov.uk/id/local-authority/38,Oxfordshire County Council,Commercial Services,Abingdon SEN Trans,Contract Hire/Leasing,33101,Home to School Trans,21.05.2015,7000016090,"1,176.00",C V O'Sullivan
http://statistics.data.gov.uk/id/local-authority/38,Oxfordshire County Council,Commercial Services,FE Special Trans,Contract Hire/Leasing,33101,Home to School Trans,21.05.2015,7000016094,"1,139.78",C V O'Sullivan
http://statistics.data.gov.uk/id/local-authority/38,Oxfordshire County Council,Commercial Services,Abingdon SEN Trans,Contract Hire/Leasing,33101,Home to School Trans,21.05.2015,7000016096,"2,584.51",C V O'Sullivan
http://statistics.data.gov.uk/id/local-authority/38,Oxfordshire County Council,Commercial Services,Abingdon SEN Trans,Contract Hire/Leasing,33101,Home to School Trans,21.05.2015,7000016098,"1,270.58",C V O'Sullivan
http://statistics.data.gov.uk/id/local-authority/38,Oxfordshire County Council,Learning Disabilities Pooled Budget,PB LDSouth,Contract Hire/Leasing,33300,Transport (General),18.05.2015,7000015046,"1,142.40",C V O'Sullivan
http://statistics.data.gov.uk/id/local-authority/38,Oxfordshire County Council,Commercial Services,Abingdon SEN Trans,Contract Hire/Leasing,33300,Transport (General),21.05.2015,7000016097,825.55,C V O'Sullivan
http://statistics.data.gov.uk/id/local-authority/38,Oxfordshire County Council,Learning Disabilities Pooled Budget,PB LDSouth,Public Transport,34200,Client Journeys,21.05.2015,7000016093,687.46,C V O'Sullivan
http://statistics.data.gov.uk/id/local-authority/38,Oxfordshire County Council,Commercial Services,Respite Care,Contract Hire/Leasing,33101,Home to School Trans,07.05.2015,7000012155,"2,318.40",C&M Management Services Ltd
http://statistics.data.gov.uk/id/local-authority/38,Oxfordshire County Council,Commercial Services,Wantage SEN Trans,Contract Hire/Leasing,33101,Home to School Trans,07.05.2015,7000012158,"1,445.47",C&M Management Services Ltd
http://statistics.data.gov.uk/id/local-authority/38,Oxfordshire County Council,Commercial Services,Abingdon SEN Trans,Contract Hire/Leasing,33101,Home to School Trans,07.05.2015,7000012160,"1,869.00",C&M Management Services Ltd
http://statistics.data.gov.uk/id/local-authority/38,Oxfordshire County Council,Commercial Services,Out of County,Contract Hire/Leasing,33101,Home to School Trans,07.05.2015,7000012162,666.00,C&M Management Services Ltd
http://statistics.data.gov.uk/id/local-authority/38,Oxfordshire County Council,Commercial Services,Out of County,Contract Hire/Leasing,33101,Home to School Trans,07.05.2015,7000012164,972.00,C&M Management Services Ltd
http://statistics.data.gov.uk/id/local-authority/38,Oxfordshire County Council,Commercial Services,Witney SEN Trans,Contract Hire/Leasing,33101,Home to School Trans,07.05.2015,7000012165,"1,672.61",C&M Management Services Ltd
http://statistics.data.gov.uk/id/local-authority/38,Oxfordshire County Council,Commercial Services,Witney SEN Trans,Contract Hire/Leasing,33101,Home to School Trans,07.05.2015,7000012167,"1,439.09",C&M Management Services Ltd
http://statistics.data.gov.uk/id/local-authority/38,Oxfordshire County Council,Commercial Services,Abingdon SEN Trans,Contract Hire/Leasing,33101,Home to School Trans,07.05.2015,7000012170,"2,193.91",C&M Management Services Ltd
http://statistics.data.gov.uk/id/local-authority/38,Oxfordshire County Council,Commercial Services,Bicester SEN Trans,Contract Hire/Leasing,33101,Home to School Trans,07.05.2015,7000012172,"3,223.92",C&M Management Services Ltd
http://statistics.data.gov.uk/id/local-authority/38,Oxfordshire County Council,Commercial Services,Witney SEN Trans,Contract Hire/Leasing,33101,Home to School Trans,07.05.2015,7000012174,"1,589.78",C&M Management Services Ltd
http://statistics.data.gov.uk/id/local-authority/38,Oxfordshire County Council,Commercial Services,Wantage SEN Trans,Contract Hire/Leasing,33101,Home to School Trans,07.05.2015,7000012176,"1,580.21",C&M Management Services Ltd
http://statistics.data.gov.uk/id/local-authority/38,Oxfordshire County Council,Commercial Services,Oxford Sth SEN Trans,Contract Hire/Leasing,33101,Home to School Trans,07.05.2015,7000012178,"2,652.55",C&M Management Services Ltd
http://statistics.data.gov.uk/id/local-authority/38,Oxfordshire County Council,Commercial Services,Oxford Sth SEN Trans,Contract Hire/Leasing,33101,Home to School Trans,07.05.2015,7000012180,"1,852.20",C&M Management Services Ltd
http://statistics.data.gov.uk/id/local-authority/38,Oxfordshire County Council,Commercial Services,Abingdon SEN Trans,Contract Hire/Leasing,33300,Transport (General),07.05.2015,7000012161,501.98,C&M Management Services Ltd
http://statistics.data.gov.uk/id/local-authority/38,Oxfordshire County Council,Commercial Services,Witney SEN Trans,Contract Hire/Leasing,33300,Transport (General),07.05.2015,7000012168,619.49,C&M Management Services Ltd
http://statistics.data.gov.uk/id/local-authority/38,Oxfordshire County Council,Commercial Services,Abingdon SEN Trans,Contract Hire/Leasing,33300,Transport (General),07.05.2015,7000012171,667.97,C&M Management Services Ltd
http://statistics.data.gov.uk/id/local-authority/38,Oxfordshire County Council,Commercial Services,Bicester SEN Trans,Contract Hire/Leasing,33300,Transport (General),07.05.2015,7000012173,"1,327.20",C&M Management Services Ltd
http://statistics.data.gov.uk/id/local-authority/38,Oxfordshire County Council,Children's Social Care,Comm Supp - North,Other Agency and Contracted Services,57800,Other Agency Payment,15.05.2015,4100008538,"15,766.00",Cabrini Children's Society
http://statistics.data.gov.uk/id/local-authority/38,Oxfordshire County Council,Oxfordshire Customer Services,ER All Other NVQs,Services,44500,Other Hired & Contract Services,19.05.2015,4100010562,"2,314.00",CACHE
http://statistics.data.gov.uk/id/local-authority/38,Oxfordshire County Council,Oxfordshire Customer Services,ER All Other NVQs,Services,44500,Other Hired & Contract Services,28.05.2015,4100015896,"2,287.00",CACHE
http://statistics.data.gov.uk/id/local-authority/38,Oxfordshire County Council,Oxfordshire Customer Services,ER All Other NVQs,Services,44500,Other Hired & Contract Services,28.05.2015,4100015897,"2,287.00",CACHE
http://statistics.data.gov.uk/id/local-authority/38,Oxfordshire County Council,Children's Social Care,Management & Admin,Communications and Computing,45801,IT Maintenance,26.05.2015,4100009700,"10,143.02",CACI Ltd
http://statistics.data.gov.uk/id/local-authority/38,Oxfordshire County Council,Children's Social Care,Mainstream Res,Other Agency and Contracted Services,57710,Children's Homes,11.05.2015,4100010462,"12,214.28",Calcot Services For Children
http://statistics.data.gov.uk/id/local-authority/38,Oxfordshire County Council,Children's Social Care,Mainstream Res,Other Agency and Contracted Services,57710,Children's Homes,11.05.2015,4100010491,"12,214.28",Calcot Services For Children
http://statistics.data.gov.uk/id/local-authority/38,Oxfordshire County Council,Children's Social Care,Mainstream Res,Other Agency and Contracted Services,57710,Children's Homes,20.05.2015,4100013769,"12,214.28",Calcot Services For Children
http://statistics.data.gov.uk/id/local-authority/38,Oxfordshire County Council,Control Accounts,Control Account Trojan Residential Care,Balance Sheet General,B2040,ABACUS Accounts Payable Control A/c,13.05.2015,7000013432,"31,082.11",Cambian Autism Services Ltd
http://statistics.data.gov.uk/id/local-authority/38,Oxfordshire County Council,Education & Early Intervention,Out of County,Voluntary Associations,55100,Fees to Non Maintain,11.05.2015,4100005782,"46,302.56",Cambian Autism Services Ltd
http://statistics.data.gov.uk/id/local-authority/38,Oxfordshire County Council,Control Accounts,Control Account Trojan Residential Care,Balance Sheet General,B2040,ABACUS Accounts Payable Control A/c,13.05.2015,7000013433,"33,117.21",Cambian Learning Disabilities (Midl
http://statistics.data.gov.uk/id/local-authority/38,Oxfordshire County Council,Control Accounts,Control Account Trojan Residential Care,Balance Sheet General,B2040,ABACUS Accounts Payable Control A/c,13.05.2015,7000013434,"3,804.41",Camphill Communities Thornbury
http://statistics.data.gov.uk/id/local-authority/38,Oxfordshire County Council,Public Health,YP Treatment&Servs,Grants and Subscriptions,47100,Grants to Voluntary,22.05.2015,4100006200,"28,333.34",CAN
http://statistics.data.gov.uk/id/local-authority/38,Oxfordshire County Council,Older Peoples Pooled Budget,DTOC Funding,Social Services Client Expenditure,44601,Drugs and Medical Re,13.05.2015,4100011019,"1,212.00",Canary Care Ltd
http://statistics.data.gov.uk/id/local-authority/38,Oxfordshire County Council,Commercial Services,Central Printing,"Equipment, Furniture and Materials",40002,Lease equipment usage charge,11.05.2015,4100010355,"1,061.46",Canon (UK) Ltd
http://statistics.data.gov.uk/id/local-authority/38,Oxfordshire County Council,Commercial Services,Central Printing,"Equipment, Furniture and Materials",40002,Lease equipment usage charge,12.05.2015,4100011031,"10,494.22",Canon (UK) Ltd
http://statistics.data.gov.uk/id/local-authority/38,Oxfordshire County Council,Commercial Services,Central Printing,"Equipment, Furniture and Materials",40002,Lease equipment usage charge,18.05.2015,4100012835,"1,745.42",Canon (UK) Ltd
http://statistics.data.gov.uk/id/local-authority/38,Oxfordshire County Council,Commercial Services,Central Printing,"Equipment, Furniture and Materials",40002,Lease equipment usage charge,19.05.2015,4100013191,530.34,Canon (UK) Ltd
http://statistics.data.gov.uk/id/local-authority/38,Oxfordshire County Council,Commercial Services,Central Printing,"Equipment, Furniture and Materials",40002,Lease equipment usage charge,22.05.2015,4100014649,510.14,Canon (UK) Ltd
http://statistics.data.gov.uk/id/local-authority/38,Oxfordshire County Council,Commercial Services,Central Printing,"Equipment, Furniture and Materials",40002,Lease equipment usage charge,22.05.2015,4100014730,852.77,Canon (UK) Ltd
http://statistics.data.gov.uk/id/local-authority/38,Oxfordshire County Council,Commercial Services,Central Printing,"Printing,Stationery and Gen Office Exp",43800,Photocopier rental,11.05.2015,4100010423,986.54,Canon (UK) Ltd
http://statistics.data.gov.uk/id/local-authority/38,Oxfordshire County Council,Commercial Services,Central Printing,"Printing,Stationery and Gen Office Exp",43800,Photocopier rental,12.05.2015,4100011033,"2,901.90",Canon (UK) Ltd
http://statistics.data.gov.uk/id/local-authority/38,Oxfordshire County Council,Commercial Services,Central Printing,"Printing,Stationery and Gen Office Exp",43800,Photocopier rental,14.05.2015,4100012111,567.42,Canon (UK) Ltd
http://statistics.data.gov.uk/id/local-authority/38,Oxfordshire County Council,Oxfordshire Customer Services,ICT Operations & Mai,Communications and Computing,45801,IT Maintenance,14.05.2015,4100012215,"229,760.33",Capita Business Services Ltd
http://statistics.data.gov.uk/id/local-authority/38,Oxfordshire County Council,Oxfordshire Customer Services,ICT Operations & Mai,Communications and Computing,45801,IT Maintenance,14.05.2015,4100012355,"3,124.54",Capita Business Services Ltd
http://statistics.data.gov.uk/id/local-authority/38,Oxfordshire County Council,Oxfordshire Customer Services,ICT Operations & Mai,Communications and Computing,45801,IT Maintenance,14.05.2015,4100012355,"10,080.20",Capita Business Services Ltd
http://statistics.data.gov.uk/id/local-authority/38,Oxfordshire County Council,Oxfordshire Customer Services,ICT Operations & Mai,Communications and Computing,45801,IT Maintenance,14.05.2015,4100012355,"18,120.61",Capita Business Services Ltd
http://statistics.data.gov.uk/id/local-authority/38,Oxfordshire County Council,Education & Early Intervention,Children Centres ICT,Expenses,46901,Licenses,11.05.2015,4100010451,"40,775.32",Capita Business Services Ltd
http://statistics.data.gov.uk/id/local-authority/38,Oxfordshire County Council,Law & Culture,History Service,Services,44500,Other Hired & Contract Services,05.05.2015,4100008540,"3,042.14",Capita Business Services Ltd T/A
http://statistics.data.gov.uk/id/local-authority/38,Oxfordshire County Council,Oxfordshire Customer Services,OCN,Communications and Computing,45200,Telephony - Equipment,28.05.2015,4100012450,"20,082.00",Capita IT Services
http://statistics.data.gov.uk/id/local-authority/38,Oxfordshire County Council,Community Safety,Brent Gypsy & Trav,Planned R&M,21000,Repair & Maintenance (Non-Delegated),28.05.2015,4100015791,504.00,Capital Heating Ltd / CH Maintenanc
http://statistics.data.gov.uk/id/local-authority/38,Oxfordshire County Council,Children's Social Care,AS Unac 16&17 Minors,Other Agency and Contracted Services,57801,Independent Fostering Agencies,29.05.2015,4100014072,"3,321.34",Capstone Vision Foster Care Ltd
http://statistics.data.gov.uk/id/local-authority/38,Oxfordshire County Council,Older Peoples Pooled Budget,ETMS,Services,44500,Other Hired & Contract Services,19.05.2015,4100013211,"17,484.16",Care Monitoring 2000 Ltd.
http://statistics.data.gov.uk/id/local-authority/38,Oxfordshire County Council,SCS Other Cost Centres,Home suppt trade a/c,Other Agency and Contracted Services,57300,Home Support (Ext) OS&HCD,06.05.2015,7000011580,"15,205.00",Care Outlook Ltd
http://statistics.data.gov.uk/id/local-authority/38,Oxfordshire County Council,SCS Other Cost Centres,Home suppt trade a/c,Other Agency and Contracted Services,57300,Home Support (Ext) OS&HCD,20.05.2015,7000015214,"2,910.25",Care Outlook Ltd
http://statistics.data.gov.uk/id/local-authority/38,Oxfordshire County Council,Oxfordshire Customer Services,FBS - City,Services,44500,Other Hired & Contract Services,11.05.2015,4100010174,"2,469.42",Care Training Solutions Ltd
http://statistics.data.gov.uk/id/local-authority/38,Oxfordshire County Council,Oxfordshire Customer Services,FBS - City,Services,44500,Other Hired & Contract Services,11.05.2015,4100010174,"5,093.62",Care Training Solutions Ltd
http://statistics.data.gov.uk/id/local-authority/38,Oxfordshire County Council,Oxfordshire Customer Services,FBS - City,Services,44500,Other Hired & Contract Services,11.05.2015,4100010380,"2,469.42",Care Training Solutions Ltd
http://statistics.data.gov.uk/id/local-authority/38,Oxfordshire County Council,Oxfordshire Customer Services,FBS - City,Services,44500,Other Hired & Contract Services,11.05.2015,4100010380,"5,093.62",Care Training Solutions Ltd
http://statistics.data.gov.uk/id/local-authority/38,Oxfordshire County Council,Oxfordshire Customer Services,FBS - City,Services,44500,Other Hired & Contract Services,21.05.2015,4100014229,"2,469.42",Care Training Solutions Ltd
http://statistics.data.gov.uk/id/local-authority/38,Oxfordshire County Council,Oxfordshire Customer Services,FBS - City,Services,44500,Other Hired & Contract Services,21.05.2015,4100014229,"5,093.62",Care Training Solutions Ltd
http://statistics.data.gov.uk/id/local-authority/38,Oxfordshire County Council,Control Accounts,Control Account Trojan Residential Care,Balance Sheet General,B2040,ABACUS Accounts Payable Control A/c,13.05.2015,7000013435,"9,571.25",Care UK
http://statistics.data.gov.uk/id/local-authority/38,Oxfordshire County Council,Control Accounts,Control Account Trojan Residential Care,Balance Sheet General,B2040,ABACUS Accounts Payable Control A/c,13.05.2015,7000013853,"12,742.02",Care UK Learning Disabilities
http://statistics.data.gov.uk/id/local-authority/38,Oxfordshire County Council,SCS Other Cost Centres,PB OP WEST,Other Agency and Contracted Services,57300,Home Support (Ext) OS&HCD,07.05.2015,4100008662,"1,128.90",Care with Care Ltd
http://statistics.data.gov.uk/id/local-authority/38,Oxfordshire County Council,SCS Other Cost Centres,PB OP WEST,Other Agency and Contracted Services,57300,Home Support (Ext) OS&HCD,05.05.2015,4100008671,660.30,Care with Care Ltd
http://statistics.data.gov.uk/id/local-authority/38,Oxfordshire County Council,SCS Other Cost Centres,PB OP WEST,Other Agency and Contracted Services,57300,Home Support (Ext) OS&HCD,07.05.2015,4100009900,708.23,Care with Care Ltd
http://statistics.data.gov.uk/id/local-authority/38,Oxfordshire County Council,SCS Other Cost Centres,PB OP WEST,Other Agency and Contracted Services,57300,Home Support (Ext) OS&HCD,07.05.2015,4100009901,708.23,Care with Care Ltd
http://statistics.data.gov.uk/id/local-authority/38,Oxfordshire County Council,Older Peoples Pooled Budget,CMPB Witney,Other Agency and Contracted Services,57300,Home Support (Ext) OS&HCD,27.05.2015,4100015692,692.25,Care with Care Ltd
http://statistics.data.gov.uk/id/local-authority/38,Oxfordshire County Council,SCS Other Cost Centres,Home suppt trade a/c,Other Agency and Contracted Services,57300,Home Support (Ext) OS&HCD,06.05.2015,7000011581,"51,491.47",Care2Care Ltd
http://statistics.data.gov.uk/id/local-authority/38,Oxfordshire County Council,SCS Other Cost Centres,Home suppt trade a/c,Other Agency and Contracted Services,57300,Home Support (Ext) OS&HCD,20.05.2015,7000015215,"16,024.50",Care2Care Ltd
http://statistics.data.gov.uk/id/local-authority/38,Oxfordshire County Council,Control Accounts,Control Account Trojan Residential Care,Balance Sheet General,B2040,ABACUS Accounts Payable Control A/c,13.05.2015,7000012202,"69,108.47",Carebase (Abingdon) Limited
http://statistics.data.gov.uk/id/local-authority/38,Oxfordshire County Council,Control Accounts,Control Account Trojan Residential Care,Balance Sheet General,B2040,ABACUS Accounts Payable Control A/c,13.05.2015,7000013399,"164,363.40",Carebase (Abingdon) Limited
http://statistics.data.gov.uk/id/local-authority/38,Oxfordshire County Council,Strategy & Infrastructure Planning,City Deal Skills,Services,44500,Other Hired & Contract Services,22.05.2015,4100014341,"2,475.00",Career Connect Provision Ltd
http://statistics.data.gov.uk/id/local-authority/38,Oxfordshire County Council,SCS Other Cost Centres,PB OP CHERWELL,Other Agency and Contracted Services,57300,Home Support (Ext) OS&HCD,12.05.2015,4100011014,602.00,Caremark (West Oxfordshire & Cherwe
http://statistics.data.gov.uk/id/local-authority/38,Oxfordshire County Council,SCS Other Cost Centres,PB OP WEST,Other Agency and Contracted Services,57300,Home Support (Ext) OS&HCD,15.05.2015,4100012692,"4,962.26",Caremark (West Oxfordshire & Cherwe
http://statistics.data.gov.uk/id/local-authority/38,Oxfordshire County Council,SCS Other Cost Centres,PB OP WEST,Other Agency and Contracted Services,57300,Home Support (Ext) OS&HCD,15.05.2015,4100012693,"4,844.60",Caremark (West Oxfordshire & Cherwe
http://statistics.data.gov.uk/id/local-authority/38,Oxfordshire County Council,SCS Other Cost Centres,Home suppt trade a/c,Other Agency and Contracted Services,57300,Home Support (Ext) OS&HCD,06.05.2015,7000011583,"46,509.87",Caremark (West Oxfordshire & Cherwe
http://statistics.data.gov.uk/id/local-authority/38,Oxfordshire County Council,SCS Other Cost Centres,Home suppt trade a/c,Other Agency and Contracted Services,57300,Home Support (Ext) OS&HCD,20.05.2015,7000015217,"14,063.87",Caremark (West Oxfordshire & Cherwe
http://statistics.data.gov.uk/id/local-authority/38,Oxfordshire County Council,SCS Other Cost Centres,Home suppt trade a/c,Other Agency and Contracted Services,57300,Home Support (Ext) OS&HCD,06.05.2015,7000011582,"9,510.38",Caremark Oxford
http://statistics.data.gov.uk/id/local-authority/38,Oxfordshire County Council,SCS Other Cost Centres,Home suppt trade a/c,Other Agency and Contracted Services,57300,Home Support (Ext) OS&HCD,20.05.2015,7000015216,"2,769.38",Caremark Oxford
http://statistics.data.gov.uk/id/local-authority/38,Oxfordshire County Council,Control Accounts,Control Account Trojan Residential Care,Balance Sheet General,B2040,ABACUS Accounts Payable Control A/c,13.05.2015,7000013436,"47,733.36",Caretech Community Services Ltd
http://statistics.data.gov.uk/id/local-authority/38,Oxfordshire County Council,SCS Other Cost Centres,Home suppt trade a/c,Other Agency and Contracted Services,57300,Home Support (Ext) OS&HCD,06.05.2015,7000011584,"24,190.61",Caretree Ltd
http://statistics.data.gov.uk/id/local-authority/38,Oxfordshire County Council,SCS Other Cost Centres,Home suppt trade a/c,Other Agency and Contracted Services,57300,Home Support (Ext) OS&HCD,20.05.2015,7000015218,"2,697.10",Caretree Ltd
http://statistics.data.gov.uk/id/local-authority/38,Oxfordshire County Council,Control Accounts,Control Account Trojan Residential Care,Balance Sheet General,B2040,ABACUS Accounts Payable Control A/c,13.05.2015,7000013437,"3,321.43",Carey Lodge
http://statistics.data.gov.uk/id/local-authority/38,Oxfordshire County Council,Schools,Bampton CE Primary,Building Maintenance,21008,Heating (Planned),07.05.2015,4100007636,657.44,Carillion LGS Ltd
http://statistics.data.gov.uk/id/local-authority/38,Oxfordshire County Council,Schools,Bampton CE Primary,Building Maintenance,21008,Heating (Planned),07.05.2015,4100007636,"3,558.98",Carillion LGS Ltd
http://statistics.data.gov.uk/id/local-authority/38,Oxfordshire County Council,Schools,Bampton CE Primary,Building Maintenance,21008,Heating (Planned),07.05.2015,4100007636,"43,829.95",Carillion LGS Ltd
http://statistics.data.gov.uk/id/local-authority/38,Oxfordshire County Council,Schools,Bampton CE Primary,Building Maintenance,21008,Heating (Planned),13.05.2015,4100011782,"1,184.20",Carillion LGS Ltd
http://statistics.data.gov.uk/id/local-authority/38,Oxfordshire County Council,Schools,Bampton CE Primary,Building Maintenance,21008,Heating (Planned),13.05.2015,4100011782,"6,410.47",Carillion LGS Ltd
http://statistics.data.gov.uk/id/local-authority/38,Oxfordshire County Council,Schools,Bampton CE Primary,Building Maintenance,21008,Heating (Planned),13.05.2015,4100011782,"78,946.66",Carillion LGS Ltd
http://statistics.data.gov.uk/id/local-authority/38,Oxfordshire County Council,Schools,Northern House Sch,Building Maintenance,21010,Power (Planned),21.05.2015,4100014428,"2,437.58",Carillion LGS Ltd
http://statistics.data.gov.uk/id/local-authority/38,Oxfordshire County Council,Quality & Compliance,Capital Charges - Premises,Capital Expenditure,CCAA1,Main Contract - General,07.05.2015,4100007610,582.90,Carillion LGS Ltd
http://statistics.data.gov.uk/id/local-authority/38,Oxfordshire County Council,Quality & Compliance,Capital Charges - Premises,Capital Expenditure,CCAA1,Main Contract - General,07.05.2015,4100007610,"46,093.30",Carillion LGS Ltd
http://statistics.data.gov.uk/id/local-authority/38,Oxfordshire County Council,Quality & Compliance,Capital Charges - Premises,Capital Expenditure,CCAA1,Main Contract - General,07.05.2015,4100007614,780.65,Carillion LGS Ltd
http://statistics.data.gov.uk/id/local-authority/38,Oxfordshire County Council,Quality & Compliance,Capital Charges - Premises,Capital Expenditure,CCAA1,Main Contract - General,07.05.2015,4100007614,"1,663.36",Carillion LGS Ltd
http://statistics.data.gov.uk/id/local-authority/38,Oxfordshire County Council,Quality & Compliance,Capital Charges - Premises,Capital Expenditure,CCAA1,Main Contract - General,07.05.2015,4100007614,"110,890.18",Carillion LGS Ltd
http://statistics.data.gov.uk/id/local-authority/38,Oxfordshire County Council,Quality & Compliance,Capital Charges - Premises,Capital Expenditure,CCAA1,Main Contract - General,07.05.2015,4100007615,"2,578.13",Carillion LGS Ltd
http://statistics.data.gov.uk/id/local-authority/38,Oxfordshire County Council,Quality & Compliance,Capital Charges - Premises,Capital Expenditure,CCAA1,Main Contract - General,07.05.2015,4100007615,"172,635.24",Carillion LGS Ltd
http://statistics.data.gov.uk/id/local-authority/38,Oxfordshire County Council,Quality & Compliance,Capital Charges - Premises,Capital Expenditure,CCAA1,Main Contract - General,07.05.2015,4100007810,"13,080.40",Carillion LGS Ltd
http://statistics.data.gov.uk/id/local-authority/38,Oxfordshire County Council,Quality & Compliance,Capital Charges - Premises,Capital Expenditure,CCAA1,Main Contract - General,07.05.2015,4100007811,"4,637.26",Carillion LGS Ltd
http://statistics.data.gov.uk/id/local-authority/38,Oxfordshire County Council,Quality & Compliance,Capital Charges - Premises,Capital Expenditure,CCAA1,Main Contract - General,07.05.2015,4100007812,"3,562.46",Carillion LGS Ltd
http://statistics.data.gov.uk/id/local-authority/38,Oxfordshire County Council,Quality & Compliance,Capital Charges - Premises,Capital Expenditure,CCAA1,Main Contract - General,07.05.2015,4100007812,"19,284.83",Carillion LGS Ltd
http://statistics.data.gov.uk/id/local-authority/38,Oxfordshire County Council,Quality & Compliance,Capital Charges - Premises,Capital Expenditure,CCAA1,Main Contract - General,07.05.2015,4100007812,"237,497.82",Carillion LGS Ltd
http://statistics.data.gov.uk/id/local-authority/38,Oxfordshire County Council,Quality & Compliance,Capital Charges - Premises,Capital Expenditure,CCAA1,Main Contract - General,07.05.2015,4100008809,738.90,Carillion LGS Ltd
http://statistics.data.gov.uk/id/local-authority/38,Oxfordshire County Council,Quality & Compliance,Capital Charges - Premises,Capital Expenditure,CCAA1,Main Contract - General,13.05.2015,4100011812,"1,226.75",Carillion LGS Ltd
http://statistics.data.gov.uk/id/local-authority/38,Oxfordshire County Council,Quality & Compliance,Capital Charges - Premises,Capital Expenditure,CCAA1,Main Contract - General,13.05.2015,4100011812,"4,980.58",Carillion LGS Ltd
http://statistics.data.gov.uk/id/local-authority/38,Oxfordshire County Council,Quality & Compliance,Capital Charges - Premises,Capital Expenditure,CCAA1,Main Contract - General,19.05.2015,4100012907,512.10,Carillion LGS Ltd
http://statistics.data.gov.uk/id/local-authority/38,Oxfordshire County Council,Quality & Compliance,Capital Charges - Premises,Capital Expenditure,CCAA1,Main Contract - General,19.05.2015,4100012907,"6,306.65",Carillion LGS Ltd
http://statistics.data.gov.uk/id/local-authority/38,Oxfordshire County Council,Quality & Compliance,Capital Charges - Premises,Capital Expenditure,CCAA1,Main Contract - General,19.05.2015,4100012911,"1,007.60",Carillion LGS Ltd
http://statistics.data.gov.uk/id/local-authority/38,Oxfordshire County Council,Quality & Compliance,Capital Charges - Premises,Capital Expenditure,CCAA1,Main Contract - General,19.05.2015,4100012911,"1,495.08",Carillion LGS Ltd
http://statistics.data.gov.uk/id/local-authority/38,Oxfordshire County Council,Quality & Compliance,Capital Charges - Premises,Capital Expenditure,CCAA1,Main Contract - General,19.05.2015,4100012911,"6,070.02",Carillion LGS Ltd
http://statistics.data.gov.uk/id/local-authority/38,Oxfordshire County Council,Quality & Compliance,Capital Charges - Premises,Capital Expenditure,CCAA1,Main Contract - General,19.05.2015,4100012911,"99,671.83",Carillion LGS Ltd
http://statistics.data.gov.uk/id/local-authority/38,Oxfordshire County Council,Quality & Compliance,Capital Charges - Premises,Capital Expenditure,CCAA1,Main Contract - General,19.05.2015,4100012912,"2,460.25",Carillion LGS Ltd
http://statistics.data.gov.uk/id/local-authority/38,Oxfordshire County Council,Quality & Compliance,Capital Charges - Premises,Capital Expenditure,CCAA1,Main Contract - General,19.05.2015,4100012912,"30,298.70",Carillion LGS Ltd
http://statistics.data.gov.uk/id/local-authority/38,Oxfordshire County Council,Quality & Compliance,Capital Charges - Premises,Capital Expenditure,CCAA1,Main Contract - General,19.05.2015,4100012916,570.23,Carillion LGS Ltd
http://statistics.data.gov.uk/id/local-authority/38,Oxfordshire County Council,Quality & Compliance,Capital Charges - Premises,Capital Expenditure,CCAA1,Main Contract - General,19.05.2015,4100012916,"38,015.15",Carillion LGS Ltd
http://statistics.data.gov.uk/id/local-authority/38,Oxfordshire County Council,Quality & Compliance,Capital Charges - Premises,Capital Expenditure,CCAA1,Main Contract - General,19.05.2015,4100013072,"1,581.12",Carillion LGS Ltd
http://statistics.data.gov.uk/id/local-authority/38,Oxfordshire County Council,Quality & Compliance,Capital Charges - Premises,Capital Expenditure,CCAA1,Main Contract - General,19.05.2015,4100013072,"105,408.20",Carillion LGS Ltd
http://statistics.data.gov.uk/id/local-authority/38,Oxfordshire County Council,Quality & Compliance,Capital Charges - Premises,Capital Expenditure,CCAA1,Main Contract - General,19.05.2015,4100013106,"1,421.18",Carillion LGS Ltd
http://statistics.data.gov.uk/id/local-authority/38,Oxfordshire County Council,Quality & Compliance,Capital Charges - Premises,Capital Expenditure,CCAA1,Main Contract - General,19.05.2015,4100013106,"2,946.20",Carillion LGS Ltd
http://statistics.data.gov.uk/id/local-authority/38,Oxfordshire County Council,Quality & Compliance,Capital Charges - Premises,Capital Expenditure,CCAA1,Main Contract - General,19.05.2015,4100013106,"196,413.26",Carillion LGS Ltd
http://statistics.data.gov.uk/id/local-authority/38,Oxfordshire County Council,Quality & Compliance,Capital Charges - Premises,Capital Expenditure,CCAA1,Main Contract - General,19.05.2015,4100013115,"18,243.17",Carillion LGS Ltd
http://statistics.data.gov.uk/id/local-authority/38,Oxfordshire County Council,Quality & Compliance,Capital Charges - Premises,Capital Expenditure,CCAA1,Main Contract - General,19.05.2015,4100013116,596.23,Carillion LGS Ltd
http://statistics.data.gov.uk/id/local-authority/38,Oxfordshire County Council,Quality & Compliance,Capital Charges - Premises,Capital Expenditure,CCAA1,Main Contract - General,19.05.2015,4100013116,"43,175.30",Carillion LGS Ltd
http://statistics.data.gov.uk/id/local-authority/38,Oxfordshire County Council,Quality & Compliance,Capital Charges - Premises,Capital Expenditure,CCAA1,Main Contract - General,19.05.2015,4100013122,"2,303.59",Carillion LGS Ltd
http://statistics.data.gov.uk/id/local-authority/38,Oxfordshire County Council,Quality & Compliance,Capital Charges - Premises,Capital Expenditure,CCAA1,Main Contract - General,19.05.2015,4100013122,"9,352.58",Carillion LGS Ltd
http://statistics.data.gov.uk/id/local-authority/38,Oxfordshire County Council,Quality & Compliance,Capital Charges - Premises,Capital Expenditure,CCAA1,Main Contract - General,20.05.2015,4100013831,833.56,Carillion LGS Ltd
http://statistics.data.gov.uk/id/local-authority/38,Oxfordshire County Council,Quality & Compliance,Capital Charges - Premises,Capital Expenditure,CCAA1,Main Contract - General,20.05.2015,4100013831,"2,183.48",Carillion LGS Ltd
http://statistics.data.gov.uk/id/local-authority/38,Oxfordshire County Council,Quality & Compliance,Capital Charges - Premises,Capital Expenditure,CCAA1,Main Contract - General,20.05.2015,4100013831,"145,565.48",Carillion LGS Ltd
http://statistics.data.gov.uk/id/local-authority/38,Oxfordshire County Council,Quality & Compliance,Capital Charges - Premises,Capital Expenditure,CCAA1,Main Contract - General,21.05.2015,4100014353,"1,586.54",Carillion LGS Ltd
http://statistics.data.gov.uk/id/local-authority/38,Oxfordshire County Council,Quality & Compliance,Capital Charges - Premises,Capital Expenditure,CCAA1,Main Contract - General,21.05.2015,4100014353,"105,768.53",Carillion LGS Ltd
http://statistics.data.gov.uk/id/local-authority/38,Oxfordshire County Council,Quality & Compliance,Capital Charges - Premises,Capital Expenditure,CCAA1,Main Contract - General,21.05.2015,4100014415,515.24,Carillion LGS Ltd
http://statistics.data.gov.uk/id/local-authority/38,Oxfordshire County Council,Quality & Compliance,Capital Charges - Premises,Capital Expenditure,CCAA1,Main Contract - General,21.05.2015,4100014418,"26,246.40",Carillion LGS Ltd
http://statistics.data.gov.uk/id/local-authority/38,Oxfordshire County Council,Quality & Compliance,Capital Charges - Premises,Capital Expenditure,CCAA1,Main Contract - General,21.05.2015,4100014433,"1,413.37",Carillion LGS Ltd
http://statistics.data.gov.uk/id/local-authority/38,Oxfordshire County Council,Quality & Compliance,Capital Charges - Premises,Capital Expenditure,CCAA1,Main Contract - General,21.05.2015,4100014433,"94,122.52",Carillion LGS Ltd
http://statistics.data.gov.uk/id/local-authority/38,Oxfordshire County Council,Quality & Compliance,Capital Charges - Premises,Capital Expenditure,CCAA1,Main Contract - General,27.05.2015,4100015597,"5,152.50",Carillion LGS Ltd
http://statistics.data.gov.uk/id/local-authority/38,Oxfordshire County Council,Quality & Compliance,Capital Charges - Premises,Capital Expenditure,CCAA1,Main Contract - General,27.05.2015,4100015691,"5,552.14",Carillion LGS Ltd
http://statistics.data.gov.uk/id/local-authority/38,Oxfordshire County Council,Quality & Compliance,Capital Charges - Premises,Capital Expenditure,CCAA1,Main Contract - General,28.05.2015,4100015725,"1,065.41",Carillion LGS Ltd
http://statistics.data.gov.uk/id/local-authority/38,Oxfordshire County Council,Quality & Compliance,Capital Charges - Premises,Capital Expenditure,CCAA1,Main Contract - General,28.05.2015,4100015726,826.82,Carillion LGS Ltd
http://statistics.data.gov.uk/id/local-authority/38,Oxfordshire County Council,Quality & Compliance,Capital Charges - Premises,Capital Expenditure,CCAA1,Main Contract - General,28.05.2015,4100015727,"1,694.71",Carillion LGS Ltd
http://statistics.data.gov.uk/id/local-authority/38,Oxfordshire County Council,Quality & Compliance,Capital Charges - Premises,Capital Expenditure,CCAA1,Main Contract - General,28.05.2015,4100015728,"10,229.63",Carillion LGS Ltd
http://statistics.data.gov.uk/id/local-authority/38,Oxfordshire County Council,Quality & Compliance,Capital Charges - Premises,Capital Expenditure,CCAA1,Main Contract - General,28.05.2015,4100015730,623.08,Carillion LGS Ltd
http://statistics.data.gov.uk/id/local-authority/38,Oxfordshire County Council,Quality & Compliance,Capital Charges - Premises,Capital Expenditure,CCAA1,Main Contract - General,28.05.2015,4100015730,"41,538.18",Carillion LGS Ltd
http://statistics.data.gov.uk/id/local-authority/38,Oxfordshire County Council,Quality & Compliance,Capital Charges - Premises,Capital Expenditure,CCAA1,Main Contract - General,28.05.2015,4100015731,"1,501.93",Carillion LGS Ltd
http://statistics.data.gov.uk/id/local-authority/38,Oxfordshire County Council,Quality & Compliance,Capital Charges - Premises,Capital Expenditure,CCAA1,Main Contract - General,28.05.2015,4100015967,737.94,Carillion LGS Ltd
http://statistics.data.gov.uk/id/local-authority/38,Oxfordshire County Council,Quality & Compliance,Capital Charges - Premises,Capital Expenditure,CCAA1,Main Contract - General,28.05.2015,4100015967,"49,196.23",Carillion LGS Ltd
http://statistics.data.gov.uk/id/local-authority/38,Oxfordshire County Council,Quality & Compliance,Capital Charges - Premises,Capital Expenditure,CCAA1,Main Contract - General,28.05.2015,4100015968,"1,884.74",Carillion LGS Ltd
http://statistics.data.gov.uk/id/local-authority/38,Oxfordshire County Council,Quality & Compliance,Capital Charges - Premises,Capital Expenditure,CCAA1,Main Contract - General,28.05.2015,4100015968,"3,368.44",Carillion LGS Ltd
http://statistics.data.gov.uk/id/local-authority/38,Oxfordshire County Council,Quality & Compliance,Capital Charges - Premises,Capital Expenditure,CCAA1,Main Contract - General,28.05.2015,4100015968,"224,562.74",Carillion LGS Ltd
http://statistics.data.gov.uk/id/local-authority/38,Oxfordshire County Council,Quality & Compliance,Capital Charges - Premises,Capital Expenditure,CCAA1,Main Contract - General,28.05.2015,4100015969,"23,409.14",Carillion LGS Ltd
http://statistics.data.gov.uk/id/local-authority/38,Oxfordshire County Council,Quality & Compliance,Capital Charges - Premises,Capital Expenditure,CCAA1,Main Contract - General,28.05.2015,4100015970,"3,707.76",Carillion LGS Ltd
http://statistics.data.gov.uk/id/local-authority/38,Oxfordshire County Council,Quality & Compliance,Capital Charges - Premises,Capital Expenditure,CCAA1,Main Contract - General,28.05.2015,4100015970,"8,576.98",Carillion LGS Ltd
http://statistics.data.gov.uk/id/local-authority/38,Oxfordshire County Council,Quality & Compliance,Capital Charges - Premises,Capital Expenditure,CCAA1,Main Contract - General,28.05.2015,4100015970,"263,858.82",Carillion LGS Ltd
http://statistics.data.gov.uk/id/local-authority/38,Oxfordshire County Council,Quality & Compliance,Capital Charges - Premises,Capital Expenditure,CCBA1,Other hired & contracted services - General,07.05.2015,4100007610,"2,977.62",Carillion LGS Ltd
http://statistics.data.gov.uk/id/local-authority/38,Oxfordshire County Council,Quality & Compliance,Capital Charges - Premises,Capital Expenditure,CCBA1,Other hired & contracted services - General,07.05.2015,4100007614,"6,753.22",Carillion LGS Ltd
http://statistics.data.gov.uk/id/local-authority/38,Oxfordshire County Council,Quality & Compliance,Capital Charges - Premises,Capital Expenditure,CCBA1,Other hired & contracted services - General,07.05.2015,4100007615,"10,512.80",Carillion LGS Ltd
http://statistics.data.gov.uk/id/local-authority/38,Oxfordshire County Council,Quality & Compliance,Capital Charges - Premises,Capital Expenditure,CCBA1,Other hired & contracted services - General,07.05.2015,4100007809,"6,952.08",Carillion LGS Ltd
http://statistics.data.gov.uk/id/local-authority/38,Oxfordshire County Council,Quality & Compliance,Capital Charges - Premises,Capital Expenditure,CCBA1,Other hired & contracted services - General,07.05.2015,4100007810,"1,062.13",Carillion LGS Ltd
http://statistics.data.gov.uk/id/local-authority/38,Oxfordshire County Council,Quality & Compliance,Capital Charges - Premises,Capital Expenditure,CCBA1,Other hired & contracted services - General,13.05.2015,4100011812,585.04,Carillion LGS Ltd
http://statistics.data.gov.uk/id/local-authority/38,Oxfordshire County Council,Quality & Compliance,Capital Charges - Premises,Capital Expenditure,CCBA1,Other hired & contracted services - General,13.05.2015,4100011812,"81,782.89",Carillion LGS Ltd
http://statistics.data.gov.uk/id/local-authority/38,Oxfordshire County Council,Quality & Compliance,Capital Charges - Premises,Capital Expenditure,CCBA1,Other hired & contracted services - General,19.05.2015,4100012916,"3,086.83",Carillion LGS Ltd
http://statistics.data.gov.uk/id/local-authority/38,Oxfordshire County Council,Quality & Compliance,Capital Charges - Premises,Capital Expenditure,CCBA1,Other hired & contracted services - General,19.05.2015,4100013072,"6,419.35",Carillion LGS Ltd
http://statistics.data.gov.uk/id/local-authority/38,Oxfordshire County Council,Quality & Compliance,Capital Charges - Premises,Capital Expenditure,CCBA1,Other hired & contracted services - General,19.05.2015,4100013106,"11,961.56",Carillion LGS Ltd
http://statistics.data.gov.uk/id/local-authority/38,Oxfordshire County Council,Quality & Compliance,Capital Charges - Premises,Capital Expenditure,CCBA1,Other hired & contracted services - General,19.05.2015,4100013115,"1,111.01",Carillion LGS Ltd
http://statistics.data.gov.uk/id/local-authority/38,Oxfordshire County Council,Quality & Compliance,Capital Charges - Premises,Capital Expenditure,CCBA1,Other hired & contracted services - General,19.05.2015,4100013116,"2,626.30",Carillion LGS Ltd
http://statistics.data.gov.uk/id/local-authority/38,Oxfordshire County Council,Quality & Compliance,Capital Charges - Premises,Capital Expenditure,CCBA1,Other hired & contracted services - General,19.05.2015,4100013122,995.74,Carillion LGS Ltd
http://statistics.data.gov.uk/id/local-authority/38,Oxfordshire County Council,Quality & Compliance,Capital Charges - Premises,Capital Expenditure,CCBA1,Other hired & contracted services - General,19.05.2015,4100013122,"153,572.72",Carillion LGS Ltd
http://statistics.data.gov.uk/id/local-authority/38,Oxfordshire County Council,Quality & Compliance,Capital Charges - Premises,Capital Expenditure,CCBA1,Other hired & contracted services - General,20.05.2015,4100013831,"11,819.92",Carillion LGS Ltd
http://statistics.data.gov.uk/id/local-authority/38,Oxfordshire County Council,Quality & Compliance,Capital Charges - Premises,Capital Expenditure,CCBA1,Other hired & contracted services - General,21.05.2015,4100014353,"6,441.30",Carillion LGS Ltd
http://statistics.data.gov.uk/id/local-authority/38,Oxfordshire County Council,Quality & Compliance,Capital Charges - Premises,Capital Expenditure,CCBA1,Other hired & contracted services - General,21.05.2015,4100014418,"1,598.41",Carillion LGS Ltd
http://statistics.data.gov.uk/id/local-authority/38,Oxfordshire County Council,Quality & Compliance,Capital Charges - Premises,Capital Expenditure,CCBA1,Other hired & contracted services - General,21.05.2015,4100014433,"7,651.03",Carillion LGS Ltd
http://statistics.data.gov.uk/id/local-authority/38,Oxfordshire County Council,Quality & Compliance,Capital Charges - Premises,Capital Expenditure,CCBA1,Other hired & contracted services - General,28.05.2015,4100015728,622.98,Carillion LGS Ltd
http://statistics.data.gov.uk/id/local-authority/38,Oxfordshire County Council,Quality & Compliance,Capital Charges - Premises,Capital Expenditure,CCBA1,Other hired & contracted services - General,28.05.2015,4100015730,"3,372.90",Carillion LGS Ltd
http://statistics.data.gov.uk/id/local-authority/38,Oxfordshire County Council,Quality & Compliance,Capital Charges - Premises,Capital Expenditure,CCBA1,Other hired & contracted services - General,28.05.2015,4100015967,"2,996.04",Carillion LGS Ltd
http://statistics.data.gov.uk/id/local-authority/38,Oxfordshire County Council,Quality & Compliance,Capital Charges - Premises,Capital Expenditure,CCBA1,Other hired & contracted services - General,28.05.2015,4100015968,"13,675.87",Carillion LGS Ltd
http://statistics.data.gov.uk/id/local-authority/38,Oxfordshire County Council,Quality & Compliance,Capital Charges - Premises,Capital Expenditure,CCBA1,Other hired & contracted services - General,28.05.2015,4100015969,786.79,Carillion LGS Ltd
http://statistics.data.gov.uk/id/local-authority/38,Oxfordshire County Council,Quality & Compliance,Capital Charges - Premises,Capital Expenditure,CCBA1,Other hired & contracted services - General,28.05.2015,4100015969,"1,425.61",Carillion LGS Ltd
http://statistics.data.gov.uk/id/local-authority/38,Oxfordshire County Council,Quality & Compliance,Capital Charges - Premises,Capital Expenditure,CCBA1,Other hired & contracted services - General,28.05.2015,4100015970,522.34,Carillion LGS Ltd
http://statistics.data.gov.uk/id/local-authority/38,Oxfordshire County Council,Quality & Compliance,Capital Charges - Premises,Capital Expenditure,CCBA1,Other hired & contracted services - General,28.05.2015,4100015970,"16,054.00",Carillion LGS Ltd
http://statistics.data.gov.uk/id/local-authority/38,Oxfordshire County Council,Quality & Compliance,Capital Charges - Premises,Capital Expenditure,CFAA1,Consultant / Design Fees - General,07.05.2015,4100007809,"1,284.25",Carillion LGS Ltd
http://statistics.data.gov.uk/id/local-authority/38,Oxfordshire County Council,Quality & Compliance,Capital Charges - Premises,Capital Expenditure,CFAA1,Consultant / Design Fees - General,07.05.2015,4100007809,"85,616.81",Carillion LGS Ltd
http://statistics.data.gov.uk/id/local-authority/38,Oxfordshire County Council,Quality & Compliance,Capital Charges - Premises,Capital Expenditure,CFAA1,Consultant / Design Fees - General,19.05.2015,4100013072,"1,017.67",Carillion LGS Ltd
http://statistics.data.gov.uk/id/local-authority/38,Oxfordshire County Council,Quality & Compliance,Capital Charges - Premises,Capital Expenditure,CFAA1,Consultant / Design Fees - General,21.05.2015,4100014433,"1,154.50",Carillion LGS Ltd
http://statistics.data.gov.uk/id/local-authority/38,Oxfordshire County Council,Quality & Compliance,Capital Charges - Premises,Capital Expenditure,CFAA1,Consultant / Design Fees - General,28.05.2015,4100015969,"12,919.39",Carillion LGS Ltd
http://statistics.data.gov.uk/id/local-authority/38,Oxfordshire County Council,Quality & Compliance,Capital Charges - Premises,Capital Expenditure,CFAA1,Consultant / Design Fees - General,28.05.2015,4100016014,707.69,Carillion LGS Ltd
http://statistics.data.gov.uk/id/local-authority/38,Oxfordshire County Council,Quality & Compliance,Capital Charges - Premises,Capital Expenditure,CFAA1,Consultant / Design Fees - General,28.05.2015,4100016014,"20,219.75",Carillion LGS Ltd
http://statistics.data.gov.uk/id/local-authority/38,Oxfordshire County Council,Commercial Services,Travel Permits,Catering,42101,Food & Catering,21.05.2015,4100013933,"2,613.60",Carillion LGS Ltd
http://statistics.data.gov.uk/id/local-authority/38,Oxfordshire County Council,Commercial Services,Travel Permits,Catering,42101,Food & Catering,21.05.2015,4100013933,"3,760.08",Carillion LGS Ltd
http://statistics.data.gov.uk/id/local-authority/38,Oxfordshire County Council,Commercial Services,Travel Permits,Catering,42101,Food & Catering,21.05.2015,4100013933,"62,866.35",Carillion LGS Ltd
http://statistics.data.gov.uk/id/local-authority/38,Oxfordshire County Council,Commercial Services,Travel Permits,Catering,42101,Food & Catering,21.05.2015,4100013933,"104,496.00",Carillion LGS Ltd
http://statistics.data.gov.uk/id/local-authority/38,Oxfordshire County Council,Law & Culture,Oxfordshire Museum,Fixtures and Fittings,26200,Fixtures & Fittings,07.05.2015,4100005665,"2,605.08",Carillion LGS Ltd
http://statistics.data.gov.uk/id/local-authority/38,Oxfordshire County Council,Commercial Services,Macclesfield House,Grounds Maintenance,22207,Health & Safety,22.05.2015,4100014768,"4,222.49",Carillion LGS Ltd
http://statistics.data.gov.uk/id/local-authority/38,Oxfordshire County Council,Commercial Services,Speedwell House,Other Committees of the Council,51101,Contract Cleaning (C,29.05.2015,4100016072,"4,320.74",Carillion LGS Ltd
http://statistics.data.gov.uk/id/local-authority/38,Oxfordshire County Council,Schools,Sonning Common Sch,Planned R&M,21000,Repair & Maintenance (Non-Delegated),13.05.2015,4100011754,500.52,Carillion LGS Ltd
http://statistics.data.gov.uk/id/local-authority/38,Oxfordshire County Council,Schools,Sonning Common Sch,Planned R&M,21000,Repair & Maintenance (Non-Delegated),13.05.2015,4100011754,"6,164.10",Carillion LGS Ltd
http://statistics.data.gov.uk/id/local-authority/38,Oxfordshire County Council,Schools,Peppard CE,Planned R&M,21000,Repair & Maintenance (Non-Delegated),13.05.2015,4100011766,861.50,Carillion LGS Ltd
http://statistics.data.gov.uk/id/local-authority/38,Oxfordshire County Council,Schools,Peppard CE,Planned R&M,21000,Repair & Maintenance (Non-Delegated),13.05.2015,4100011766,"10,609.67",Carillion LGS Ltd
http://statistics.data.gov.uk/id/local-authority/38,Oxfordshire County Council,Schools,Sonning Common Sch,Planned R&M,21000,Repair & Maintenance (Non-Delegated),13.05.2015,4100011811,"1,297.09",Carillion LGS Ltd
http://statistics.data.gov.uk/id/local-authority/38,Oxfordshire County Council,Schools,Sonning Common Sch,Planned R&M,21000,Repair & Maintenance (Non-Delegated),13.05.2015,4100011811,"15,974.09",Carillion LGS Ltd
http://statistics.data.gov.uk/id/local-authority/38,Oxfordshire County Council,Commercial Services,Macclesfield House,Planned R&M,21000,Repair & Maintenance (Non-Delegated),13.05.2015,4100011859,"1,038.42",Carillion LGS Ltd
http://statistics.data.gov.uk/id/local-authority/38,Oxfordshire County Council,Commercial Services,Macclesfield House,Planned R&M,21000,Repair & Maintenance (Non-Delegated),13.05.2015,4100011859,"12,788.39",Carillion LGS Ltd
http://statistics.data.gov.uk/id/local-authority/38,Oxfordshire County Council,Schools,Bampton CE Primary,Planned R&M,21000,Repair & Maintenance (Non-Delegated),13.05.2015,4100011883,"1,713.53",Carillion LGS Ltd
http://statistics.data.gov.uk/id/local-authority/38,Oxfordshire County Council,Schools,William Morris  Banb,Planned R&M,21000,Repair & Maintenance (Non-Delegated),19.05.2015,4100012908,"2,435.22",Carillion LGS Ltd
http://statistics.data.gov.uk/id/local-authority/38,Oxfordshire County Council,Schools,William Morris  Banb,Planned R&M,21000,Repair & Maintenance (Non-Delegated),19.05.2015,4100012908,"29,990.40",Carillion LGS Ltd
http://statistics.data.gov.uk/id/local-authority/38,Oxfordshire County Council,Schools,St Swithuns  Kennin,Planned R&M,21000,Repair & Maintenance (Non-Delegated),19.05.2015,4100012914,"2,607.10",Carillion LGS Ltd
http://statistics.data.gov.uk/id/local-authority/38,Oxfordshire County Council,Schools,St Swithuns  Kennin,Planned R&M,21000,Repair & Maintenance (Non-Delegated),19.05.2015,4100012914,"32,107.03",Carillion LGS Ltd
http://statistics.data.gov.uk/id/local-authority/38,Oxfordshire County Council,Commercial Services,Macclesfield House,Planned R&M,21000,Repair & Maintenance (Non-Delegated),21.05.2015,4100014354,826.37,Carillion LGS Ltd
http://statistics.data.gov.uk/id/local-authority/38,Oxfordshire County Council,Commercial Services,Macclesfield House,Planned R&M,21000,Repair & Maintenance (Non-Delegated),21.05.2015,4100014354,"4,473.41",Carillion LGS Ltd
http://statistics.data.gov.uk/id/local-authority/38,Oxfordshire County Council,Commercial Services,Macclesfield House,Planned R&M,21000,Repair & Maintenance (Non-Delegated),21.05.2015,4100014354,"55,091.28",Carillion LGS Ltd
http://statistics.data.gov.uk/id/local-authority/38,Oxfordshire County Council,Commercial Services,Macclesfield House,Planned R&M,21000,Repair & Maintenance (Non-Delegated),21.05.2015,4100014422,879.74,Carillion LGS Ltd
http://statistics.data.gov.uk/id/local-authority/38,Oxfordshire County Council,Commercial Services,Macclesfield House,Planned R&M,21000,Repair & Maintenance (Non-Delegated),21.05.2015,4100014422,"10,834.22",Carillion LGS Ltd
http://statistics.data.gov.uk/id/local-authority/38,Oxfordshire County Council,Commercial Services,Macclesfield House,Planned R&M,21000,Repair & Maintenance (Non-Delegated),22.05.2015,4100014597,"2,659.14",Carillion LGS Ltd
http://statistics.data.gov.uk/id/local-authority/38,Oxfordshire County Council,Commercial Services,Macclesfield House,Planned R&M,21000,Repair & Maintenance (Non-Delegated),22.05.2015,4100014597,"32,748.04",Carillion LGS Ltd
http://statistics.data.gov.uk/id/local-authority/38,Oxfordshire County Council,Commercial Services,Macclesfield House,Planned R&M,21000,Repair & Maintenance (Non-Delegated),27.05.2015,4100015598,"1,469.48",Carillion LGS Ltd
http://statistics.data.gov.uk/id/local-authority/38,Oxfordshire County Council,Commercial Services,Macclesfield House,Planned R&M,21000,Repair & Maintenance (Non-Delegated),27.05.2015,4100015598,"18,097.08",Carillion LGS Ltd
http://statistics.data.gov.uk/id/local-authority/38,Oxfordshire County Council,Commercial Services,County Hall,Private Contractors,56400,Major Contracts,07.05.2015,4100007467,"1,061,594.80",Carillion LGS Ltd
http://statistics.data.gov.uk/id/local-authority/38,Oxfordshire County Council,Commercial Services,Travel Permits,Private Contractors,56400,Major Contracts,21.05.2015,4100013918,"70,816.08",Carillion LGS Ltd
http://statistics.data.gov.uk/id/local-authority/38,Oxfordshire County Council,Commercial Services,Office Accom Gen,Private Contractors,56400,Major Contracts,21.05.2015,4100013919,"20,461.02",Carillion LGS Ltd
http://statistics.data.gov.uk/id/local-authority/38,Oxfordshire County Council,Commercial Services,Travel Permits,Private Contractors,56400,Major Contracts,21.05.2015,4100013920,"5,331.60",Carillion LGS Ltd
http://statistics.data.gov.uk/id/local-authority/38,Oxfordshire County Council,Commercial Services,Office Accom Gen,Private Contractors,56400,Major Contracts,21.05.2015,4100013927,"32,018.05",Carillion LGS Ltd
http://statistics.data.gov.uk/id/local-authority/38,Oxfordshire County Council,Commercial Services,County Hall,Private Contractors,56400,Major Contracts,21.05.2015,4100013928,"71,839.60",Carillion LGS Ltd
http://statistics.data.gov.uk/id/local-authority/38,Oxfordshire County Council,Older Peoples Pooled Budget,Bicester Day Centre,Private Contractors,56400,Major Contracts,21.05.2015,4100014397,739.44,Carillion LGS Ltd
http://statistics.data.gov.uk/id/local-authority/38,Oxfordshire County Council,Commercial Services,Office Accom Gen,Private Contractors,56400,Major Contracts,22.05.2015,4100014775,"84,484.26",Carillion LGS Ltd
http://statistics.data.gov.uk/id/local-authority/38,Oxfordshire County Council,Commercial Services,County Hall,Private Contractors,56400,Major Contracts,29.05.2015,4100016074,"6,854.42",Carillion LGS Ltd
http://statistics.data.gov.uk/id/local-authority/38,Oxfordshire County Council,Commercial Services,County Hall,Private Contractors,56400,Major Contracts,29.05.2015,4100016074,"255,737.63",Carillion LGS Ltd
http://statistics.data.gov.uk/id/local-authority/38,Oxfordshire County Council,Commercial Services,Macclesfield House,Private Contractors,56403,Fees To Be Recovered From External Sources,21.05.2015,4100013939,"10,492.24",Carillion LGS Ltd
http://statistics.data.gov.uk/id/local-authority/38,Oxfordshire County Council,Commercial Services,Macclesfield House,Private Contractors,56404,Fixed Fee Charges,21.05.2015,4100013940,"148,835.44",Carillion LGS Ltd
http://statistics.data.gov.uk/id/local-authority/38,Oxfordshire County Council,Commercial Services,Office Accom Gen,Services,44500,Other Hired & Contract Services,07.05.2015,4100006644,"281,749.69",Carillion LGS Ltd
http://statistics.data.gov.uk/id/local-authority/38,Oxfordshire County Council,Community Safety,Fire Control,Services,44500,Other Hired & Contract Services,20.05.2015,4100013816,862.21,Carillion LGS Ltd
http://statistics.data.gov.uk/id/local-authority/38,Oxfordshire County Council,Community Safety,Fire Control,Services,44500,Other Hired & Contract Services,20.05.2015,4100013816,"10,618.37",Carillion LGS Ltd
http://statistics.data.gov.uk/id/local-authority/38,Oxfordshire County Council,Schools,Hardwick CP  Banbury,Total Responsive R&M,21108,Heating (Urgent),13.05.2015,4100011879,682.50,Carillion LGS Ltd
http://statistics.data.gov.uk/id/local-authority/38,Oxfordshire County Council,Schools,Hardwick CP  Banbury,Total Responsive R&M,21108,Heating (Urgent),13.05.2015,4100011879,694.91,Carillion LGS Ltd
http://statistics.data.gov.uk/id/local-authority/38,Oxfordshire County Council,Schools,Hardwick CP  Banbury,Total Responsive R&M,21108,Heating (Urgent),13.05.2015,4100011879,"3,814.36",Carillion LGS Ltd
http://statistics.data.gov.uk/id/local-authority/38,Oxfordshire County Council,Schools,Hardwick CP  Banbury,Total Responsive R&M,21108,Heating (Urgent),13.05.2015,4100011879,"46,996.90",Carillion LGS Ltd
http://statistics.data.gov.uk/id/local-authority/38,Oxfordshire County Council,Older Peoples Pooled Budget,Locality Team - City,Temporary Staff (NJC Green Book),16717,Tempry Staff (NJC) Agency Staff,01.05.2015,4100002000,"1,342.32",Caritas Recruitment Ltd
http://statistics.data.gov.uk/id/local-authority/38,Oxfordshire County Council,Education & Early Intervention,Thriving family Soth,Temporary Staff (NJC Green Book),16717,Tempry Staff (NJC) Agency Staff,08.05.2015,4100003316,"1,642.80",Caritas Recruitment Ltd
http://statistics.data.gov.uk/id/local-authority/38,Oxfordshire County Council,Education & Early Intervention,School Dev Programme,Temporary Staff (NJC Green Book),16717,Tempry Staff (NJC) Agency Staff,01.05.2015,4100005563,"1,260.00",Caritas Recruitment Ltd
http://statistics.data.gov.uk/id/local-authority/38,Oxfordshire County Council,Education & Early Intervention,Thriving family Soth,Temporary Staff (NJC Green Book),16717,Tempry Staff (NJC) Agency Staff,08.05.2015,4100005641,"1,332.00",Caritas Recruitment Ltd
http://statistics.data.gov.uk/id/local-authority/38,Oxfordshire County Council,Education & Early Intervention,Thriving family Soth,Temporary Staff (NJC Green Book),16717,Tempry Staff (NJC) Agency Staff,08.05.2015,4100006023,"1,309.80",Caritas Recruitment Ltd
http://statistics.data.gov.uk/id/local-authority/38,Oxfordshire County Council,Education & Early Intervention,EY Hearing Screening,Temporary Staff (NJC Green Book),16717,Tempry Staff (NJC) Agency Staff,22.05.2015,4100006024,"1,050.00",Caritas Recruitment Ltd
http://statistics.data.gov.uk/id/local-authority/38,Oxfordshire County Council,Education & Early Intervention,School Dev Programme,Temporary Staff (NJC Green Book),16717,Tempry Staff (NJC) Agency Staff,01.05.2015,4100006075,"1,260.00",Caritas Recruitment Ltd
http://statistics.data.gov.uk/id/local-authority/38,Oxfordshire County Council,Education & Early Intervention,School Dev Programme,Temporary Staff (NJC Green Book),16717,Tempry Staff (NJC) Agency Staff,01.05.2015,4100006076,"1,260.00",Caritas Recruitment Ltd
http://statistics.data.gov.uk/id/local-authority/38,Oxfordshire County Council,Older Peoples Pooled Budget,Locality Team - City,Temporary Staff (NJC Green Book),16717,Tempry Staff (NJC) Agency Staff,01.05.2015,4100006593,"1,342.32",Caritas Recruitment Ltd
http://statistics.data.gov.uk/id/local-authority/38,Oxfordshire County Council,Children's Social Care,MASH Project,Temporary Staff (NJC Green Book),16717,Tempry Staff (NJC) Agency Staff,01.05.2015,4100006890,"1,594.32",Caritas Recruitment Ltd
http://statistics.data.gov.uk/id/local-authority/38,Oxfordshire County Council,Education & Early Intervention,Thriving family Soth,Temporary Staff (NJC Green Book),16717,Tempry Staff (NJC) Agency Staff,13.05.2015,4100008011,"1,642.80",Caritas Recruitment Ltd
http://statistics.data.gov.uk/id/local-authority/38,Oxfordshire County Council,Education & Early Intervention,School Dev Programme,Temporary Staff (NJC Green Book),16717,Tempry Staff (NJC) Agency Staff,07.05.2015,4100008068,"1,554.00",Caritas Recruitment Ltd
http://statistics.data.gov.uk/id/local-authority/38,Oxfordshire County Council,Education & Early Intervention,Thriving family City,Temporary Staff (NJC Green Book),16717,Tempry Staff (NJC) Agency Staff,28.05.2015,4100008070,"1,598.40",Caritas Recruitment Ltd
http://statistics.data.gov.uk/id/local-authority/38,Oxfordshire County Council,Children's Social Care,Assess Team City,Temporary Staff (NJC Green Book),16717,Tempry Staff (NJC) Agency Staff,05.05.2015,4100008638,"1,620.60",Caritas Recruitment Ltd
http://statistics.data.gov.uk/id/local-authority/38,Oxfordshire County Council,Children's Social Care,Assess Team City,Temporary Staff (NJC Green Book),16717,Tempry Staff (NJC) Agency Staff,05.05.2015,4100008643,"1,620.60",Caritas Recruitment Ltd
http://statistics.data.gov.uk/id/local-authority/38,Oxfordshire County Council,Children's Social Care,Hospital Teams,Temporary Staff (NJC Green Book),16717,Tempry Staff (NJC) Agency Staff,08.05.2015,4100009072,"1,620.60",Caritas Recruitment Ltd
http://statistics.data.gov.uk/id/local-authority/38,Oxfordshire County Council,Children's Social Care,MASH Project,Temporary Staff (NJC Green Book),16717,Tempry Staff (NJC) Agency Staff,06.05.2015,4100009566,"1,445.40",Caritas Recruitment Ltd
http://statistics.data.gov.uk/id/local-authority/38,Oxfordshire County Council,Education & Early Intervention,Thriving family Soth,Temporary Staff (NJC Green Book),16717,Tempry Staff (NJC) Agency Staff,08.05.2015,4100010100,"1,642.80",Caritas Recruitment Ltd
http://statistics.data.gov.uk/id/local-authority/38,Oxfordshire County Council,Education & Early Intervention,Thriving family Soth,Temporary Staff (NJC Green Book),16717,Tempry Staff (NJC) Agency Staff,08.05.2015,4100010102,"1,332.00",Caritas Recruitment Ltd
http://statistics.data.gov.uk/id/local-authority/38,Oxfordshire County Council,Education & Early Intervention,Thriving family Soth,Temporary Staff (NJC Green Book),16717,Tempry Staff (NJC) Agency Staff,08.05.2015,4100010103,"1,309.80",Caritas Recruitment Ltd
http://statistics.data.gov.uk/id/local-authority/38,Oxfordshire County Council,Older Peoples Pooled Budget,DTOC Funding,Temporary Staff (NJC Green Book),16717,Tempry Staff (NJC) Agency Staff,11.05.2015,4100010251,"1,460.76",Caritas Recruitment Ltd
http://statistics.data.gov.uk/id/local-authority/38,Oxfordshire County Council,Older Peoples Pooled Budget,DTOC Funding,Temporary Staff (NJC Green Book),16717,Tempry Staff (NJC) Agency Staff,11.05.2015,4100010252,"1,208.09",Caritas Recruitment Ltd
http://statistics.data.gov.uk/id/local-authority/38,Oxfordshire County Council,Older Peoples Pooled Budget,Locality Team - City,Temporary Staff (NJC Green Book),16717,Tempry Staff (NJC) Agency Staff,11.05.2015,4100010425,"1,263.36",Caritas Recruitment Ltd
http://statistics.data.gov.uk/id/local-authority/38,Oxfordshire County Council,Children's Social Care,Hospital Teams,Temporary Staff (NJC Green Book),16717,Tempry Staff (NJC) Agency Staff,19.05.2015,4100010759,"1,533.00",Caritas Recruitment Ltd
http://statistics.data.gov.uk/id/local-authority/38,Oxfordshire County Council,Education & Early Intervention,School Dev Programme,Temporary Staff (NJC Green Book),16717,Tempry Staff (NJC) Agency Staff,13.05.2015,4100010799,"1,554.00",Caritas Recruitment Ltd
http://statistics.data.gov.uk/id/local-authority/38,Oxfordshire County Council,Children's Social Care,Hospital Teams,Temporary Staff (NJC Green Book),16717,Tempry Staff (NJC) Agency Staff,13.05.2015,4100010832,"1,620.60",Caritas Recruitment Ltd
http://statistics.data.gov.uk/id/local-authority/38,Oxfordshire County Council,Children's Social Care,Fam Supp North,Temporary Staff (NJC Green Book),16717,Tempry Staff (NJC) Agency Staff,22.05.2015,4100010833,"1,548.67",Caritas Recruitment Ltd
http://statistics.data.gov.uk/id/local-authority/38,Oxfordshire County Council,Education & Early Intervention,Thriving family Soth,Temporary Staff (NJC Green Book),16717,Tempry Staff (NJC) Agency Staff,26.05.2015,4100010935,"1,642.80",Caritas Recruitment Ltd
http://statistics.data.gov.uk/id/local-authority/38,Oxfordshire County Council,Education & Early Intervention,Thriving family City,Temporary Staff (NJC Green Book),16717,Tempry Staff (NJC) Agency Staff,28.05.2015,4100011000,"1,598.40",Caritas Recruitment Ltd
http://statistics.data.gov.uk/id/local-authority/38,Oxfordshire County Council,Older Peoples Pooled Budget,Locality Team - City,Temporary Staff (NJC Green Book),16717,Tempry Staff (NJC) Agency Staff,13.05.2015,4100011117,"1,342.32",Caritas Recruitment Ltd
http://statistics.data.gov.uk/id/local-authority/38,Oxfordshire County Council,Education & Early Intervention,Thriving family Soth,Temporary Staff (NJC Green Book),16717,Tempry Staff (NJC) Agency Staff,13.05.2015,4100011562,"1,642.80",Caritas Recruitment Ltd
http://statistics.data.gov.uk/id/local-authority/38,Oxfordshire County Council,Children's Social Care,MASH Project,Temporary Staff (NJC Green Book),16717,Tempry Staff (NJC) Agency Staff,18.05.2015,4100012114,"1,620.60",Caritas Recruitment Ltd
http://statistics.data.gov.uk/id/local-authority/38,Oxfordshire County Council,Children's Social Care,Hospital Teams,Temporary Staff (NJC Green Book),16717,Tempry Staff (NJC) Agency Staff,19.05.2015,4100012969,"1,533.00",Caritas Recruitment Ltd
http://statistics.data.gov.uk/id/local-authority/38,Oxfordshire County Council,Education & Early Intervention,Thriving family Soth,Temporary Staff (NJC Green Book),16717,Tempry Staff (NJC) Agency Staff,19.05.2015,4100012970,"1,309.80",Caritas Recruitment Ltd
http://statistics.data.gov.uk/id/local-authority/38,Oxfordshire County Council,Education & Early Intervention,Thriving family Soth,Temporary Staff (NJC Green Book),16717,Tempry Staff (NJC) Agency Staff,19.05.2015,4100012971,"1,642.80",Caritas Recruitment Ltd
http://statistics.data.gov.uk/id/local-authority/38,Oxfordshire County Council,Education & Early Intervention,Thriving family City,Temporary Staff (NJC Green Book),16717,Tempry Staff (NJC) Agency Staff,28.05.2015,4100012972,"1,274.40",Caritas Recruitment Ltd
http://statistics.data.gov.uk/id/local-authority/38,Oxfordshire County Council,Education & Early Intervention,Thriving family Soth,Temporary Staff (NJC Green Book),16717,Tempry Staff (NJC) Agency Staff,19.05.2015,4100012973,"1,332.00",Caritas Recruitment Ltd
http://statistics.data.gov.uk/id/local-authority/38,Oxfordshire County Council,Children's Social Care,Fam Supp North,Temporary Staff (NJC Green Book),16717,Tempry Staff (NJC) Agency Staff,22.05.2015,4100014031,"1,548.67",Caritas Recruitment Ltd
http://statistics.data.gov.uk/id/local-authority/38,Oxfordshire County Council,Children's Social Care,Hospital Teams,Temporary Staff (NJC Green Book),16717,Tempry Staff (NJC) Agency Staff,22.05.2015,4100014070,"1,620.60",Caritas Recruitment Ltd
http://statistics.data.gov.uk/id/local-authority/38,Oxfordshire County Council,Education & Early Intervention,Thriving family Soth,Temporary Staff (NJC Green Book),16717,Tempry Staff (NJC) Agency Staff,22.05.2015,4100014184,"1,675.20",Caritas Recruitment Ltd
http://statistics.data.gov.uk/id/local-authority/38,Oxfordshire County Council,Older Peoples Pooled Budget,DTOC Funding,Temporary Staff (NJC Green Book),16717,Tempry Staff (NJC) Agency Staff,22.05.2015,4100014186,"1,460.76",Caritas Recruitment Ltd
http://statistics.data.gov.uk/id/local-authority/38,Oxfordshire County Council,Education & Early Intervention,EY Hearing Screening,Temporary Staff (NJC Green Book),16717,Tempry Staff (NJC) Agency Staff,22.05.2015,4100014615,"1,050.00",Caritas Recruitment Ltd
http://statistics.data.gov.uk/id/local-authority/38,Oxfordshire County Council,Children's Social Care,Hospital Teams,Temporary Staff (NJC Green Book),16717,Tempry Staff (NJC) Agency Staff,27.05.2015,4100015019,"1,314.00",Caritas Recruitment Ltd
http://statistics.data.gov.uk/id/local-authority/38,Oxfordshire County Council,Education & Early Intervention,Thriving family City,Temporary Staff (NJC Green Book),16717,Tempry Staff (NJC) Agency Staff,28.05.2015,4100015118,"1,274.40",Caritas Recruitment Ltd
http://statistics.data.gov.uk/id/local-authority/38,Oxfordshire County Council,Education & Early Intervention,Thriving family City,Temporary Staff (NJC Green Book),16717,Tempry Staff (NJC) Agency Staff,28.05.2015,4100015922,"1,274.40",Caritas Recruitment Ltd
http://statistics.data.gov.uk/id/local-authority/38,Oxfordshire County Council,Education & Early Intervention,Thriving family City,Temporary Staff (NJC Green Book),16717,Tempry Staff (NJC) Agency Staff,28.05.2015,4100015923,"1,598.40",Caritas Recruitment Ltd
http://statistics.data.gov.uk/id/local-authority/38,Oxfordshire County Council,Education & Early Intervention,Thriving family City,Temporary Staff (NJC Green Book),16717,Tempry Staff (NJC) Agency Staff,28.05.2015,4100015931,"1,598.40",Caritas Recruitment Ltd
http://statistics.data.gov.uk/id/local-authority/38,Oxfordshire County Council,Education & Early Intervention,Thriving family City,Temporary Staff (NJC Green Book),16717,Tempry Staff (NJC) Agency Staff,28.05.2015,4100015932,"1,274.40",Caritas Recruitment Ltd
